Body,Body Name,Date Paid,Transaction Number,Amount,Supplier Name,Supplier ID,Supplier post code (first 4 digits),Directorate,Service Area,General Ledger code Description,BVACOP class,Revenue/ Capital Spend
http://statistics.data.gov.uk/id/local-authority/00HY,Wiltshire Council,16/11/2015,1901611244,1367.74,1st Choice Cabs ,101285,SP4 ,Community Services,CTPLD Place CIC U65,Transport Contracts,Third Party Payments,REVENUE
http://statistics.data.gov.uk/id/local-authority/00HY,Wiltshire Council,16/11/2015,1901611250,1302.00,1st Choice Cabs ,101285,SP4 ,Neighbourhood & Planning,SEN Secondary,Transport Contracts,Third Party Payments,REVENUE
http://statistics.data.gov.uk/id/local-authority/00HY,Wiltshire Council,16/11/2015,1901611251,975.00,1st Choice Cabs ,101285,SP4 ,Neighbourhood & Planning,SEN Secondary,Transport Contracts,Third Party Payments,REVENUE
http://statistics.data.gov.uk/id/local-authority/00HY,Wiltshire Council,23/11/2015,1901614894,1477.50,1st Choice Cabs ,101285,SP4 ,Neighbourhood & Planning,SEN Secondary,Transport Contracts,Third Party Payments,REVENUE
http://statistics.data.gov.uk/id/local-authority/00HY,Wiltshire Council,17/11/2015,1901612056,3450.00,1st Choice Stairlifts ,113095,SN11,Wiltshire Council,Wiltshire Council,Payments to Contractors - Other,Third Party Payments,CAPITAL
http://statistics.data.gov.uk/id/local-authority/00HY,Wiltshire Council,18/11/2015,5106786001,2328.68,2 Care UK Ltd ,110002,BH7 ,Community Services,MH AOWA South Locali,Adult Residential Placements - Spot Purchase,Third Party Payments,REVENUE
http://statistics.data.gov.uk/id/local-authority/00HY,Wiltshire Council,18/11/2015,5106786717,1416.00,2 Care UK Ltd ,110002,BH7 ,Community Services,MH AOWA South Locali,Adult Residential Placements - Spot Purchase,Third Party Payments,REVENUE
http://statistics.data.gov.uk/id/local-authority/00HY,Wiltshire Council,18/11/2015,5106786718,944.00,2 Care UK Ltd ,110002,BH7 ,Community Services,Section 117-PCT Clnt,Adult Residential Placements - Spot Purchase,Third Party Payments,REVENUE
http://statistics.data.gov.uk/id/local-authority/00HY,Wiltshire Council,18/11/2015,5106786844,2360.00,2 Care UK Ltd ,110002,BH7 ,Community Services,MH AOWA South Locali,Adult Residential Placements - Spot Purchase,Third Party Payments,REVENUE
http://statistics.data.gov.uk/id/local-authority/00HY,Wiltshire Council,18/11/2015,5106784251,5759.12,22 Wingfield ,129621,BA14,Community Services,CTPLD Place CIC U65,Adult Residential Placements - Spot Purchase,Third Party Payments,REVENUE
http://statistics.data.gov.uk/id/local-authority/00HY,Wiltshire Council,18/11/2015,5106785869,5552.16,22 Wingfield ,129621,BA14,Community Services,MH AOWA North Locali,Adult Residential Placements - Spot Purchase,Third Party Payments,REVENUE
http://statistics.data.gov.uk/id/local-authority/00HY,Wiltshire Council,18/11/2015,5106785976,7324.16,22 Wingfield ,129621,BA14,Community Services,CTPLD Place CIC U65,Adult Residential Placements - Spot Purchase,Third Party Payments,REVENUE
http://statistics.data.gov.uk/id/local-authority/00HY,Wiltshire Council,03/11/2015,5106778501,820.30,24-7 Staffing ,140662,SN15,Community Services,Riverbank,Agency Staff,Employee Related,REVENUE
http://statistics.data.gov.uk/id/local-authority/00HY,Wiltshire Council,10/11/2015,5106780172,904.22,24-7 Staffing ,140662,SN15,Community Services,Bradbury Manor Resp,Agency Staff,Employee Related,REVENUE
http://statistics.data.gov.uk/id/local-authority/00HY,Wiltshire Council,13/11/2015,5106781925,606.27,24-7 Staffing ,140662,SN15,Community Services,Riverbank,Agency Staff,Employee Related,REVENUE
http://statistics.data.gov.uk/id/local-authority/00HY,Wiltshire Council,25/11/2015,5106785000,568.65,24-7 Staffing ,140662,SN15,Community Services,Bradbury Manor Resp,Agency Staff,Employee Related,REVENUE
http://statistics.data.gov.uk/id/local-authority/00HY,Wiltshire Council,18/11/2015,5106785002,291.55,24-7 Staffing ,140662,SN15,Community Services,Devizes Act Centre,Agency Staff,Employee Related,REVENUE
http://statistics.data.gov.uk/id/local-authority/00HY,Wiltshire Council,18/11/2015,5106785005,1060.16,24-7 Staffing ,140662,SN15,Community Services,Bradbury Manor Resp,Agency Staff,Employee Related,REVENUE
http://statistics.data.gov.uk/id/local-authority/00HY,Wiltshire Council,25/11/2015,5106787661,593.92,24-7 Staffing ,140662,SN15,Community Services,Chippenham Respite,Agency Staff,Employee Related,REVENUE
http://statistics.data.gov.uk/id/local-authority/00HY,Wiltshire Council,19/11/2015,1901613898,720.00,2get2 Taxi Services Ltd ,101102,SP1 ,Neighbourhood & Planning,SEN Primary,Transport Contracts,Third Party Payments,REVENUE
http://statistics.data.gov.uk/id/local-authority/00HY,Wiltshire Council,19/11/2015,1901613898,720.00,2get2 Taxi Services Ltd ,101102,SP1 ,Neighbourhood & Planning,SEN Secondary,Transport Contracts,Third Party Payments,REVENUE
http://statistics.data.gov.uk/id/local-authority/00HY,Wiltshire Council,11/11/2015,1901610251,981.15,A  and  S Private Hire ,101115,SN15,Neighbourhood & Planning,SEN Primary,Transport Contracts,Third Party Payments,REVENUE
http://statistics.data.gov.uk/id/local-authority/00HY,Wiltshire Council,02/11/2015,1901607020,1995.84,A B Taxis Ltd ,100945,SN12,Neighbourhood & Planning,SEN Primary,Transport Contracts,Third Party Payments,REVENUE
http://statistics.data.gov.uk/id/local-authority/00HY,Wiltshire Council,13/11/2015,1901611055,1425.60,A B Taxis Ltd ,100945,SN12,Neighbourhood & Planning,SEN Primary,Transport Contracts,Third Party Payments,REVENUE
http://statistics.data.gov.uk/id/local-authority/00HY,Wiltshire Council,26/11/2015,1901610893,376.42,A C E Supplies ,126284,BA15,Resources,County Hall Complex,Preventative Property Maintenance,Premises Related,REVENUE
http://statistics.data.gov.uk/id/local-authority/00HY,Wiltshire Council,24/11/2015,1901615156,263.15,A G Minibuses ,100878,BA12,Neighbourhood & Planning,SEN Secondary,Transport Contracts,Third Party Payments,REVENUE
http://statistics.data.gov.uk/id/local-authority/00HY,Wiltshire Council,24/11/2015,1901615156,561.98,A G Minibuses ,100878,BA12,Community Services,CTPLD Place CIC U65,Transport Contracts,Third Party Payments,REVENUE
http://statistics.data.gov.uk/id/local-authority/00HY,Wiltshire Council,24/11/2015,1901615157,461.01,A G Minibuses ,100878,BA12,Neighbourhood & Planning,SEN Primary,Transport Contracts,Third Party Payments,REVENUE
http://statistics.data.gov.uk/id/local-authority/00HY,Wiltshire Council,24/11/2015,1901615157,1383.09,A G Minibuses ,100878,BA12,Neighbourhood & Planning,SEN Secondary,Transport Contracts,Third Party Payments,REVENUE
http://statistics.data.gov.uk/id/local-authority/00HY,Wiltshire Council,24/11/2015,1901615159,1766.94,A G Minibuses ,100878,BA12,Neighbourhood & Planning,Mainstream Primary,Transport Contracts,Third Party Payments,REVENUE
http://statistics.data.gov.uk/id/local-authority/00HY,Wiltshire Council,24/11/2015,1901615160,1898.39,A G Minibuses ,100878,BA12,Neighbourhood & Planning,Mainstream Primary,Transport Contracts,Third Party Payments,REVENUE
http://statistics.data.gov.uk/id/local-authority/00HY,Wiltshire Council,24/11/2015,1901615161,372.00,A G Minibuses ,100878,BA12,Community Services,OVA West Locality,Transport Contracts,Third Party Payments,REVENUE
http://statistics.data.gov.uk/id/local-authority/00HY,Wiltshire Council,24/11/2015,1901615162,13253.86,A G Minibuses ,100878,BA12,Neighbourhood & Planning,Connect 2 Wiltshire,Transport Contracts,Third Party Payments,REVENUE
http://statistics.data.gov.uk/id/local-authority/00HY,Wiltshire Council,24/11/2015,1901615163,950.47,A G Minibuses ,100878,BA12,Community Services,East Locality OP,Transport Contracts,Third Party Payments,REVENUE
http://statistics.data.gov.uk/id/local-authority/00HY,Wiltshire Council,24/11/2015,1901615163,1023.59,A G Minibuses ,100878,BA12,Community Services,MH OP South Locality,Transport Contracts,Third Party Payments,REVENUE
http://statistics.data.gov.uk/id/local-authority/00HY,Wiltshire Council,24/11/2015,1901615165,907.17,A G Minibuses ,100878,BA12,Neighbourhood & Planning,Connect 2 Wiltshire,Transport Contracts,Third Party Payments,REVENUE
http://statistics.data.gov.uk/id/local-authority/00HY,Wiltshire Council,24/11/2015,1901615165,997.50,A G Minibuses ,100878,BA12,Neighbourhood & Planning,Mainstream Primary,Transport Contracts,Third Party Payments,REVENUE
http://statistics.data.gov.uk/id/local-authority/00HY,Wiltshire Council,24/11/2015,1901615165,1588.52,A G Minibuses ,100878,BA12,Neighbourhood & Planning,Public Transport,Transport Contracts,Third Party Payments,REVENUE
http://statistics.data.gov.uk/id/local-authority/00HY,Wiltshire Council,24/11/2015,1901615166,1583.33,A G Minibuses ,100878,BA12,Neighbourhood & Planning,Mainstream Secondary,Transport Contracts,Third Party Payments,REVENUE
http://statistics.data.gov.uk/id/local-authority/00HY,Wiltshire Council,24/11/2015,1901615166,4564.46,A G Minibuses ,100878,BA12,Neighbourhood & Planning,Connect 2 Wiltshire,Transport Contracts,Third Party Payments,REVENUE
http://statistics.data.gov.uk/id/local-authority/00HY,Wiltshire Council,24/11/2015,1901615167,1237.50,A G Minibuses ,100878,BA12,Neighbourhood & Planning,SEN Secondary,Transport Contracts,Third Party Payments,REVENUE
http://statistics.data.gov.uk/id/local-authority/00HY,Wiltshire Council,24/11/2015,1901615168,1245.00,A G Minibuses ,100878,BA12,Neighbourhood & Planning,SEN Secondary,Transport Contracts,Third Party Payments,REVENUE
http://statistics.data.gov.uk/id/local-authority/00HY,Wiltshire Council,24/11/2015,1901615170,1275.00,A G Minibuses ,100878,BA12,Neighbourhood & Planning,SEN Primary,Transport Contracts,Third Party Payments,REVENUE
http://statistics.data.gov.uk/id/local-authority/00HY,Wiltshire Council,25/11/2015,1901622924,955.23,A G Minibuses ,100878,BA12,Neighbourhood & Planning,Mainstream Secondary,Transport Contracts,Third Party Payments,REVENUE
http://statistics.data.gov.uk/id/local-authority/00HY,Wiltshire Council,25/11/2015,1901622930,1436.55,A G Minibuses ,100878,BA12,Community Services,CTPLD Place CIC U65,Transport Contracts,Third Party Payments,REVENUE
http://statistics.data.gov.uk/id/local-authority/00HY,Wiltshire Council,27/11/2015,1901623900,1072.00,A G Minibuses ,100878,BA12,Neighbourhood & Planning,Mainstream 16+ FE,Transport Contracts,Third Party Payments,REVENUE
http://statistics.data.gov.uk/id/local-authority/00HY,Wiltshire Council,30/11/2015,1901624079,2811.52,A G Minibuses ,100878,BA12,Neighbourhood & Planning,SEN Primary,Transport Contracts,Third Party Payments,REVENUE
http://statistics.data.gov.uk/id/local-authority/00HY,Wiltshire Council,30/11/2015,1901624082,419.56,A G Minibuses ,100878,BA12,Neighbourhood & Planning,SEN Primary,Transport Contracts,Third Party Payments,REVENUE
http://statistics.data.gov.uk/id/local-authority/00HY,Wiltshire Council,30/11/2015,1901624082,559.41,A G Minibuses ,100878,BA12,Children & Education,CDT S&W,Transport Contracts,Third Party Payments,REVENUE
http://statistics.data.gov.uk/id/local-authority/00HY,Wiltshire Council,30/11/2015,1901624082,1258.67,A G Minibuses ,100878,BA12,Neighbourhood & Planning,SEN Secondary,Transport Contracts,Third Party Payments,REVENUE
http://statistics.data.gov.uk/id/local-authority/00HY,Wiltshire Council,30/11/2015,1901624085,472.00,A G Minibuses ,100878,BA12,Neighbourhood & Planning,SEN Primary,Transport Contracts,Third Party Payments,REVENUE
http://statistics.data.gov.uk/id/local-authority/00HY,Wiltshire Council,30/11/2015,1901624085,708.00,A G Minibuses ,100878,BA12,Neighbourhood & Planning,SEN Secondary,Transport Contracts,Third Party Payments,REVENUE
http://statistics.data.gov.uk/id/local-authority/00HY,Wiltshire Council,30/11/2015,1901624086,432.00,A G Minibuses ,100878,BA12,Neighbourhood & Planning,SEN Secondary,Transport Contracts,Third Party Payments,REVENUE
http://statistics.data.gov.uk/id/local-authority/00HY,Wiltshire Council,30/11/2015,1901624086,936.00,A G Minibuses ,100878,BA12,Neighbourhood & Planning,SEN Primary,Transport Contracts,Third Party Payments,REVENUE
http://statistics.data.gov.uk/id/local-authority/00HY,Wiltshire Council,30/11/2015,1901624087,337.27,A G Minibuses ,100878,BA12,Neighbourhood & Planning,SEN Secondary,Transport Contracts,Third Party Payments,REVENUE
http://statistics.data.gov.uk/id/local-authority/00HY,Wiltshire Council,30/11/2015,1901624087,337.28,A G Minibuses ,100878,BA12,Neighbourhood & Planning,SEN Primary,Transport Contracts,Third Party Payments,REVENUE
http://statistics.data.gov.uk/id/local-authority/00HY,Wiltshire Council,30/11/2015,1901624089,1394.00,A G Minibuses ,100878,BA12,Neighbourhood & Planning,Mainstream Primary,Transport Contracts,Third Party Payments,REVENUE
http://statistics.data.gov.uk/id/local-authority/00HY,Wiltshire Council,18/11/2015,5106782808,4960.00,A H Shorney Plant and Agricultural Hire,138694,SP5 ,Wiltshire Council,Wiltshire Council,Highways - Other Materials,Supplies and Services,CAPITAL
http://statistics.data.gov.uk/id/local-authority/00HY,Wiltshire Council,19/11/2015,1901613903,525.00,A P Taxis ,100628,SN12,Neighbourhood & Planning,SEN Secondary,Transport Contracts,Third Party Payments,REVENUE
http://statistics.data.gov.uk/id/local-authority/00HY,Wiltshire Council,06/11/2015,1901608716,748.00,A1 Cab Company ,101233,SP4 ,Community Services,CTPLD Place CIC U65,Transport Contracts,Third Party Payments,REVENUE
http://statistics.data.gov.uk/id/local-authority/00HY,Wiltshire Council,06/11/2015,1901608717,520.00,A1 Cab Company ,101233,SP4 ,Neighbourhood & Planning,SEN Secondary,Transport Contracts,Third Party Payments,REVENUE
http://statistics.data.gov.uk/id/local-authority/00HY,Wiltshire Council,06/11/2015,1901608717,1040.00,A1 Cab Company ,101233,SP4 ,Neighbourhood & Planning,SEN Primary,Transport Contracts,Third Party Payments,REVENUE
http://statistics.data.gov.uk/id/local-authority/00HY,Wiltshire Council,06/11/2015,1901608719,983.90,A1 Cab Company ,101233,SP4 ,Neighbourhood & Planning,SEN Primary,Transport Contracts,Third Party Payments,REVENUE
http://statistics.data.gov.uk/id/local-authority/00HY,Wiltshire Council,06/11/2015,1901608724,685.72,A1 Cab Company ,101233,SP4 ,Neighbourhood & Planning,Mainstream Secondary,Transport Contracts,Third Party Payments,REVENUE
http://statistics.data.gov.uk/id/local-authority/00HY,Wiltshire Council,19/11/2015,1901613922,386.32,A1 Cab Company ,101233,SP4 ,Neighbourhood & Planning,Mainstream Secondary,Transport Contracts,Third Party Payments,REVENUE
http://statistics.data.gov.uk/id/local-authority/00HY,Wiltshire Council,19/11/2015,1901613922,386.33,A1 Cab Company ,101233,SP4 ,Neighbourhood & Planning,SEN Secondary,Transport Contracts,Third Party Payments,REVENUE
http://statistics.data.gov.uk/id/local-authority/00HY,Wiltshire Council,26/11/2015,1901623153,10916.16,A2 Winchester Ltd ,101167,SO23,Neighbourhood & Planning,HousingStrategy,Payments to Contractors - Other,Third Party Payments,REVENUE
http://statistics.data.gov.uk/id/local-authority/00HY,Wiltshire Council,27/11/2015,5106781702,1425.00,Aareon Uk Ltd ,113252,CV8 ,Wiltshire Council,Wiltshire Council,ICT - Support arrangements,Supplies and Services,CAPITAL
http://statistics.data.gov.uk/id/local-authority/00HY,Wiltshire Council,27/11/2015,5106781704,713.00,Aareon Uk Ltd ,113252,CV8 ,Wiltshire Council,Wiltshire Council,ICT - Support arrangements,Supplies and Services,CAPITAL
http://statistics.data.gov.uk/id/local-authority/00HY,Wiltshire Council,04/11/2015,1901607679,265.10,Abbey Taxis (Swindon) Ltd ,100920,SN2 ,Neighbourhood & Planning,SEN Secondary,Transport Contracts,Third Party Payments,REVENUE
http://statistics.data.gov.uk/id/local-authority/00HY,Wiltshire Council,04/11/2015,1901607679,2279.90,Abbey Taxis (Swindon) Ltd ,100920,SN2 ,Neighbourhood & Planning,SEN Primary,Transport Contracts,Third Party Payments,REVENUE
http://statistics.data.gov.uk/id/local-authority/00HY,Wiltshire Council,06/11/2015,1901608703,285.00,Abbey Taxis (Swindon) Ltd ,100920,SN2 ,Children & Education,LAC & 16+ North,Transport Contracts,Third Party Payments,REVENUE
http://statistics.data.gov.uk/id/local-authority/00HY,Wiltshire Council,06/11/2015,1901608704,279.50,Abbey Taxis (Swindon) Ltd ,100920,SN2 ,Neighbourhood & Planning,SEN Post 19,Transport Contracts,Third Party Payments,REVENUE
http://statistics.data.gov.uk/id/local-authority/00HY,Wiltshire Council,06/11/2015,1901608709,565.39,Abbey Taxis (Swindon) Ltd ,100920,SN2 ,Neighbourhood & Planning,SEN Secondary,Transport Contracts,Third Party Payments,REVENUE
http://statistics.data.gov.uk/id/local-authority/00HY,Wiltshire Council,06/11/2015,1901608709,904.61,Abbey Taxis (Swindon) Ltd ,100920,SN2 ,Neighbourhood & Planning,SEN Primary,Transport Contracts,Third Party Payments,REVENUE
http://statistics.data.gov.uk/id/local-authority/00HY,Wiltshire Council,06/11/2015,1901608713,264.00,Abbey Taxis (Swindon) Ltd ,100920,SN2 ,Neighbourhood & Planning,SEN 16+ Secondary,Transport Contracts,Third Party Payments,REVENUE
http://statistics.data.gov.uk/id/local-authority/00HY,Wiltshire Council,06/11/2015,1901608713,264.00,Abbey Taxis (Swindon) Ltd ,100920,SN2 ,Neighbourhood & Planning,SEN 16+ FE Colleges,Transport Contracts,Third Party Payments,REVENUE
http://statistics.data.gov.uk/id/local-authority/00HY,Wiltshire Council,09/11/2015,1901609148,600.00,Abbey Taxis (Swindon) Ltd ,100920,SN2 ,Neighbourhood & Planning,Mainstream Secondary,Transport Contracts,Third Party Payments,REVENUE
http://statistics.data.gov.uk/id/local-authority/00HY,Wiltshire Council,11/11/2015,1901610255,1170.00,Abbey Taxis (Swindon) Ltd ,100920,SN2 ,Neighbourhood & Planning,SEN Primary,Transport Contracts,Third Party Payments,REVENUE
http://statistics.data.gov.uk/id/local-authority/00HY,Wiltshire Council,11/11/2015,1901610257,1620.00,Abbey Taxis (Swindon) Ltd ,100920,SN2 ,Neighbourhood & Planning,SEN Primary,Transport Contracts,Third Party Payments,REVENUE
http://statistics.data.gov.uk/id/local-authority/00HY,Wiltshire Council,11/11/2015,1901610260,425.00,Abbey Taxis (Swindon) Ltd ,100920,SN2 ,Neighbourhood & Planning,SEN 16+ FE Colleges,Transport Contracts,Third Party Payments,REVENUE
http://statistics.data.gov.uk/id/local-authority/00HY,Wiltshire Council,13/11/2015,1901611052,1812.60,Abbey Taxis (Swindon) Ltd ,100920,SN2 ,Neighbourhood & Planning,SEN Secondary,Transport Contracts,Third Party Payments,REVENUE
http://statistics.data.gov.uk/id/local-authority/00HY,Wiltshire Council,13/11/2015,1901611069,1050.00,Abbey Taxis (Swindon) Ltd ,100920,SN2 ,Neighbourhood & Planning,Mainstream Primary,Transport Contracts,Third Party Payments,REVENUE
http://statistics.data.gov.uk/id/local-authority/00HY,Wiltshire Council,13/11/2015,1901611085,964.26,Abbey Taxis (Swindon) Ltd ,100920,SN2 ,Neighbourhood & Planning,Mainstream Secondary,Transport Contracts,Third Party Payments,REVENUE
http://statistics.data.gov.uk/id/local-authority/00HY,Wiltshire Council,16/11/2015,1901611277,476.79,Abbey Taxis (Swindon) Ltd ,100920,SN2 ,Neighbourhood & Planning,SEN 16+ FE Colleges,Transport Contracts,Third Party Payments,REVENUE
http://statistics.data.gov.uk/id/local-authority/00HY,Wiltshire Council,16/11/2015,1901611277,578.96,Abbey Taxis (Swindon) Ltd ,100920,SN2 ,Children & Education,EOTAS Service,Transport Contracts,Third Party Payments,REVENUE
http://statistics.data.gov.uk/id/local-authority/00HY,Wiltshire Council,16/11/2015,1901611277,749.25,Abbey Taxis (Swindon) Ltd ,100920,SN2 ,Children & Education,S&W 0-25 SEND Locali,Transport Contracts,Third Party Payments,REVENUE
http://statistics.data.gov.uk/id/local-authority/00HY,Wiltshire Council,16/11/2015,1901611280,1770.00,Abbey Taxis (Swindon) Ltd ,100920,SN2 ,Neighbourhood & Planning,SEN Primary,Transport Contracts,Third Party Payments,REVENUE
http://statistics.data.gov.uk/id/local-authority/00HY,Wiltshire Council,16/11/2015,1901611281,660.00,Abbey Taxis (Swindon) Ltd ,100920,SN2 ,Neighbourhood & Planning,SEN Secondary,Transport Contracts,Third Party Payments,REVENUE
http://statistics.data.gov.uk/id/local-authority/00HY,Wiltshire Council,16/11/2015,1901611281,990.00,Abbey Taxis (Swindon) Ltd ,100920,SN2 ,Neighbourhood & Planning,SEN Primary,Transport Contracts,Third Party Payments,REVENUE
http://statistics.data.gov.uk/id/local-authority/00HY,Wiltshire Council,16/11/2015,1901611282,294.00,Abbey Taxis (Swindon) Ltd ,100920,SN2 ,Community Services,East Locality OP,Transport Contracts,Third Party Payments,REVENUE
http://statistics.data.gov.uk/id/local-authority/00HY,Wiltshire Council,19/11/2015,1901613877,1190.00,Abbey Taxis (Swindon) Ltd ,100920,SN2 ,Neighbourhood & Planning,SEN Primary,Transport Contracts,Third Party Payments,REVENUE
http://statistics.data.gov.uk/id/local-authority/00HY,Wiltshire Council,19/11/2015,1901613878,840.00,Abbey Taxis (Swindon) Ltd ,100920,SN2 ,Neighbourhood & Planning,SEN Primary,Transport Contracts,Third Party Payments,REVENUE
http://statistics.data.gov.uk/id/local-authority/00HY,Wiltshire Council,19/11/2015,1901613890,729.00,Abbey Taxis (Swindon) Ltd ,100920,SN2 ,Community Services,CTPLD Place CIC U65,Transport Contracts,Third Party Payments,REVENUE
http://statistics.data.gov.uk/id/local-authority/00HY,Wiltshire Council,20/11/2015,1901614256,360.30,Abbey Taxis (Swindon) Ltd ,100920,SN2 ,Neighbourhood & Planning,Mainstream Primary,Transport Contracts,Third Party Payments,REVENUE
http://statistics.data.gov.uk/id/local-authority/00HY,Wiltshire Council,20/11/2015,1901614256,360.30,Abbey Taxis (Swindon) Ltd ,100920,SN2 ,Neighbourhood & Planning,SEN Secondary,Transport Contracts,Third Party Payments,REVENUE
http://statistics.data.gov.uk/id/local-authority/00HY,Wiltshire Council,20/11/2015,1901614256,1080.90,Abbey Taxis (Swindon) Ltd ,100920,SN2 ,Neighbourhood & Planning,SEN Primary,Transport Contracts,Third Party Payments,REVENUE
http://statistics.data.gov.uk/id/local-authority/00HY,Wiltshire Council,20/11/2015,1901614259,1610.00,Abbey Taxis (Swindon) Ltd ,100920,SN2 ,Neighbourhood & Planning,SEN Secondary,Transport Contracts,Third Party Payments,REVENUE
http://statistics.data.gov.uk/id/local-authority/00HY,Wiltshire Council,20/11/2015,1901614274,1050.00,Abbey Taxis (Swindon) Ltd ,100920,SN2 ,Neighbourhood & Planning,SEN Primary,Transport Contracts,Third Party Payments,REVENUE
http://statistics.data.gov.uk/id/local-authority/00HY,Wiltshire Council,20/11/2015,1901614275,417.86,Abbey Taxis (Swindon) Ltd ,100920,SN2 ,Neighbourhood & Planning,Mainstream Primary,Transport Contracts,Third Party Payments,REVENUE
http://statistics.data.gov.uk/id/local-authority/00HY,Wiltshire Council,20/11/2015,1901614275,1532.14,Abbey Taxis (Swindon) Ltd ,100920,SN2 ,Neighbourhood & Planning,SEN Primary,Transport Contracts,Third Party Payments,REVENUE
http://statistics.data.gov.uk/id/local-authority/00HY,Wiltshire Council,23/11/2015,1901614889,829.80,Abbey Taxis (Swindon) Ltd ,100920,SN2 ,Neighbourhood & Planning,SEN Secondary,Transport Contracts,Third Party Payments,REVENUE
http://statistics.data.gov.uk/id/local-authority/00HY,Wiltshire Council,23/11/2015,1901614900,680.00,Abbey Taxis (Swindon) Ltd ,100920,SN2 ,Neighbourhood & Planning,SEN Secondary,Transport Contracts,Third Party Payments,REVENUE
http://statistics.data.gov.uk/id/local-authority/00HY,Wiltshire Council,23/11/2015,1901614900,680.00,Abbey Taxis (Swindon) Ltd ,100920,SN2 ,Neighbourhood & Planning,SEN 16+ Secondary,Transport Contracts,Third Party Payments,REVENUE
http://statistics.data.gov.uk/id/local-authority/00HY,Wiltshire Council,23/11/2015,1901614882,960.00,Abbey Taxis Ltd ,101080,BA2 ,Neighbourhood & Planning,SEN Secondary,Transport Contracts,Third Party Payments,REVENUE
http://statistics.data.gov.uk/id/local-authority/00HY,Wiltshire Council,27/11/2015,1901609658,421.47,Abicare Services Ltd Homecare ,110031,SP2 ,Community Services,HTLAH - Neighbourhoo,Interim Support Plan - HTLAH,Third Party Payments,REVENUE
http://statistics.data.gov.uk/id/local-authority/00HY,Wiltshire Council,06/11/2015,5106777267,340.11,Abicare Services Ltd Homecare ,110031,SP2 ,Community Services,CTPLD Place CIC U65,Adult Domiciliary Care - Spot Contribution,Income,REVENUE
http://statistics.data.gov.uk/id/local-authority/00HY,Wiltshire Council,06/11/2015,5106779620,482.25,Abicare Services Ltd Homecare ,110031,SP2 ,Community Services,West Locality OP,Adult Domiciliary Care - Spot Contribution,Income,REVENUE
http://statistics.data.gov.uk/id/local-authority/00HY,Wiltshire Council,06/11/2015,5106779701,470.31,Abicare Services Ltd Homecare ,110031,SP2 ,Community Services,OVA East Locality,Adult Domiciliary Care - Spot,Third Party Payments,REVENUE
http://statistics.data.gov.uk/id/local-authority/00HY,Wiltshire Council,16/11/2015,5106779905,340.11,Abicare Services Ltd Homecare ,110031,SP2 ,Community Services,CTPLD Place CIC U65,Adult Domiciliary Care - Spot Contribution,Income,REVENUE
http://statistics.data.gov.uk/id/local-authority/00HY,Wiltshire Council,23/11/2015,5106782417,340.11,Abicare Services Ltd Homecare ,110031,SP2 ,Community Services,CTPLD Place CIC U65,Adult Domiciliary Care - Spot Contribution,Income,REVENUE
http://statistics.data.gov.uk/id/local-authority/00HY,Wiltshire Council,19/11/2015,5106789623,419.02,Abicare Services Ltd Homecare ,110031,SP2 ,Community Services,East Locality OP,Adult Domiciliary Care - Spot,Third Party Payments,REVENUE
http://statistics.data.gov.uk/id/local-authority/00HY,Wiltshire Council,20/11/2015,5106789633,419.02,Abicare Services Ltd Homecare ,110031,SP2 ,Community Services,East Locality OP,Adult Domiciliary Care - Spot,Third Party Payments,REVENUE
http://statistics.data.gov.uk/id/local-authority/00HY,Wiltshire Council,30/11/2015,5106790012,340.11,Abicare Services Ltd Homecare ,110031,SP2 ,Community Services,CTPLD Place CIC U65,Adult Domiciliary Care - Spot Contribution,Income,REVENUE
http://statistics.data.gov.uk/id/local-authority/00HY,Wiltshire Council,23/11/2015,5106790198,419.02,Abicare Services Ltd Homecare ,110031,SP2 ,Community Services,East Locality OP,Adult Domiciliary Care - Spot,Third Party Payments,REVENUE
http://statistics.data.gov.uk/id/local-authority/00HY,Wiltshire Council,04/11/2015,5106768088,723.38,Abicare Services Ltd Live in Care. ,113071,SP2 ,Community Services,CTPLD Place CIC U65,Adult Domiciliary Care - Live in Care,Third Party Payments,REVENUE
http://statistics.data.gov.uk/id/local-authority/00HY,Wiltshire Council,06/11/2015,5106772619,723.38,Abicare Services Ltd Live in Care. ,113071,SP2 ,Community Services,CTPLD Place CIC U65,Adult Domiciliary Care - Live in Care,Third Party Payments,REVENUE
http://statistics.data.gov.uk/id/local-authority/00HY,Wiltshire Council,13/11/2015,5106775683,723.38,Abicare Services Ltd Live in Care. ,113071,SP2 ,Community Services,CTPLD Place CIC U65,Adult Domiciliary Care - Live in Care,Third Party Payments,REVENUE
http://statistics.data.gov.uk/id/local-authority/00HY,Wiltshire Council,20/11/2015,5106777844,723.38,Abicare Services Ltd Live in Care. ,113071,SP2 ,Community Services,CTPLD Place CIC U65,Adult Domiciliary Care - Live in Care,Third Party Payments,REVENUE
http://statistics.data.gov.uk/id/local-authority/00HY,Wiltshire Council,06/11/2015,5106779458,756.05,Abicare Services Ltd Live in Care. ,113071,SP2 ,Community Services,MH OP North Locality,Adult Domiciliary care - Live in contribution,Income,REVENUE
http://statistics.data.gov.uk/id/local-authority/00HY,Wiltshire Council,06/11/2015,5106779459,768.48,Abicare Services Ltd Live in Care. ,113071,SP2 ,Community Services,OVA North Locality,Adult Domiciliary care - Live in contribution,Income,REVENUE
http://statistics.data.gov.uk/id/local-authority/00HY,Wiltshire Council,06/11/2015,5106779610,822.78,Abicare Services Ltd Live in Care. ,113071,SP2 ,Community Services,South Locality OP,Adult Domiciliary Care - Live in Care,Third Party Payments,REVENUE
http://statistics.data.gov.uk/id/local-authority/00HY,Wiltshire Council,06/11/2015,5106779611,708.90,Abicare Services Ltd Live in Care. ,113071,SP2 ,Community Services,East Locality OP,Adult Domiciliary care - Live in contribution,Income,REVENUE
http://statistics.data.gov.uk/id/local-authority/00HY,Wiltshire Council,06/11/2015,5106779623,708.90,Abicare Services Ltd Live in Care. ,113071,SP2 ,Community Services,East Locality OP,Adult Domiciliary care - Live in contribution,Income,REVENUE
http://statistics.data.gov.uk/id/local-authority/00HY,Wiltshire Council,06/11/2015,5106779624,768.48,Abicare Services Ltd Live in Care. ,113071,SP2 ,Community Services,OVA North Locality,Adult Domiciliary care - Live in contribution,Income,REVENUE
http://statistics.data.gov.uk/id/local-authority/00HY,Wiltshire Council,13/11/2015,5106782372,756.05,Abicare Services Ltd Live in Care. ,113071,SP2 ,Community Services,MH OP North Locality,Adult Domiciliary care - Live in contribution,Income,REVENUE
http://statistics.data.gov.uk/id/local-authority/00HY,Wiltshire Council,13/11/2015,5106782373,768.48,Abicare Services Ltd Live in Care. ,113071,SP2 ,Community Services,OVA North Locality,Adult Domiciliary care - Live in contribution,Income,REVENUE
http://statistics.data.gov.uk/id/local-authority/00HY,Wiltshire Council,13/11/2015,5106782374,708.90,Abicare Services Ltd Live in Care. ,113071,SP2 ,Community Services,East Locality OP,Adult Domiciliary care - Live in contribution,Income,REVENUE
http://statistics.data.gov.uk/id/local-authority/00HY,Wiltshire Council,13/11/2015,5106782375,822.78,Abicare Services Ltd Live in Care. ,113071,SP2 ,Community Services,South Locality OP,Adult Domiciliary Care - Live in Care,Third Party Payments,REVENUE
http://statistics.data.gov.uk/id/local-authority/00HY,Wiltshire Council,13/11/2015,5106782376,593.19,Abicare Services Ltd Live in Care. ,113071,SP2 ,Community Services,East Locality OP,Adult Domiciliary care - Live in contribution,Income,REVENUE
http://statistics.data.gov.uk/id/local-authority/00HY,Wiltshire Council,27/11/2015,5106782377,723.38,Abicare Services Ltd Live in Care. ,113071,SP2 ,Community Services,CTPLD Place CIC U65,Adult Domiciliary Care - Live in Care,Third Party Payments,REVENUE
http://statistics.data.gov.uk/id/local-authority/00HY,Wiltshire Council,13/11/2015,5106782409,1542.38,Abicare Services Ltd Live in Care. ,113071,SP2 ,Community Services,East Locality OP,Adult Domiciliary Care - Live in Care,Third Party Payments,REVENUE
http://statistics.data.gov.uk/id/local-authority/00HY,Wiltshire Council,19/11/2015,5106789624,593.19,Abicare Services Ltd Live in Care. ,113071,SP2 ,Community Services,East Locality OP,Adult Domiciliary care - Live in contribution,Income,REVENUE
http://statistics.data.gov.uk/id/local-authority/00HY,Wiltshire Council,20/11/2015,5106789626,1542.38,Abicare Services Ltd Live in Care. ,113071,SP2 ,Community Services,East Locality OP,Adult Domiciliary Care - Live in Care,Third Party Payments,REVENUE
http://statistics.data.gov.uk/id/local-authority/00HY,Wiltshire Council,20/11/2015,5106790000,708.90,Abicare Services Ltd Live in Care. ,113071,SP2 ,Community Services,East Locality OP,Adult Domiciliary care - Live in contribution,Income,REVENUE
http://statistics.data.gov.uk/id/local-authority/00HY,Wiltshire Council,20/11/2015,5106790002,768.48,Abicare Services Ltd Live in Care. ,113071,SP2 ,Community Services,OVA North Locality,Adult Domiciliary care - Live in contribution,Income,REVENUE
http://statistics.data.gov.uk/id/local-authority/00HY,Wiltshire Council,20/11/2015,5106790003,756.05,Abicare Services Ltd Live in Care. ,113071,SP2 ,Community Services,MH OP North Locality,Adult Domiciliary care - Live in contribution,Income,REVENUE
http://statistics.data.gov.uk/id/local-authority/00HY,Wiltshire Council,24/11/2015,5106790608,1542.38,Abicare Services Ltd Live in Care. ,113071,SP2 ,Community Services,East Locality OP,Adult Domiciliary Care - Live in Care,Third Party Payments,REVENUE
http://statistics.data.gov.uk/id/local-authority/00HY,Wiltshire Council,24/11/2015,5106790609,768.48,Abicare Services Ltd Live in Care. ,113071,SP2 ,Community Services,OVA North Locality,Adult Domiciliary care - Live in contribution,Income,REVENUE
http://statistics.data.gov.uk/id/local-authority/00HY,Wiltshire Council,24/11/2015,5106790610,756.05,Abicare Services Ltd Live in Care. ,113071,SP2 ,Community Services,MH OP North Locality,Adult Domiciliary care - Live in contribution,Income,REVENUE
http://statistics.data.gov.uk/id/local-authority/00HY,Wiltshire Council,25/11/2015,5106790777,593.19,Abicare Services Ltd Live in Care. ,113071,SP2 ,Community Services,East Locality OP,Adult Domiciliary care - Live in contribution,Income,REVENUE
http://statistics.data.gov.uk/id/local-authority/00HY,Wiltshire Council,25/11/2015,5106790800,708.90,Abicare Services Ltd Live in Care. ,113071,SP2 ,Community Services,East Locality OP,Adult Domiciliary care - Live in contribution,Income,REVENUE
http://statistics.data.gov.uk/id/local-authority/00HY,Wiltshire Council,26/11/2015,5106790898,593.19,Abicare Services Ltd Live in Care. ,113071,SP2 ,Community Services,East Locality OP,Adult Domiciliary care - Live in contribution,Income,REVENUE
http://statistics.data.gov.uk/id/local-authority/00HY,Wiltshire Council,26/11/2015,5106790900,768.48,Abicare Services Ltd Live in Care. ,113071,SP2 ,Community Services,OVA North Locality,Adult Domiciliary care - Live in contribution,Income,REVENUE
http://statistics.data.gov.uk/id/local-authority/00HY,Wiltshire Council,26/11/2015,5106790901,756.05,Abicare Services Ltd Live in Care. ,113071,SP2 ,Community Services,MH OP North Locality,Adult Domiciliary care - Live in contribution,Income,REVENUE
http://statistics.data.gov.uk/id/local-authority/00HY,Wiltshire Council,18/11/2015,5106775891,4374.56,Ability Associates Ltd ,110033,SP3 ,Community Services,CTPLD Place CIC U65,Adult Residential Placements - Spot Purchase,Third Party Payments,REVENUE
http://statistics.data.gov.uk/id/local-authority/00HY,Wiltshire Council,18/11/2015,5106775893,6446.72,Ability Associates Ltd ,110033,SP3 ,Community Services,CTPLD Place CIC U65,Adult Residential Placements - Spot Purchase,Third Party Payments,REVENUE
http://statistics.data.gov.uk/id/local-authority/00HY,Wiltshire Council,18/11/2015,5106775895,6446.72,Ability Associates Ltd ,110033,SP3 ,Community Services,CTPLD Place CIC U65,Adult Residential Placements - Spot Purchase,Third Party Payments,REVENUE
http://statistics.data.gov.uk/id/local-authority/00HY,Wiltshire Council,18/11/2015,5106775897,6446.72,Ability Associates Ltd ,110033,SP3 ,Community Services,CTPLD Place CIC U65,Adult Residential Placements - Spot Purchase,Third Party Payments,REVENUE
http://statistics.data.gov.uk/id/local-authority/00HY,Wiltshire Council,18/11/2015,5106775899,6446.72,Ability Associates Ltd ,110033,SP3 ,Community Services,CTPLD Place CIC U65,Adult Residential Placements - Spot Purchase,Third Party Payments,REVENUE
http://statistics.data.gov.uk/id/local-authority/00HY,Wiltshire Council,18/11/2015,5106775901,6446.72,Ability Associates Ltd ,110033,SP3 ,Community Services,CTPLD Place CIC U65,Adult Residential Placements - Spot Purchase,Third Party Payments,REVENUE
http://statistics.data.gov.uk/id/local-authority/00HY,Wiltshire Council,18/11/2015,5106775903,6446.72,Ability Associates Ltd ,110033,SP3 ,Community Services,CTPLD Place CIC U65,Adult Residential Placements - Spot Purchase,Third Party Payments,REVENUE
http://statistics.data.gov.uk/id/local-authority/00HY,Wiltshire Council,18/11/2015,5106775905,6446.72,Ability Associates Ltd ,110033,SP3 ,Community Services,CTPLD Place CIC U65,Adult Residential Placements - Spot Purchase,Third Party Payments,REVENUE
http://statistics.data.gov.uk/id/local-authority/00HY,Wiltshire Council,18/11/2015,5106775907,6446.72,Ability Associates Ltd ,110033,SP3 ,Community Services,CTPLD Place CIC U65,Adult Residential Placements - Spot Purchase,Third Party Payments,REVENUE
http://statistics.data.gov.uk/id/local-authority/00HY,Wiltshire Council,18/11/2015,5106775909,3683.84,Ability Associates Ltd ,110033,SP3 ,Community Services,CTPLD Place CIC U65,Adult Residential Placements - Spot Purchase,Third Party Payments,REVENUE
http://statistics.data.gov.uk/id/local-authority/00HY,Wiltshire Council,18/11/2015,5106775911,2790.84,Ability Associates Ltd ,110033,SP3 ,Community Services,CTPLD Place CIC U65,Adult Residential Placements - Spot Purchase,Third Party Payments,REVENUE
http://statistics.data.gov.uk/id/local-authority/00HY,Wiltshire Council,18/11/2015,5106775914,6512.04,Ability Associates Ltd ,110033,SP3 ,Community Services,CTPLD Place CIC U65,Adult Residential Placements - Spot Purchase,Third Party Payments,REVENUE
http://statistics.data.gov.uk/id/local-authority/00HY,Wiltshire Council,18/11/2015,5106775916,6512.04,Ability Associates Ltd ,110033,SP3 ,Community Services,CTPLD Place CIC U65,Adult Residential Placements - Spot Purchase,Third Party Payments,REVENUE
http://statistics.data.gov.uk/id/local-authority/00HY,Wiltshire Council,18/11/2015,5106775918,6512.04,Ability Associates Ltd ,110033,SP3 ,Community Services,CTPLD Place CIC U65,Adult Residential Placements - Spot Purchase,Third Party Payments,REVENUE
http://statistics.data.gov.uk/id/local-authority/00HY,Wiltshire Council,18/11/2015,5106775920,6512.04,Ability Associates Ltd ,110033,SP3 ,Community Services,CTPLD Place CIC U65,Adult Residential Placements - Spot Purchase,Third Party Payments,REVENUE
http://statistics.data.gov.uk/id/local-authority/00HY,Wiltshire Council,18/11/2015,5106775922,6512.04,Ability Associates Ltd ,110033,SP3 ,Community Services,CTPLD Place CIC U65,Adult Residential Placements - Spot Purchase,Third Party Payments,REVENUE
http://statistics.data.gov.uk/id/local-authority/00HY,Wiltshire Council,18/11/2015,5106775924,6512.04,Ability Associates Ltd ,110033,SP3 ,Community Services,CTPLD Place CIC U65,Adult Residential Placements - Spot Purchase,Third Party Payments,REVENUE
http://statistics.data.gov.uk/id/local-authority/00HY,Wiltshire Council,18/11/2015,5106775926,6512.04,Ability Associates Ltd ,110033,SP3 ,Community Services,CTPLD Place CIC U65,Adult Residential Placements - Spot Purchase,Third Party Payments,REVENUE
http://statistics.data.gov.uk/id/local-authority/00HY,Wiltshire Council,18/11/2015,5106775928,6512.04,Ability Associates Ltd ,110033,SP3 ,Community Services,CTPLD Place CIC U65,Adult Residential Placements - Spot Purchase,Third Party Payments,REVENUE
http://statistics.data.gov.uk/id/local-authority/00HY,Wiltshire Council,18/11/2015,5106782632,4110.00,Ability Associates Ltd ,110033,SP3 ,Community Services,CTPLD Place CIC U65,Supported Living - Without SP payments,Third Party Payments,REVENUE
http://statistics.data.gov.uk/id/local-authority/00HY,Wiltshire Council,18/11/2015,5106782634,2585.00,Ability Associates Ltd ,110033,SP3 ,Community Services,CTPLD Place CIC U65,Supported Living - Without SP payments,Third Party Payments,REVENUE
http://statistics.data.gov.uk/id/local-authority/00HY,Wiltshire Council,18/11/2015,5106786479,4728.92,Ability Associates Ltd ,110033,SP3 ,Community Services,CTPLD Place CIC U65,Adult Residential Placements - Spot Purchase,Third Party Payments,REVENUE
http://statistics.data.gov.uk/id/local-authority/00HY,Wiltshire Council,18/11/2015,5106787124,6064.00,Ability Associates Ltd ,110033,SP3 ,Community Services,CTPLD Place CIC U65,Adult Residential Placements - Spot Purchase,Third Party Payments,REVENUE
http://statistics.data.gov.uk/id/local-authority/00HY,Wiltshire Council,18/11/2015,5106787199,6446.72,Ability Associates Ltd ,110033,SP3 ,Community Services,CTPLD Place CIC U65,Adult Residential Placements - Spot Purchase,Third Party Payments,REVENUE
http://statistics.data.gov.uk/id/local-authority/00HY,Wiltshire Council,18/11/2015,5106787302,4651.16,Ability Associates Ltd ,110033,SP3 ,Community Services,CTPLD Place CIC U65,Adult Residential Placements - Spot Purchase,Third Party Payments,REVENUE
http://statistics.data.gov.uk/id/local-authority/00HY,Wiltshire Council,18/11/2015,5106787383,6512.04,Ability Associates Ltd ,110033,SP3 ,Community Services,CTPLD Place CIC U65,Adult Residential Placements - Spot Purchase,Third Party Payments,REVENUE
http://statistics.data.gov.uk/id/local-authority/00HY,Wiltshire Council,24/11/2015,1901615307,2022.44,ABLE ,101029,BA14,Community Services,MH Commissioned Cont,Payments to Contractors - Other,Third Party Payments,REVENUE
http://statistics.data.gov.uk/id/local-authority/00HY,Wiltshire Council,24/11/2015,1901615308,1227.40,ABLE ,101029,BA14,Community Services,MH Commissioned Cont,Payments to Contractors - Other,Third Party Payments,REVENUE
http://statistics.data.gov.uk/id/local-authority/00HY,Wiltshire Council,18/11/2015,5106782668,425.32,ABLE ,101029,BA14,Community Services,MH AOWA North Locali,Supported Living - Without SP payments,Third Party Payments,REVENUE
http://statistics.data.gov.uk/id/local-authority/00HY,Wiltshire Council,18/11/2015,5106782671,425.32,ABLE ,101029,BA14,Community Services,MH AOWA North Locali,Supported Living - Without SP payments,Third Party Payments,REVENUE
http://statistics.data.gov.uk/id/local-authority/00HY,Wiltshire Council,18/11/2015,5106782736,425.32,ABLE ,101029,BA14,Community Services,MH AOWA North Locali,Supported Living - Without SP payments,Third Party Payments,REVENUE
http://statistics.data.gov.uk/id/local-authority/00HY,Wiltshire Council,18/11/2015,5106787511,425.32,ABLE ,101029,BA14,Community Services,MH AOWA North Locali,Supported Living - Without SP payments,Third Party Payments,REVENUE
http://statistics.data.gov.uk/id/local-authority/00HY,Wiltshire Council,18/11/2015,5106787513,425.32,ABLE ,101029,BA14,Community Services,MH AOWA North Locali,Supported Living - Without SP payments,Third Party Payments,REVENUE
http://statistics.data.gov.uk/id/local-authority/00HY,Wiltshire Council,13/11/2015,5106782302,2064.31,ABLE ,110034,BA14,Community Services,MH AOWA North Locali,Adult Residential Placements - Spot Purchase,Third Party Payments,REVENUE
http://statistics.data.gov.uk/id/local-authority/00HY,Wiltshire Council,18/11/2015,5106784679,3400.00,ABLE ,110034,BA14,Community Services,MH AOWA North Locali,Adult Residential Placements - Spot Purchase,Third Party Payments,REVENUE
http://statistics.data.gov.uk/id/local-authority/00HY,Wiltshire Council,18/11/2015,5106786225,2772.20,ABLE ,110034,BA14,Community Services,MH AOWA North Locali,Adult Residential Placements - Spot Purchase,Third Party Payments,REVENUE
http://statistics.data.gov.uk/id/local-authority/00HY,Wiltshire Council,18/11/2015,5106786243,2527.04,ABLE ,110034,BA14,Community Services,MH OP North Locality,Adult Residential Placements - Spot Purchase,Third Party Payments,REVENUE
http://statistics.data.gov.uk/id/local-authority/00HY,Wiltshire Council,18/11/2015,5106786247,2844.12,ABLE ,110034,BA14,Community Services,MH AOWA North Locali,Adult Residential Placements - Spot Purchase,Third Party Payments,REVENUE
http://statistics.data.gov.uk/id/local-authority/00HY,Wiltshire Council,13/11/2015,1901597216,1613.63,AC  and  MS Ltd ,101175,SS8 ,Resources,FM � Service Contrac,Preventative Property Maintenance,Premises Related,REVENUE
http://statistics.data.gov.uk/id/local-authority/00HY,Wiltshire Council,20/11/2015,1901598423,8355.00,AC  and  MS Ltd ,101175,SS8 ,Wiltshire Council,Wiltshire Council,Work Before Asset Sale,Balance Sheet Accounts,REVENUE
http://statistics.data.gov.uk/id/local-authority/00HY,Wiltshire Council,13/11/2015,1901606452,3727.42,AC  and  MS Ltd ,101175,SS8 ,Resources,FM � Service Contrac,Preventative Property Maintenance,Premises Related,REVENUE
http://statistics.data.gov.uk/id/local-authority/00HY,Wiltshire Council,30/11/2015,1901607602,619.13,AC  and  MS Ltd ,101175,SS8 ,Resources,FM � REC works,Preventative Property Maintenance,Premises Related,REVENUE
http://statistics.data.gov.uk/id/local-authority/00HY,Wiltshire Council,20/11/2015,5106777637,635.00,AC  and  MS Ltd ,101175,SS8 ,Wiltshire Council,Wiltshire Council,Highways - Other Materials,Supplies and Services,CAPITAL
http://statistics.data.gov.uk/id/local-authority/00HY,Wiltshire Council,20/11/2015,5106777638,794.63,AC  and  MS Ltd ,101175,SS8 ,Wiltshire Council,Wiltshire Council,Consultants� Fees,Supplies and Services,CAPITAL
http://statistics.data.gov.uk/id/local-authority/00HY,Wiltshire Council,20/11/2015,5106777710,1270.00,AC  and  MS Ltd ,101175,SS8 ,Wiltshire Council,Wiltshire Council,Highways - Other Materials,Supplies and Services,CAPITAL
http://statistics.data.gov.uk/id/local-authority/00HY,Wiltshire Council,30/11/2015,5106780130,635.00,AC  and  MS Ltd ,101175,SS8 ,Wiltshire Council,Wiltshire Council,Highways - Other Materials,Supplies and Services,CAPITAL
http://statistics.data.gov.uk/id/local-authority/00HY,Wiltshire Council,30/11/2015,5106780130,635.00,AC  and  MS Ltd ,101175,SS8 ,Wiltshire Council,Wiltshire Council,Highways - Other Materials,Supplies and Services,CAPITAL
http://statistics.data.gov.uk/id/local-authority/00HY,Wiltshire Council,16/11/2015,5106782477,1113.00,AC  and  MS Ltd ,101175,SS8 ,Wiltshire Council,Wiltshire Council,Premises Related Other Maintenance Costs,Premises Related,CAPITAL
http://statistics.data.gov.uk/id/local-authority/00HY,Wiltshire Council,16/11/2015,5106782478,546.00,AC  and  MS Ltd ,101175,SS8 ,Wiltshire Council,Wiltshire Council,Premises Related Other Maintenance Costs,Premises Related,CAPITAL
http://statistics.data.gov.uk/id/local-authority/00HY,Wiltshire Council,16/11/2015,5106782479,1575.00,AC  and  MS Ltd ,101175,SS8 ,Wiltshire Council,Wiltshire Council,Premises Related Other Maintenance Costs,Premises Related,CAPITAL
http://statistics.data.gov.uk/id/local-authority/00HY,Wiltshire Council,16/11/2015,5106782490,777.00,AC  and  MS Ltd ,101175,SS8 ,Wiltshire Council,Wiltshire Council,Premises Related Other Maintenance Costs,Premises Related,CAPITAL
http://statistics.data.gov.uk/id/local-authority/00HY,Wiltshire Council,16/11/2015,5106782491,280.00,AC  and  MS Ltd ,101175,SS8 ,Wiltshire Council,Wiltshire Council,Premises Related Other Maintenance Costs,Premises Related,CAPITAL
http://statistics.data.gov.uk/id/local-authority/00HY,Wiltshire Council,16/11/2015,5106782492,1029.00,AC  and  MS Ltd ,101175,SS8 ,Wiltshire Council,Wiltshire Council,Premises Related Other Maintenance Costs,Premises Related,CAPITAL
http://statistics.data.gov.uk/id/local-authority/00HY,Wiltshire Council,16/11/2015,5106782493,693.00,AC  and  MS Ltd ,101175,SS8 ,Wiltshire Council,Wiltshire Council,Premises Related Other Maintenance Costs,Premises Related,CAPITAL
http://statistics.data.gov.uk/id/local-authority/00HY,Wiltshire Council,16/11/2015,5106782494,651.00,AC  and  MS Ltd ,101175,SS8 ,Wiltshire Council,Wiltshire Council,Premises Related Other Maintenance Costs,Premises Related,CAPITAL
http://statistics.data.gov.uk/id/local-authority/00HY,Wiltshire Council,16/11/2015,5106782496,350.00,AC  and  MS Ltd ,101175,SS8 ,Wiltshire Council,Wiltshire Council,Premises Related Other Maintenance Costs,Premises Related,CAPITAL
http://statistics.data.gov.uk/id/local-authority/00HY,Wiltshire Council,16/11/2015,5106782498,756.00,AC  and  MS Ltd ,101175,SS8 ,Wiltshire Council,Wiltshire Council,Premises Related Other Maintenance Costs,Premises Related,CAPITAL
http://statistics.data.gov.uk/id/local-authority/00HY,Wiltshire Council,16/11/2015,5106782511,504.00,AC  and  MS Ltd ,101175,SS8 ,Wiltshire Council,Wiltshire Council,Premises Related Other Maintenance Costs,Premises Related,CAPITAL
http://statistics.data.gov.uk/id/local-authority/00HY,Wiltshire Council,19/11/2015,5106787725,8390.00,AC  and  MS Ltd ,101175,SS8 ,Wiltshire Council,Wiltshire Council,Premises Related Other Maintenance Costs,Premises Related,CAPITAL
http://statistics.data.gov.uk/id/local-authority/00HY,Wiltshire Council,09/11/2015,5106779948,2639.60,Access Care Ltd ,110037,SP10,Community Services,OVA East Locality,Adult Domiciliary care - Live in contribution,Income,REVENUE
http://statistics.data.gov.uk/id/local-authority/00HY,Wiltshire Council,09/11/2015,5106779949,1766.08,Access Care Ltd ,110037,SP10,Community Services,West Locality OP,Adult Domiciliary care - Live in contribution,Income,REVENUE
http://statistics.data.gov.uk/id/local-authority/00HY,Wiltshire Council,09/11/2015,5106779970,2528.56,Access Care Ltd ,110037,SP10,Community Services,South Locality OP,Adult Domiciliary care - Live in contribution,Income,REVENUE
http://statistics.data.gov.uk/id/local-authority/00HY,Wiltshire Council,13/11/2015,5106781490,1050.00,Acer Tree Surgeons Ltd ,113296,BA13,Neighbourhood & Planning,Woodland & Tree Mtc,Grounds Maintenance,Premises Related,REVENUE
http://statistics.data.gov.uk/id/local-authority/00HY,Wiltshire Council,09/11/2015,5106779932,267.53,ACS Business Supplies ,141475,BD16,Community Services,CL&G Comm Govnce,Stationery,Supplies and Services,REVENUE
http://statistics.data.gov.uk/id/local-authority/00HY,Wiltshire Council,24/11/2015,5106790487,10935.65,Action on Addiction ,125931,SW4 ,Community Services,(8)FamiliesPlus-Othr,Substance Misuse - Payments to Contractors,Third Party Payments,REVENUE
http://statistics.data.gov.uk/id/local-authority/00HY,Wiltshire Council,30/11/2015,5106792701,10935.65,Action on Addiction ,125931,SW4 ,Community Services,(8)FamiliesPlus-Othr,Public Health Commissioning,Supplies and Services,REVENUE
http://statistics.data.gov.uk/id/local-authority/00HY,Wiltshire Council,09/11/2015,5106779683,1523.01,Action on Hearing Loss ,112215,EC1Y,Community Services,OVA North Locality,Adult Day Care - Spot,Third Party Payments,REVENUE
http://statistics.data.gov.uk/id/local-authority/00HY,Wiltshire Council,18/11/2015,5106783435,6270.44,Action on Hearing Loss ,112215,EC1Y,Community Services,South Locality OP,Adult Residential Placements - Spot Purchase,Third Party Payments,REVENUE
http://statistics.data.gov.uk/id/local-authority/00HY,Wiltshire Council,18/11/2015,5106783985,3800.00,Action on Hearing Loss ,112215,EC1Y,Community Services,OVA North Locality,Adult Residential Placements - Spot Purchase,Third Party Payments,REVENUE
http://statistics.data.gov.uk/id/local-authority/00HY,Wiltshire Council,18/11/2015,5106786105,5421.84,Action on Hearing Loss ,112215,EC1Y,Community Services,North Locality OP,Adult Residential Placements - Spot Purchase,Third Party Payments,REVENUE
http://statistics.data.gov.uk/id/local-authority/00HY,Wiltshire Council,25/11/2015,5106790811,270.00,Action on Hearing Loss ,112215,EC1Y,Community Services,Disabilities Comm Ct,Grants Paid to individuals for Tangible Benefits,Supplies and Services,REVENUE
http://statistics.data.gov.uk/id/local-authority/00HY,Wiltshire Council,26/11/2015,1901623558,974.98,Action on Hearing Loss ,120413,PE2 ,Community Services,MH Management Fee,Furniture / Office Equipment Purchase,Supplies and Services,REVENUE
http://statistics.data.gov.uk/id/local-authority/00HY,Wiltshire Council,04/11/2015,1901607395,2198.90,ACTZ Media Limited ,140916,IG11,Neighbourhood & Planning,City Hall,City Hall Shows,Balance Sheet Accounts,REVENUE
http://statistics.data.gov.uk/id/local-authority/00HY,Wiltshire Council,09/11/2015,5106778246,258.46,Adams Morey Ltd ,110053,SP2 ,Neighbourhood & Planning,Fleet Operations,Vehicle 3rd Party Repairs,Transport Related,REVENUE
http://statistics.data.gov.uk/id/local-authority/00HY,Wiltshire Council,09/11/2015,5106778266,767.10,Adams Morey Ltd ,110053,SP2 ,Neighbourhood & Planning,Fleet Operations,Vehicle 3rd Party Repairs,Transport Related,REVENUE
http://statistics.data.gov.uk/id/local-authority/00HY,Wiltshire Council,09/11/2015,5106778267,923.20,Adams Morey Ltd ,110053,SP2 ,Neighbourhood & Planning,Fleet Operations,Vehicle 3rd Party Repairs,Transport Related,REVENUE
http://statistics.data.gov.uk/id/local-authority/00HY,Wiltshire Council,12/11/2015,5106781733,952.45,Adams Morey Ltd ,110053,SP2 ,Neighbourhood & Planning,Fleet Operations,Vehicle 3rd Party Repairs,Transport Related,REVENUE
http://statistics.data.gov.uk/id/local-authority/00HY,Wiltshire Council,12/11/2015,5106781832,358.00,Adams Morey Ltd ,110053,SP2 ,Neighbourhood & Planning,Fleet Operations,Vehicle 3rd Party Repairs,Transport Related,REVENUE
http://statistics.data.gov.uk/id/local-authority/00HY,Wiltshire Council,27/11/2015,5106784836,409.21,Adams Morey Ltd ,110053,SP2 ,Neighbourhood & Planning,Fleet Operations,Vehicle Parts,Transport Related,REVENUE
http://statistics.data.gov.uk/id/local-authority/00HY,Wiltshire Council,27/11/2015,5106784856,882.10,Adams Morey Ltd ,110053,SP2 ,Neighbourhood & Planning,Fleet Operations,Vehicle Parts,Transport Related,REVENUE
http://statistics.data.gov.uk/id/local-authority/00HY,Wiltshire Council,20/11/2015,5106790039,911.55,Adams Morey Ltd ,110053,SP2 ,Neighbourhood & Planning,Fleet Operations,Vehicle Parts,Transport Related,REVENUE
http://statistics.data.gov.uk/id/local-authority/00HY,Wiltshire Council,20/11/2015,5106790044,934.58,Adams Morey Ltd ,110053,SP2 ,Neighbourhood & Planning,Fleet Operations,Vehicle Parts,Transport Related,REVENUE
http://statistics.data.gov.uk/id/local-authority/00HY,Wiltshire Council,23/11/2015,5106790090,735.50,Adams Morey Ltd ,110053,SP2 ,Neighbourhood & Planning,Fleet Operations,Vehicle Parts,Transport Related,REVENUE
http://statistics.data.gov.uk/id/local-authority/00HY,Wiltshire Council,24/11/2015,5106790092,760.62,Adams Morey Ltd ,110053,SP2 ,Neighbourhood & Planning,Fleet Operations,Vehicle Parts,Transport Related,REVENUE
http://statistics.data.gov.uk/id/local-authority/00HY,Wiltshire Council,24/11/2015,5106790093,271.00,Adams Morey Ltd ,110053,SP2 ,Neighbourhood & Planning,Fleet Operations,Vehicle Parts,Transport Related,REVENUE
http://statistics.data.gov.uk/id/local-authority/00HY,Wiltshire Council,24/11/2015,5106790098,510.49,Adams Morey Ltd ,110053,SP2 ,Neighbourhood & Planning,Fleet Operations,Vehicle Parts,Transport Related,REVENUE
http://statistics.data.gov.uk/id/local-authority/00HY,Wiltshire Council,24/11/2015,5106790114,681.50,Adams Morey Ltd ,110053,SP2 ,Neighbourhood & Planning,Fleet Operations,Vehicle Parts,Transport Related,REVENUE
http://statistics.data.gov.uk/id/local-authority/00HY,Wiltshire Council,26/11/2015,5106790919,406.75,Adams Morey Ltd ,110053,SP2 ,Neighbourhood & Planning,Fleet Operations,Vehicle Parts,Transport Related,REVENUE
http://statistics.data.gov.uk/id/local-authority/00HY,Wiltshire Council,18/11/2015,5106783219,2449.24,Adiemus Care Limited - Ravenscroft ,132154,HA1 ,Community Services,West Locality OP,Adult Residential Placements - Spot Purchase,Third Party Payments,REVENUE
http://statistics.data.gov.uk/id/local-authority/00HY,Wiltshire Council,17/11/2015,5106783320,1505.80,Adiemus Care Limited - Ravenscroft ,132154,HA1 ,Community Services,West Locality OP,Adult Care Nursing Placements- Spot Purchase,Third Party Payments,REVENUE
http://statistics.data.gov.uk/id/local-authority/00HY,Wiltshire Council,17/11/2015,5106783321,448.00,Adiemus Care Limited - Ravenscroft ,132154,HA1 ,Community Services,OP West FNC,Adult Care Funded Nursing Care - Loal Auth Clients,Third Party Payments,REVENUE
http://statistics.data.gov.uk/id/local-authority/00HY,Wiltshire Council,18/11/2015,5106783928,2096.72,Adiemus Care Limited - Ravenscroft ,132154,HA1 ,Community Services,West Locality OP,Adult Care Nursing Placements- Spot Purchase,Third Party Payments,REVENUE
http://statistics.data.gov.uk/id/local-authority/00HY,Wiltshire Council,18/11/2015,5106783929,448.00,Adiemus Care Limited - Ravenscroft ,132154,HA1 ,Community Services,OP West FNC,Adult Care Funded Nursing Care - Loal Auth Clients,Third Party Payments,REVENUE
http://statistics.data.gov.uk/id/local-authority/00HY,Wiltshire Council,18/11/2015,5106785758,2086.40,Adiemus Care Limited - Ravenscroft ,132154,HA1 ,Community Services,West Locality OP,Adult Care Nursing Placements- Spot Purchase,Third Party Payments,REVENUE
http://statistics.data.gov.uk/id/local-authority/00HY,Wiltshire Council,18/11/2015,5106785759,448.00,Adiemus Care Limited - Ravenscroft ,132154,HA1 ,Community Services,OP West FNC,Adult Care Funded Nursing Care - Loal Auth Clients,Third Party Payments,REVENUE
http://statistics.data.gov.uk/id/local-authority/00HY,Wiltshire Council,18/11/2015,5106786547,2452.00,Adiemus Care Limited - Ravenscroft ,132154,HA1 ,Community Services,West Locality OP,Adult Care Nursing Placements- Spot Purchase,Third Party Payments,REVENUE
http://statistics.data.gov.uk/id/local-authority/00HY,Wiltshire Council,18/11/2015,5106786548,448.00,Adiemus Care Limited - Ravenscroft ,132154,HA1 ,Community Services,OP West FNC,Adult Care Funded Nursing Care - Loal Auth Clients,Third Party Payments,REVENUE
http://statistics.data.gov.uk/id/local-authority/00HY,Wiltshire Council,18/11/2015,5106786773,2096.72,Adiemus Care Limited - Ravenscroft ,132154,HA1 ,Community Services,West Locality OP,Adult Care Nursing Placements- Spot Purchase,Third Party Payments,REVENUE
http://statistics.data.gov.uk/id/local-authority/00HY,Wiltshire Council,18/11/2015,5106786774,448.00,Adiemus Care Limited - Ravenscroft ,132154,HA1 ,Community Services,OP West FNC,Adult Care Funded Nursing Care - Loal Auth Clients,Third Party Payments,REVENUE
http://statistics.data.gov.uk/id/local-authority/00HY,Wiltshire Council,18/11/2015,5106786817,2096.72,Adiemus Care Limited - Ravenscroft ,132154,HA1 ,Community Services,West Locality OP,Adult Care Nursing Placements- Spot Purchase,Third Party Payments,REVENUE
http://statistics.data.gov.uk/id/local-authority/00HY,Wiltshire Council,18/11/2015,5106786818,448.00,Adiemus Care Limited - Ravenscroft ,132154,HA1 ,Community Services,OP West FNC,Adult Care Funded Nursing Care - Loal Auth Clients,Third Party Payments,REVENUE
http://statistics.data.gov.uk/id/local-authority/00HY,Wiltshire Council,18/11/2015,5106786899,2096.72,Adiemus Care Limited - Ravenscroft ,132154,HA1 ,Community Services,West Locality OP,Adult Care Nursing Placements- Spot Purchase,Third Party Payments,REVENUE
http://statistics.data.gov.uk/id/local-authority/00HY,Wiltshire Council,18/11/2015,5106786900,448.00,Adiemus Care Limited - Ravenscroft ,132154,HA1 ,Community Services,OP West FNC,Adult Care Funded Nursing Care - Loal Auth Clients,Third Party Payments,REVENUE
http://statistics.data.gov.uk/id/local-authority/00HY,Wiltshire Council,27/11/2015,5106792575,785.20,Adiemus Care Limited - Ravenscroft ,132154,HA1 ,Community Services,MH OP North Locality,Adult Care Nursing Placements- Spot Purchase,Third Party Payments,REVENUE
http://statistics.data.gov.uk/id/local-authority/00HY,Wiltshire Council,18/11/2015,5106783567,1887.20,Admirals Reach BUPA,137917,CM1 ,Community Services,South Locality OP,Adult Care Nursing Placements- Spot Purchase,Third Party Payments,REVENUE
http://statistics.data.gov.uk/id/local-authority/00HY,Wiltshire Council,25/11/2015,1901622935,3333.33,Adrains Engineering Psv ,100848,SN15,Neighbourhood & Planning,Mainstream Secondary,Transport Contracts,Third Party Payments,REVENUE
http://statistics.data.gov.uk/id/local-authority/00HY,Wiltshire Council,25/11/2015,1901622935,3407.42,Adrains Engineering Psv ,100848,SN15,Neighbourhood & Planning,Public Transport,Transport Contracts,Third Party Payments,REVENUE
http://statistics.data.gov.uk/id/local-authority/00HY,Wiltshire Council,25/11/2015,1901622938,1190.37,Adrains Engineering Psv ,100848,SN15,Neighbourhood & Planning,Mainstream Secondary,Transport Contracts,Third Party Payments,REVENUE
http://statistics.data.gov.uk/id/local-authority/00HY,Wiltshire Council,25/11/2015,1901622939,656.40,Adrains Engineering Psv ,100848,SN15,Neighbourhood & Planning,Mainstream 16+ Sec,Transport Contracts,Third Party Payments,REVENUE
http://statistics.data.gov.uk/id/local-authority/00HY,Wiltshire Council,25/11/2015,1901622939,2494.43,Adrains Engineering Psv ,100848,SN15,Neighbourhood & Planning,Mainstream Secondary,Transport Contracts,Third Party Payments,REVENUE
http://statistics.data.gov.uk/id/local-authority/00HY,Wiltshire Council,25/11/2015,1901622940,295.29,Adrains Engineering Psv ,100848,SN15,Neighbourhood & Planning,Mainstream 16+ Sec,Transport Contracts,Third Party Payments,REVENUE
http://statistics.data.gov.uk/id/local-authority/00HY,Wiltshire Council,25/11/2015,1901622940,2657.47,Adrains Engineering Psv ,100848,SN15,Neighbourhood & Planning,Mainstream Secondary,Transport Contracts,Third Party Payments,REVENUE
http://statistics.data.gov.uk/id/local-authority/00HY,Wiltshire Council,25/11/2015,1901622941,3968.30,Adrains Engineering Psv ,100848,SN15,Neighbourhood & Planning,Mainstream Secondary,Transport Contracts,Third Party Payments,REVENUE
http://statistics.data.gov.uk/id/local-authority/00HY,Wiltshire Council,25/11/2015,1901622942,3035.09,Adrains Engineering Psv ,100848,SN15,Neighbourhood & Planning,Mainstream Primary,Transport Contracts,Third Party Payments,REVENUE
http://statistics.data.gov.uk/id/local-authority/00HY,Wiltshire Council,25/11/2015,1901622943,2919.35,Adrains Engineering Psv ,100848,SN15,Neighbourhood & Planning,Mainstream Secondary,Transport Contracts,Third Party Payments,REVENUE
http://statistics.data.gov.uk/id/local-authority/00HY,Wiltshire Council,25/11/2015,1901622944,3004.40,Adrains Engineering Psv ,100848,SN15,Neighbourhood & Planning,Mainstream Secondary,Transport Contracts,Third Party Payments,REVENUE
http://statistics.data.gov.uk/id/local-authority/00HY,Wiltshire Council,25/11/2015,1901622945,3333.33,Adrains Engineering Psv ,100848,SN15,Neighbourhood & Planning,Mainstream Primary,Transport Contracts,Third Party Payments,REVENUE
http://statistics.data.gov.uk/id/local-authority/00HY,Wiltshire Council,25/11/2015,1901622945,4596.67,Adrains Engineering Psv ,100848,SN15,Neighbourhood & Planning,Public Transport,Transport Contracts,Third Party Payments,REVENUE
http://statistics.data.gov.uk/id/local-authority/00HY,Wiltshire Council,27/11/2015,1901623961,511.25,Adrains Engineering Psv ,100848,SN15,Neighbourhood & Planning,Concessionary Fares,Compensation for Concessionary fares,Third Party Payments,REVENUE
http://statistics.data.gov.uk/id/local-authority/00HY,Wiltshire Council,26/11/2015,1901623148,6136.99,Advance Housing  and  Support Ltd ,110060,OX28,Neighbourhood & Planning,HousingStrategy,Payments to Contractors - Other,Third Party Payments,REVENUE
http://statistics.data.gov.uk/id/local-authority/00HY,Wiltshire Council,19/11/2015,5106787636,5232.60,Advantis Credit Ltd ,139681,ST4 ,Neighbourhood & Planning,Sewer Wks inc Contrc,Other Professional Fees,Supplies and Services,REVENUE
http://statistics.data.gov.uk/id/local-authority/00HY,Wiltshire Council,09/11/2015,5106779901,3023.36,AECOM Professional Services LLP ,127871,AL1 ,Wiltshire Council,Wiltshire Council,Consultants� Fees,Supplies and Services,CAPITAL
http://statistics.data.gov.uk/id/local-authority/00HY,Wiltshire Council,09/11/2015,5106779902,3132.61,AECOM Professional Services LLP ,127871,AL1 ,Wiltshire Council,Wiltshire Council,Consultants� Fees,Supplies and Services,CAPITAL
http://statistics.data.gov.uk/id/local-authority/00HY,Wiltshire Council,24/11/2015,5106781659,4704.03,AECOM Professional Services LLP ,127871,AL1 ,Wiltshire Council,Wiltshire Council,Consultants� Fees,Supplies and Services,CAPITAL
http://statistics.data.gov.uk/id/local-authority/00HY,Wiltshire Council,26/11/2015,5106782548,2408.00,AECOM Professional Services LLP ,127871,AL1 ,Wiltshire Council,Wiltshire Council,Buildings Minor Alterations,Premises Related,CAPITAL
http://statistics.data.gov.uk/id/local-authority/00HY,Wiltshire Council,06/11/2015,5106779631,1400.00,AginCare Live In Care Services Ltd ,110071,DT5 ,Community Services,OVA West Locality,Adult Domiciliary Care - Live in Care,Third Party Payments,REVENUE
http://statistics.data.gov.uk/id/local-authority/00HY,Wiltshire Council,06/11/2015,5106779696,1499.96,AginCare Live In Care Services Ltd ,110071,DT5 ,Community Services,OVA West Locality,Adult Domiciliary Care - Live in Care,Third Party Payments,REVENUE
http://statistics.data.gov.uk/id/local-authority/00HY,Wiltshire Council,06/11/2015,5106779697,657.36,AginCare Live In Care Services Ltd ,110071,DT5 ,Community Services,South Locality OP,Adult Domiciliary care - Live in contribution,Income,REVENUE
http://statistics.data.gov.uk/id/local-authority/00HY,Wiltshire Council,18/11/2015,5106787585,1200.08,AginCare Live In Care Services Ltd ,110071,DT5 ,Community Services,CTPLD Place CIC U65,Adult Domiciliary Care - Live in Care,Third Party Payments,REVENUE
http://statistics.data.gov.uk/id/local-authority/00HY,Wiltshire Council,18/11/2015,5106787586,1200.08,AginCare Live In Care Services Ltd ,110071,DT5 ,Community Services,CTPLD Place CIC U65,Adult Domiciliary Care - Live in Care,Third Party Payments,REVENUE
http://statistics.data.gov.uk/id/local-authority/00HY,Wiltshire Council,18/11/2015,5106787587,1659.98,AginCare Live In Care Services Ltd ,110071,DT5 ,Community Services,CTPLD Place CIC U65,Adult Domiciliary Care - Live in Care,Third Party Payments,REVENUE
http://statistics.data.gov.uk/id/local-authority/00HY,Wiltshire Council,18/11/2015,5106787588,1499.96,AginCare Live In Care Services Ltd ,110071,DT5 ,Community Services,OVA West Locality,Adult Domiciliary Care - Live in Care,Third Party Payments,REVENUE
http://statistics.data.gov.uk/id/local-authority/00HY,Wiltshire Council,24/11/2015,5106790388,1000.00,AginCare Live In Care Services Ltd ,110071,DT5 ,Community Services,OVA West Locality,Adult Domiciliary Care - Live in Care,Third Party Payments,REVENUE
http://statistics.data.gov.uk/id/local-authority/00HY,Wiltshire Council,26/11/2015,5106790897,1400.00,AginCare Live In Care Services Ltd ,110071,DT5 ,Community Services,OVA West Locality,Adult Domiciliary Care - Live in Care,Third Party Payments,REVENUE
http://statistics.data.gov.uk/id/local-authority/00HY,Wiltshire Council,13/11/2015,5106782412,945.76,Agincare Ltd ,110069,DT5 ,Community Services,North Locality OP,Adult Domiciliary Care - Spot Contribution,Income,REVENUE
http://statistics.data.gov.uk/id/local-authority/00HY,Wiltshire Council,02/11/2015,5106772657,1400.00,Aid Training  and  Operations Ltd ,110075,BA12,Children & Education,ExtPDTCourse,Consultants� Fees,Supplies and Services,REVENUE
http://statistics.data.gov.uk/id/local-authority/00HY,Wiltshire Council,04/11/2015,1901607674,1677.75,Akcess Ltd ,101402,SN2 ,Neighbourhood & Planning,SEN Post 19,Transport Contracts,Third Party Payments,REVENUE
http://statistics.data.gov.uk/id/local-authority/00HY,Wiltshire Council,04/11/2015,1901607678,3058.00,Akcess Ltd ,101402,SN2 ,Neighbourhood & Planning,SEN Primary,Transport Contracts,Third Party Payments,REVENUE
http://statistics.data.gov.uk/id/local-authority/00HY,Wiltshire Council,19/11/2015,1901613919,1022.25,Akcess Ltd ,101402,SN2 ,Neighbourhood & Planning,Mainstream Primary,Transport Contracts,Third Party Payments,REVENUE
http://statistics.data.gov.uk/id/local-authority/00HY,Wiltshire Council,19/11/2015,1901613920,1022.25,Akcess Ltd ,101402,SN2 ,Neighbourhood & Planning,Mainstream Primary,Transport Contracts,Third Party Payments,REVENUE
http://statistics.data.gov.uk/id/local-authority/00HY,Wiltshire Council,19/11/2015,1901613921,1776.69,Akcess Ltd ,101402,SN2 ,Neighbourhood & Planning,Mainstream Secondary,Transport Contracts,Third Party Payments,REVENUE
http://statistics.data.gov.uk/id/local-authority/00HY,Wiltshire Council,19/11/2015,1901613923,2083.65,Akcess Ltd ,101402,SN2 ,Neighbourhood & Planning,Mainstream Primary,Transport Contracts,Third Party Payments,REVENUE
http://statistics.data.gov.uk/id/local-authority/00HY,Wiltshire Council,19/11/2015,1901613924,1863.88,Akcess Ltd ,101402,SN2 ,Neighbourhood & Planning,Mainstream Secondary,Transport Contracts,Third Party Payments,REVENUE
http://statistics.data.gov.uk/id/local-authority/00HY,Wiltshire Council,19/11/2015,1901613925,314.22,Akcess Ltd ,101402,SN2 ,Neighbourhood & Planning,SEN Secondary,Transport Contracts,Third Party Payments,REVENUE
http://statistics.data.gov.uk/id/local-authority/00HY,Wiltshire Council,19/11/2015,1901613925,837.91,Akcess Ltd ,101402,SN2 ,Neighbourhood & Planning,Mainstream 16+ Sec,Transport Contracts,Third Party Payments,REVENUE
http://statistics.data.gov.uk/id/local-authority/00HY,Wiltshire Council,19/11/2015,1901613925,3142.20,Akcess Ltd ,101402,SN2 ,Neighbourhood & Planning,Mainstream Secondary,Transport Contracts,Third Party Payments,REVENUE
http://statistics.data.gov.uk/id/local-authority/00HY,Wiltshire Council,19/11/2015,1901613926,1959.53,Akcess Ltd ,101402,SN2 ,Neighbourhood & Planning,Mainstream Secondary,Transport Contracts,Third Party Payments,REVENUE
http://statistics.data.gov.uk/id/local-authority/00HY,Wiltshire Council,19/11/2015,1901613927,1556.53,Akcess Ltd ,101402,SN2 ,Neighbourhood & Planning,Mainstream Secondary,Transport Contracts,Third Party Payments,REVENUE
http://statistics.data.gov.uk/id/local-authority/00HY,Wiltshire Council,19/11/2015,1901613928,2166.67,Akcess Ltd ,101402,SN2 ,Neighbourhood & Planning,Mainstream Primary,Transport Contracts,Third Party Payments,REVENUE
http://statistics.data.gov.uk/id/local-authority/00HY,Wiltshire Council,19/11/2015,1901613930,1472.50,Akcess Ltd ,101402,SN2 ,Neighbourhood & Planning,Mainstream Secondary,Transport Contracts,Third Party Payments,REVENUE
http://statistics.data.gov.uk/id/local-authority/00HY,Wiltshire Council,19/11/2015,1901613933,1411.90,Akcess Ltd ,101402,SN2 ,Neighbourhood & Planning,Mainstream Primary,Transport Contracts,Third Party Payments,REVENUE
http://statistics.data.gov.uk/id/local-authority/00HY,Wiltshire Council,19/11/2015,1901613934,357.13,Akcess Ltd ,101402,SN2 ,Neighbourhood & Planning,Mainstream Secondary,Transport Contracts,Third Party Payments,REVENUE
http://statistics.data.gov.uk/id/local-authority/00HY,Wiltshire Council,19/11/2015,1901613934,1571.38,Akcess Ltd ,101402,SN2 ,Neighbourhood & Planning,SEN Secondary,Transport Contracts,Third Party Payments,REVENUE
http://statistics.data.gov.uk/id/local-authority/00HY,Wiltshire Council,19/11/2015,1901613935,1170.00,Akcess Ltd ,101402,SN2 ,Neighbourhood & Planning,Mainstream Primary,Transport Contracts,Third Party Payments,REVENUE
http://statistics.data.gov.uk/id/local-authority/00HY,Wiltshire Council,19/11/2015,1901613936,660.00,Akcess Ltd ,101402,SN2 ,Neighbourhood & Planning,SEN 16+ FE Colleges,Transport Contracts,Third Party Payments,REVENUE
http://statistics.data.gov.uk/id/local-authority/00HY,Wiltshire Council,19/11/2015,1901613936,1320.00,Akcess Ltd ,101402,SN2 ,Neighbourhood & Planning,SEN 16+ Secondary,Transport Contracts,Third Party Payments,REVENUE
http://statistics.data.gov.uk/id/local-authority/00HY,Wiltshire Council,19/11/2015,1901613937,1117.50,Akcess Ltd ,101402,SN2 ,Neighbourhood & Planning,SEN Secondary,Transport Contracts,Third Party Payments,REVENUE
http://statistics.data.gov.uk/id/local-authority/00HY,Wiltshire Council,19/11/2015,1901613938,1833.17,Akcess Ltd ,101402,SN2 ,Neighbourhood & Planning,Mainstream Primary,Transport Contracts,Third Party Payments,REVENUE
http://statistics.data.gov.uk/id/local-authority/00HY,Wiltshire Council,19/11/2015,1901613939,675.50,Akcess Ltd ,101402,SN2 ,Neighbourhood & Planning,SEN Secondary,Transport Contracts,Third Party Payments,REVENUE
http://statistics.data.gov.uk/id/local-authority/00HY,Wiltshire Council,19/11/2015,1901613939,1351.00,Akcess Ltd ,101402,SN2 ,Neighbourhood & Planning,Mainstream Secondary,Transport Contracts,Third Party Payments,REVENUE
http://statistics.data.gov.uk/id/local-authority/00HY,Wiltshire Council,19/11/2015,1901613940,482.50,Akcess Ltd ,101402,SN2 ,Neighbourhood & Planning,SEN Secondary,Transport Contracts,Third Party Payments,REVENUE
http://statistics.data.gov.uk/id/local-authority/00HY,Wiltshire Council,19/11/2015,1901613940,965.00,Akcess Ltd ,101402,SN2 ,Neighbourhood & Planning,Mainstream Secondary,Transport Contracts,Third Party Payments,REVENUE
http://statistics.data.gov.uk/id/local-authority/00HY,Wiltshire Council,19/11/2015,1901613941,1342.50,Akcess Ltd ,101402,SN2 ,Neighbourhood & Planning,Mainstream Primary,Transport Contracts,Third Party Payments,REVENUE
http://statistics.data.gov.uk/id/local-authority/00HY,Wiltshire Council,19/11/2015,1901613942,495.00,Akcess Ltd ,101402,SN2 ,Neighbourhood & Planning,Mainstream Secondary,Transport Contracts,Third Party Payments,REVENUE
http://statistics.data.gov.uk/id/local-authority/00HY,Wiltshire Council,19/11/2015,1901613943,324.00,Akcess Ltd ,101402,SN2 ,Community Services,OVA East Locality,Transport Contracts,Third Party Payments,REVENUE
http://statistics.data.gov.uk/id/local-authority/00HY,Wiltshire Council,19/11/2015,1901613943,648.00,Akcess Ltd ,101402,SN2 ,Community Services,OVA North Locality,Transport Contracts,Third Party Payments,REVENUE
http://statistics.data.gov.uk/id/local-authority/00HY,Wiltshire Council,19/11/2015,1901613944,2293.50,Akcess Ltd ,101402,SN2 ,Neighbourhood & Planning,SEN Primary,Transport Contracts,Third Party Payments,REVENUE
http://statistics.data.gov.uk/id/local-authority/00HY,Wiltshire Council,19/11/2015,1901613945,1786.63,Akcess Ltd ,101402,SN2 ,Neighbourhood & Planning,Mainstream Primary,Transport Contracts,Third Party Payments,REVENUE
http://statistics.data.gov.uk/id/local-authority/00HY,Wiltshire Council,19/11/2015,1901613946,1682.45,Akcess Ltd ,101402,SN2 ,Neighbourhood & Planning,Mainstream Secondary,Transport Contracts,Third Party Payments,REVENUE
http://statistics.data.gov.uk/id/local-authority/00HY,Wiltshire Council,19/11/2015,1901613947,572.40,Akcess Ltd ,101402,SN2 ,Neighbourhood & Planning,Mainstream Secondary,Transport Contracts,Third Party Payments,REVENUE
http://statistics.data.gov.uk/id/local-authority/00HY,Wiltshire Council,19/11/2015,1901613947,1335.60,Akcess Ltd ,101402,SN2 ,Neighbourhood & Planning,Mainstream Primary,Transport Contracts,Third Party Payments,REVENUE
http://statistics.data.gov.uk/id/local-authority/00HY,Wiltshire Council,20/11/2015,1901614272,933.33,Akcess Ltd ,101402,SN2 ,Neighbourhood & Planning,Mainstream Primary,Transport Contracts,Third Party Payments,REVENUE
http://statistics.data.gov.uk/id/local-authority/00HY,Wiltshire Council,20/11/2015,1901614272,1733.34,Akcess Ltd ,101402,SN2 ,Neighbourhood & Planning,Mainstream Secondary,Transport Contracts,Third Party Payments,REVENUE
http://statistics.data.gov.uk/id/local-authority/00HY,Wiltshire Council,23/11/2015,1901614863,490.00,Akcess Ltd ,101402,SN2 ,Neighbourhood & Planning,SEN 16+ Secondary,Transport Contracts,Third Party Payments,REVENUE
http://statistics.data.gov.uk/id/local-authority/00HY,Wiltshire Council,23/11/2015,1901614864,1149.60,Akcess Ltd ,101402,SN2 ,Neighbourhood & Planning,SEN 16+ FE Colleges,Transport Contracts,Third Party Payments,REVENUE
http://statistics.data.gov.uk/id/local-authority/00HY,Wiltshire Council,23/11/2015,1901614864,2299.19,Akcess Ltd ,101402,SN2 ,Neighbourhood & Planning,SEN Secondary,Transport Contracts,Third Party Payments,REVENUE
http://statistics.data.gov.uk/id/local-authority/00HY,Wiltshire Council,23/11/2015,1901614865,848.00,Akcess Ltd ,101402,SN2 ,Neighbourhood & Planning,Mainstream Secondary,Transport Contracts,Third Party Payments,REVENUE
http://statistics.data.gov.uk/id/local-authority/00HY,Wiltshire Council,23/11/2015,1901614866,848.00,Akcess Ltd ,101402,SN2 ,Neighbourhood & Planning,Mainstream Secondary,Transport Contracts,Third Party Payments,REVENUE
http://statistics.data.gov.uk/id/local-authority/00HY,Wiltshire Council,23/11/2015,1901614869,677.55,Akcess Ltd ,101402,SN2 ,Neighbourhood & Planning,Mainstream Secondary,Transport Contracts,Third Party Payments,REVENUE
http://statistics.data.gov.uk/id/local-authority/00HY,Wiltshire Council,23/11/2015,1901614869,725.95,Akcess Ltd ,101402,SN2 ,Neighbourhood & Planning,SEN Primary,Transport Contracts,Third Party Payments,REVENUE
http://statistics.data.gov.uk/id/local-authority/00HY,Wiltshire Council,27/11/2015,1901623896,1024.40,Akcess Ltd ,101402,SN2 ,Neighbourhood & Planning,SEN Secondary,Transport Contracts,Third Party Payments,REVENUE
http://statistics.data.gov.uk/id/local-authority/00HY,Wiltshire Council,27/11/2015,1901623896,1075.60,Akcess Ltd ,101402,SN2 ,Neighbourhood & Planning,SEN Primary,Transport Contracts,Third Party Payments,REVENUE
http://statistics.data.gov.uk/id/local-authority/00HY,Wiltshire Council,27/11/2015,1901623897,506.25,Akcess Ltd ,101402,SN2 ,Neighbourhood & Planning,SEN Primary,Transport Contracts,Third Party Payments,REVENUE
http://statistics.data.gov.uk/id/local-authority/00HY,Wiltshire Council,27/11/2015,1901623897,506.25,Akcess Ltd ,101402,SN2 ,Neighbourhood & Planning,SEN 16+ Secondary,Transport Contracts,Third Party Payments,REVENUE
http://statistics.data.gov.uk/id/local-authority/00HY,Wiltshire Council,27/11/2015,1901623897,1012.50,Akcess Ltd ,101402,SN2 ,Neighbourhood & Planning,SEN Secondary,Transport Contracts,Third Party Payments,REVENUE
http://statistics.data.gov.uk/id/local-authority/00HY,Wiltshire Council,27/11/2015,1901623898,486.16,Akcess Ltd ,101402,SN2 ,Neighbourhood & Planning,SEN Primary,Transport Contracts,Third Party Payments,REVENUE
http://statistics.data.gov.uk/id/local-authority/00HY,Wiltshire Council,27/11/2015,1901623898,1944.64,Akcess Ltd ,101402,SN2 ,Neighbourhood & Planning,SEN Secondary,Transport Contracts,Third Party Payments,REVENUE
http://statistics.data.gov.uk/id/local-authority/00HY,Wiltshire Council,27/11/2015,1901623899,1975.50,Akcess Ltd ,101402,SN2 ,Neighbourhood & Planning,SEN Primary,Transport Contracts,Third Party Payments,REVENUE
http://statistics.data.gov.uk/id/local-authority/00HY,Wiltshire Council,27/11/2015,1901623901,370.50,Akcess Ltd ,101402,SN2 ,Neighbourhood & Planning,Mainstream 16+ FE,Transport Contracts,Third Party Payments,REVENUE
http://statistics.data.gov.uk/id/local-authority/00HY,Wiltshire Council,27/11/2015,1901623911,933.33,Akcess Ltd ,101402,SN2 ,Neighbourhood & Planning,Mainstream Primary,Transport Contracts,Third Party Payments,REVENUE
http://statistics.data.gov.uk/id/local-authority/00HY,Wiltshire Council,27/11/2015,1901623911,1733.34,Akcess Ltd ,101402,SN2 ,Neighbourhood & Planning,Mainstream Secondary,Transport Contracts,Third Party Payments,REVENUE
http://statistics.data.gov.uk/id/local-authority/00HY,Wiltshire Council,10/11/2015,1901609411,2403.84,AKW Medi-Care Ltd ,142247,WR9 ,Wiltshire Council,Wiltshire Council,Payments to Contractors - Other,Third Party Payments,CAPITAL
http://statistics.data.gov.uk/id/local-authority/00HY,Wiltshire Council,24/11/2015,1901615309,2600.55,Alabare Christian Care Centre ,100837,SP2 ,Community Services,KASH Ruth House,Payments to Contractors - Other,Third Party Payments,REVENUE
http://statistics.data.gov.uk/id/local-authority/00HY,Wiltshire Council,26/11/2015,1901623134,1475.95,Alabare Christian Care Centre ,100837,SP2 ,Neighbourhood & Planning,HousingStrategy,Payments to Contractors - Other,Third Party Payments,REVENUE
http://statistics.data.gov.uk/id/local-authority/00HY,Wiltshire Council,26/11/2015,1901623136,2462.47,Alabare Christian Care Centre ,100837,SP2 ,Neighbourhood & Planning,HousingStrategy,Payments to Contractors - Other,Third Party Payments,REVENUE
http://statistics.data.gov.uk/id/local-authority/00HY,Wiltshire Council,26/11/2015,1901623141,2807.67,Alabare Christian Care Centre ,100837,SP2 ,Neighbourhood & Planning,HousingStrategy,Payments to Contractors - Other,Third Party Payments,REVENUE
http://statistics.data.gov.uk/id/local-authority/00HY,Wiltshire Council,26/11/2015,1901623144,3589.22,Alabare Christian Care Centre ,100837,SP2 ,Neighbourhood & Planning,HousingStrategy,Payments to Contractors - Other,Third Party Payments,REVENUE
http://statistics.data.gov.uk/id/local-authority/00HY,Wiltshire Council,26/11/2015,1901623145,3904.66,Alabare Christian Care Centre ,100837,SP2 ,Neighbourhood & Planning,HousingStrategy,Payments to Contractors - Other,Third Party Payments,REVENUE
http://statistics.data.gov.uk/id/local-authority/00HY,Wiltshire Council,26/11/2015,1901623152,9501.05,Alabare Christian Care Centre ,100837,SP2 ,Neighbourhood & Planning,HousingStrategy,Payments to Contractors - Other,Third Party Payments,REVENUE
http://statistics.data.gov.uk/id/local-authority/00HY,Wiltshire Council,26/11/2015,1901623156,25122.52,Alabare Christian Care Centre ,100837,SP2 ,Neighbourhood & Planning,HousingStrategy,Payments to Contractors - Other,Third Party Payments,REVENUE
http://statistics.data.gov.uk/id/local-authority/00HY,Wiltshire Council,27/11/2015,1901623728,375.13,Alabare Christian Care Centre ,100837,SP2 ,Children & Education,LAC & 16+ South,Other Social & Welfare Costs,Third Party Payments,REVENUE
http://statistics.data.gov.uk/id/local-authority/00HY,Wiltshire Council,09/11/2015,5106779880,1059.00,Alabare Christian Care Centre ,100837,SP2 ,Community Services,CTPLD Place CIC U65,Adult Domiciliary Care - Spot,Third Party Payments,REVENUE
http://statistics.data.gov.uk/id/local-authority/00HY,Wiltshire Council,09/11/2015,5106779881,960.00,Alabare Christian Care Centre ,100837,SP2 ,Community Services,CTPLD Place CIC U65,Adult Domiciliary Care - Spot,Third Party Payments,REVENUE
http://statistics.data.gov.uk/id/local-authority/00HY,Wiltshire Council,09/11/2015,5106779882,447.00,Alabare Christian Care Centre ,100837,SP2 ,Community Services,CTPLD Place CIC U65,Adult Domiciliary Care - Spot,Third Party Payments,REVENUE
http://statistics.data.gov.uk/id/local-authority/00HY,Wiltshire Council,09/11/2015,5106779907,488.25,Alabare Christian Care Centre ,100837,SP2 ,Community Services,CTPLD Place CIC U65,Adult Domiciliary Care - Spot,Third Party Payments,REVENUE
http://statistics.data.gov.uk/id/local-authority/00HY,Wiltshire Council,09/11/2015,5106779958,304.00,Alabare Christian Care Centre ,100837,SP2 ,Community Services,MH OP South Locality,Adult Day Care - Spot,Third Party Payments,REVENUE
http://statistics.data.gov.uk/id/local-authority/00HY,Wiltshire Council,09/11/2015,5106779960,480.00,Alabare Christian Care Centre ,100837,SP2 ,Community Services,MH AOWA South Locali,Adult Day Care - Spot,Third Party Payments,REVENUE
http://statistics.data.gov.uk/id/local-authority/00HY,Wiltshire Council,09/11/2015,5106779963,304.00,Alabare Christian Care Centre ,100837,SP2 ,Community Services,MH AOWA South Locali,Adult Day Care - Spot,Third Party Payments,REVENUE
http://statistics.data.gov.uk/id/local-authority/00HY,Wiltshire Council,09/11/2015,5106780009,1871.94,Alabare Christian Care Centre ,100837,SP2 ,Community Services,OVA South Locality,Supported Living - Without SP payments,Third Party Payments,REVENUE
http://statistics.data.gov.uk/id/local-authority/00HY,Wiltshire Council,09/11/2015,5106780011,2496.00,Alabare Christian Care Centre ,100837,SP2 ,Community Services,OVA South Locality,Supported Living - Without SP payments,Third Party Payments,REVENUE
http://statistics.data.gov.uk/id/local-authority/00HY,Wiltshire Council,09/11/2015,5106780013,2496.00,Alabare Christian Care Centre ,100837,SP2 ,Community Services,OVA South Locality,Supported Living - Without SP payments,Third Party Payments,REVENUE
http://statistics.data.gov.uk/id/local-authority/00HY,Wiltshire Council,09/11/2015,5106780015,2496.00,Alabare Christian Care Centre ,100837,SP2 ,Community Services,OVA South Locality,Supported Living - Without SP payments,Third Party Payments,REVENUE
http://statistics.data.gov.uk/id/local-authority/00HY,Wiltshire Council,10/11/2015,5106781070,342.00,Alabare Christian Care Centre ,100837,SP2 ,Community Services,CTPLD Place CIC U65,Adult Day Care - Spot,Third Party Payments,REVENUE
http://statistics.data.gov.uk/id/local-authority/00HY,Wiltshire Council,10/11/2015,5106781101,342.00,Alabare Christian Care Centre ,100837,SP2 ,Community Services,CTPLD Place CIC U65,Adult Day Care - Spot,Third Party Payments,REVENUE
http://statistics.data.gov.uk/id/local-authority/00HY,Wiltshire Council,10/11/2015,5106781313,342.00,Alabare Christian Care Centre ,100837,SP2 ,Community Services,CTPLD Place CIC U65,Adult Day Care - Spot,Third Party Payments,REVENUE
http://statistics.data.gov.uk/id/local-authority/00HY,Wiltshire Council,10/11/2015,5106781366,456.00,Alabare Christian Care Centre ,100837,SP2 ,Community Services,OVA South Locality,Adult Day Care - Spot,Third Party Payments,REVENUE
http://statistics.data.gov.uk/id/local-authority/00HY,Wiltshire Council,10/11/2015,5106781473,10795.00,Alabare Christian Care Centre ,100837,SP2 ,Community Services,Acorn House,Substance Misuse - Payments to Contractors,Third Party Payments,REVENUE
http://statistics.data.gov.uk/id/local-authority/00HY,Wiltshire Council,13/11/2015,5106782146,2622.67,Alabare Christian Care Centre ,100837,SP2 ,Children & Education,Albare Contract,Adult / Child Care Agency Placement,Third Party Payments,REVENUE
http://statistics.data.gov.uk/id/local-authority/00HY,Wiltshire Council,13/11/2015,5106782147,1723.90,Alabare Christian Care Centre ,100837,SP2 ,Children & Education,Albare Contract,Adult / Child Care Agency Placement,Third Party Payments,REVENUE
http://statistics.data.gov.uk/id/local-authority/00HY,Wiltshire Council,13/11/2015,5106782148,1913.32,Alabare Christian Care Centre ,100837,SP2 ,Children & Education,Albare Contract,Adult / Child Care Agency Placement,Third Party Payments,REVENUE
http://statistics.data.gov.uk/id/local-authority/00HY,Wiltshire Council,13/11/2015,5106782149,6389.17,Alabare Christian Care Centre ,100837,SP2 ,Children & Education,Albare Contract,Adult / Child Care Agency Placement,Third Party Payments,REVENUE
http://statistics.data.gov.uk/id/local-authority/00HY,Wiltshire Council,13/11/2015,5106782151,6018.80,Alabare Christian Care Centre ,100837,SP2 ,Children & Education,Albare Contract,Adult / Child Care Agency Placement,Third Party Payments,REVENUE
http://statistics.data.gov.uk/id/local-authority/00HY,Wiltshire Council,13/11/2015,5106782152,1723.90,Alabare Christian Care Centre ,100837,SP2 ,Children & Education,Albare Contract,Adult / Child Care Agency Placement,Third Party Payments,REVENUE
http://statistics.data.gov.uk/id/local-authority/00HY,Wiltshire Council,13/11/2015,5106782153,1414.60,Alabare Christian Care Centre ,100837,SP2 ,Children & Education,Albare Contract,Adult / Child Care Agency Placement,Third Party Payments,REVENUE
http://statistics.data.gov.uk/id/local-authority/00HY,Wiltshire Council,13/11/2015,5106782154,1456.75,Alabare Christian Care Centre ,100837,SP2 ,Children & Education,Albare Contract,Adult / Child Care Agency Placement,Third Party Payments,REVENUE
http://statistics.data.gov.uk/id/local-authority/00HY,Wiltshire Council,13/11/2015,5106782155,5822.25,Alabare Christian Care Centre ,100837,SP2 ,Children & Education,Albare Contract,Adult / Child Care Agency Placement,Third Party Payments,REVENUE
http://statistics.data.gov.uk/id/local-authority/00HY,Wiltshire Council,13/11/2015,5106782156,1723.90,Alabare Christian Care Centre ,100837,SP2 ,Children & Education,Albare Contract,Adult / Child Care Agency Placement,Third Party Payments,REVENUE
http://statistics.data.gov.uk/id/local-authority/00HY,Wiltshire Council,13/11/2015,5106782162,2344.90,Alabare Christian Care Centre ,100837,SP2 ,Children & Education,Albare Contract,Adult / Child Care Agency Placement,Third Party Payments,REVENUE
http://statistics.data.gov.uk/id/local-authority/00HY,Wiltshire Council,13/11/2015,5106782163,2975.76,Alabare Christian Care Centre ,100837,SP2 ,Children & Education,Albare Contract,Adult / Child Care Agency Placement,Third Party Payments,REVENUE
http://statistics.data.gov.uk/id/local-authority/00HY,Wiltshire Council,13/11/2015,5106782164,348.34,Alabare Christian Care Centre ,100837,SP2 ,Children & Education,LAC & 16+ South,Adult / Child Care Agency Placement,Third Party Payments,REVENUE
http://statistics.data.gov.uk/id/local-authority/00HY,Wiltshire Council,13/11/2015,5106782166,2149.45,Alabare Christian Care Centre ,100837,SP2 ,Children & Education,Ext Placement & IFA,Adult / Child Care Agency Placement,Third Party Payments,REVENUE
http://statistics.data.gov.uk/id/local-authority/00HY,Wiltshire Council,13/11/2015,5106782170,2266.41,Alabare Christian Care Centre ,100837,SP2 ,Children & Education,Albare Contract,Adult / Child Care Agency Placement,Third Party Payments,REVENUE
http://statistics.data.gov.uk/id/local-authority/00HY,Wiltshire Council,16/11/2015,5106782485,342.00,Alabare Christian Care Centre ,100837,SP2 ,Community Services,CTPLD Place CIC U65,Adult Day Care - Spot,Third Party Payments,REVENUE
http://statistics.data.gov.uk/id/local-authority/00HY,Wiltshire Council,16/11/2015,5106782487,304.00,Alabare Christian Care Centre ,100837,SP2 ,Community Services,CTPLD Place CIC U65,Adult Day Care - Spot,Third Party Payments,REVENUE
http://statistics.data.gov.uk/id/local-authority/00HY,Wiltshire Council,16/11/2015,5106782488,342.00,Alabare Christian Care Centre ,100837,SP2 ,Community Services,CTPLD Place CIC U65,Adult Day Care - Spot,Third Party Payments,REVENUE
http://statistics.data.gov.uk/id/local-authority/00HY,Wiltshire Council,16/11/2015,5106782500,342.00,Alabare Christian Care Centre ,100837,SP2 ,Community Services,OVA South Locality,Adult Day Care - Spot,Third Party Payments,REVENUE
http://statistics.data.gov.uk/id/local-authority/00HY,Wiltshire Council,16/11/2015,5106782504,646.00,Alabare Christian Care Centre ,100837,SP2 ,Community Services,CTPLD Place CIC U65,Adult Day Care - Spot,Third Party Payments,REVENUE
http://statistics.data.gov.uk/id/local-authority/00HY,Wiltshire Council,16/11/2015,5106782506,342.00,Alabare Christian Care Centre ,100837,SP2 ,Community Services,CTPLD Place CIC U65,Adult Day Care - Spot,Third Party Payments,REVENUE
http://statistics.data.gov.uk/id/local-authority/00HY,Wiltshire Council,16/11/2015,5106782520,342.00,Alabare Christian Care Centre ,100837,SP2 ,Community Services,OVA East Locality,Adult Day Care - Spot,Third Party Payments,REVENUE
http://statistics.data.gov.uk/id/local-authority/00HY,Wiltshire Council,16/11/2015,5106782521,494.00,Alabare Christian Care Centre ,100837,SP2 ,Community Services,OVA South Locality,Adult Day Care - Spot,Third Party Payments,REVENUE
http://statistics.data.gov.uk/id/local-authority/00HY,Wiltshire Council,16/11/2015,5106782523,304.00,Alabare Christian Care Centre ,100837,SP2 ,Community Services,CTPLD Place CIC U65,Adult Day Care - Spot,Third Party Payments,REVENUE
http://statistics.data.gov.uk/id/local-authority/00HY,Wiltshire Council,16/11/2015,5106782524,304.00,Alabare Christian Care Centre ,100837,SP2 ,Community Services,CTPLD Place CIC U65,Adult Day Care - Spot,Third Party Payments,REVENUE
http://statistics.data.gov.uk/id/local-authority/00HY,Wiltshire Council,16/11/2015,5106782525,646.00,Alabare Christian Care Centre ,100837,SP2 ,Community Services,CTPLD Place CIC U65,Adult Day Care - Spot,Third Party Payments,REVENUE
http://statistics.data.gov.uk/id/local-authority/00HY,Wiltshire Council,16/11/2015,5106782526,418.00,Alabare Christian Care Centre ,100837,SP2 ,Community Services,CTPLD Place CIC U65,Adult Day Care - Spot,Third Party Payments,REVENUE
http://statistics.data.gov.uk/id/local-authority/00HY,Wiltshire Council,16/11/2015,5106782527,304.00,Alabare Christian Care Centre ,100837,SP2 ,Community Services,CTPLD Place CIC U65,Adult Day Care - Spot,Third Party Payments,REVENUE
http://statistics.data.gov.uk/id/local-authority/00HY,Wiltshire Council,18/11/2015,5106782539,3201.00,Alabare Christian Care Centre ,100837,SP2 ,Community Services,CTPLD Place CIC U65,Supported Living - Without SP payments,Third Party Payments,REVENUE
http://statistics.data.gov.uk/id/local-authority/00HY,Wiltshire Council,18/11/2015,5106782585,3399.00,Alabare Christian Care Centre ,100837,SP2 ,Community Services,CTPLD Place CIC U65,Supported Living - Without SP payments,Third Party Payments,REVENUE
http://statistics.data.gov.uk/id/local-authority/00HY,Wiltshire Council,18/11/2015,5106782588,924.00,Alabare Christian Care Centre ,100837,SP2 ,Community Services,CTPLD Place CIC U65,Supported Living - Without SP payments,Third Party Payments,REVENUE
http://statistics.data.gov.uk/id/local-authority/00HY,Wiltshire Council,18/11/2015,5106782589,781.00,Alabare Christian Care Centre ,100837,SP2 ,Community Services,CTPLD Place CIC U65,Supported Living - Without SP payments,Third Party Payments,REVENUE
http://statistics.data.gov.uk/id/local-authority/00HY,Wiltshire Council,18/11/2015,5106782591,1914.00,Alabare Christian Care Centre ,100837,SP2 ,Community Services,CTPLD Place CIC U65,Supported Living - Without SP payments,Third Party Payments,REVENUE
http://statistics.data.gov.uk/id/local-authority/00HY,Wiltshire Council,18/11/2015,5106782593,462.00,Alabare Christian Care Centre ,100837,SP2 ,Community Services,CTPLD Place CIC U65,Supported Living - Without SP payments,Third Party Payments,REVENUE
http://statistics.data.gov.uk/id/local-authority/00HY,Wiltshire Council,18/11/2015,5106782594,2674.12,Alabare Christian Care Centre ,100837,SP2 ,Community Services,CTPLD Place CIC U65,Supported Living - Without SP payments,Third Party Payments,REVENUE
http://statistics.data.gov.uk/id/local-authority/00HY,Wiltshire Council,18/11/2015,5106782596,2727.40,Alabare Christian Care Centre ,100837,SP2 ,Community Services,CTPLD Place CIC U65,Supported Living - Without SP payments,Third Party Payments,REVENUE
http://statistics.data.gov.uk/id/local-authority/00HY,Wiltshire Council,18/11/2015,5106782597,1658.24,Alabare Christian Care Centre ,100837,SP2 ,Community Services,CTPLD Place CIC U65,Supported Living - Without SP payments,Third Party Payments,REVENUE
http://statistics.data.gov.uk/id/local-authority/00HY,Wiltshire Council,18/11/2015,5106782598,1751.44,Alabare Christian Care Centre ,100837,SP2 ,Community Services,CTPLD Place CIC U65,Supported Living - Without SP payments,Third Party Payments,REVENUE
http://statistics.data.gov.uk/id/local-authority/00HY,Wiltshire Council,18/11/2015,5106782600,1586.76,Alabare Christian Care Centre ,100837,SP2 ,Community Services,OVA South Locality,Supported Living - Without SP payments,Third Party Payments,REVENUE
http://statistics.data.gov.uk/id/local-authority/00HY,Wiltshire Council,18/11/2015,5106782601,583.00,Alabare Christian Care Centre ,100837,SP2 ,Community Services,CTPLD Place CIC U65,Supported Living - Without SP payments,Third Party Payments,REVENUE
http://statistics.data.gov.uk/id/local-authority/00HY,Wiltshire Council,18/11/2015,5106782603,715.00,Alabare Christian Care Centre ,100837,SP2 ,Community Services,CTPLD Place CIC U65,Supported Living - Without SP payments,Third Party Payments,REVENUE
http://statistics.data.gov.uk/id/local-authority/00HY,Wiltshire Council,18/11/2015,5106782605,352.00,Alabare Christian Care Centre ,100837,SP2 ,Community Services,CTPLD Place CIC U65,Supported Living - Without SP payments,Third Party Payments,REVENUE
http://statistics.data.gov.uk/id/local-authority/00HY,Wiltshire Council,18/11/2015,5106782610,1556.96,Alabare Christian Care Centre ,100837,SP2 ,Community Services,CTPLD Place CIC U65,Supported Living - Without SP payments,Third Party Payments,REVENUE
http://statistics.data.gov.uk/id/local-authority/00HY,Wiltshire Council,18/11/2015,5106782616,975.88,Alabare Christian Care Centre ,100837,SP2 ,Community Services,CTPLD Place CIC U65,Supported Living - Without SP payments,Third Party Payments,REVENUE
http://statistics.data.gov.uk/id/local-authority/00HY,Wiltshire Council,18/11/2015,5106782618,640.88,Alabare Christian Care Centre ,100837,SP2 ,Community Services,CTPLD Place CIC U65,Supported Living - Without SP payments,Third Party Payments,REVENUE
http://statistics.data.gov.uk/id/local-authority/00HY,Wiltshire Council,18/11/2015,5106782647,473.20,Alabare Christian Care Centre ,100837,SP2 ,Community Services,CTPLD Place CIC U65,Supported Living - Without SP payments,Third Party Payments,REVENUE
http://statistics.data.gov.uk/id/local-authority/00HY,Wiltshire Council,18/11/2015,5106782656,2841.88,Alabare Christian Care Centre ,100837,SP2 ,Community Services,CTPLD Place CIC U65,Supported Living - Without SP payments,Third Party Payments,REVENUE
http://statistics.data.gov.uk/id/local-authority/00HY,Wiltshire Council,18/11/2015,5106782658,3206.56,Alabare Christian Care Centre ,100837,SP2 ,Community Services,CTPLD Place CIC U65,Supported Living - Without SP payments,Third Party Payments,REVENUE
http://statistics.data.gov.uk/id/local-authority/00HY,Wiltshire Council,18/11/2015,5106782660,2833.64,Alabare Christian Care Centre ,100837,SP2 ,Community Services,CTPLD Place CIC U65,Supported Living - Without SP payments,Third Party Payments,REVENUE
http://statistics.data.gov.uk/id/local-authority/00HY,Wiltshire Council,18/11/2015,5106782664,3652.00,Alabare Christian Care Centre ,100837,SP2 ,Community Services,CTPLD Place CIC U65,Supported Living - Without SP payments,Third Party Payments,REVENUE
http://statistics.data.gov.uk/id/local-authority/00HY,Wiltshire Council,18/11/2015,5106782669,1845.80,Alabare Christian Care Centre ,100837,SP2 ,Community Services,CTPLD Place CIC U65,Supported Living - Without SP payments,Third Party Payments,REVENUE
http://statistics.data.gov.uk/id/local-authority/00HY,Wiltshire Council,18/11/2015,5106782722,3151.52,Alabare Christian Care Centre ,100837,SP2 ,Community Services,CTPLD Place CIC U65,Supported Living - Without SP payments,Third Party Payments,REVENUE
http://statistics.data.gov.uk/id/local-authority/00HY,Wiltshire Council,18/11/2015,5106782727,2959.00,Alabare Christian Care Centre ,100837,SP2 ,Community Services,CTPLD Place CIC U65,Supported Living - Without SP payments,Third Party Payments,REVENUE
http://statistics.data.gov.uk/id/local-authority/00HY,Wiltshire Council,18/11/2015,5106782733,462.00,Alabare Christian Care Centre ,100837,SP2 ,Community Services,OVA South Locality,Supported Living - Without SP payments,Third Party Payments,REVENUE
http://statistics.data.gov.uk/id/local-authority/00HY,Wiltshire Council,18/11/2015,5106782740,270.40,Alabare Christian Care Centre ,100837,SP2 ,Community Services,OVA South Locality,Supported Living - Without SP payments,Third Party Payments,REVENUE
http://statistics.data.gov.uk/id/local-authority/00HY,Wiltshire Council,18/11/2015,5106782745,2496.00,Alabare Christian Care Centre ,100837,SP2 ,Community Services,OVA South Locality,Supported Living - Without SP payments,Third Party Payments,REVENUE
http://statistics.data.gov.uk/id/local-authority/00HY,Wiltshire Council,18/11/2015,5106782762,1886.60,Alabare Christian Care Centre ,100837,SP2 ,Community Services,CTPLD Place CIC U65,Supported Living - Without SP payments,Third Party Payments,REVENUE
http://statistics.data.gov.uk/id/local-authority/00HY,Wiltshire Council,17/11/2015,5106784621,532.00,Alabare Christian Care Centre ,100837,SP2 ,Community Services,OVA South Locality,Adult Day Care - Spot,Third Party Payments,REVENUE
http://statistics.data.gov.uk/id/local-authority/00HY,Wiltshire Council,18/11/2015,5106787581,960.00,Alabare Christian Care Centre ,100837,SP2 ,Community Services,CTPLD Place CIC U65,Adult Domiciliary Care - Spot,Third Party Payments,REVENUE
http://statistics.data.gov.uk/id/local-authority/00HY,Wiltshire Council,20/11/2015,5106789995,695.14,Alabare Christian Care Centre ,100837,SP2 ,Children & Education,Albare Contract,Adult / Child Care Agency Placement,Third Party Payments,REVENUE
http://statistics.data.gov.uk/id/local-authority/00HY,Wiltshire Council,23/11/2015,5106790315,3254.58,Alabare Christian Care Centre ,100837,SP2 ,Community Services,CTPLD Place CIC U65,Supported Living - Without SP payments,Third Party Payments,REVENUE
http://statistics.data.gov.uk/id/local-authority/00HY,Wiltshire Council,23/11/2015,5106790316,4339.52,Alabare Christian Care Centre ,100837,SP2 ,Community Services,CTPLD Place CIC U65,Supported Living - Without SP payments,Third Party Payments,REVENUE
http://statistics.data.gov.uk/id/local-authority/00HY,Wiltshire Council,23/11/2015,5106790317,4339.52,Alabare Christian Care Centre ,100837,SP2 ,Community Services,CTPLD Place CIC U65,Supported Living - Without SP payments,Third Party Payments,REVENUE
http://statistics.data.gov.uk/id/local-authority/00HY,Wiltshire Council,23/11/2015,5106790318,4339.52,Alabare Christian Care Centre ,100837,SP2 ,Community Services,CTPLD Place CIC U65,Supported Living - Without SP payments,Third Party Payments,REVENUE
http://statistics.data.gov.uk/id/local-authority/00HY,Wiltshire Council,23/11/2015,5106790353,480.00,Alabare Christian Care Centre ,100837,SP2 ,Community Services,CTPLD Place CIC U65,Adult Day Care - Spot,Third Party Payments,REVENUE
http://statistics.data.gov.uk/id/local-authority/00HY,Wiltshire Council,23/11/2015,5106790354,304.00,Alabare Christian Care Centre ,100837,SP2 ,Community Services,CTPLD Place CIC U65,Adult Day Care - Spot,Third Party Payments,REVENUE
http://statistics.data.gov.uk/id/local-authority/00HY,Wiltshire Council,23/11/2015,5106790358,646.00,Alabare Christian Care Centre ,100837,SP2 ,Community Services,OVA South Locality,Adult Day Care - Spot,Third Party Payments,REVENUE
http://statistics.data.gov.uk/id/local-authority/00HY,Wiltshire Council,23/11/2015,5106790359,320.00,Alabare Christian Care Centre ,100837,SP2 ,Community Services,CTPLD Place CIC U65,Adult Day Care - Spot,Third Party Payments,REVENUE
http://statistics.data.gov.uk/id/local-authority/00HY,Wiltshire Council,24/11/2015,5106790548,1504.39,Alabare Christian Care Centre ,100837,SP2 ,Children & Education,Albare Contract,Adult / Child Care Agency Placement,Third Party Payments,REVENUE
http://statistics.data.gov.uk/id/local-authority/00HY,Wiltshire Council,25/11/2015,5106790765,480.00,Alabare Christian Care Centre ,100837,SP2 ,Community Services,CTPLD Place CIC U65,Adult Domiciliary Care - Spot,Third Party Payments,REVENUE
http://statistics.data.gov.uk/id/local-authority/00HY,Wiltshire Council,25/11/2015,5106790778,410.44,Alabare Christian Care Centre ,100837,SP2 ,Community Services,CTPLD Place CIC U65,Adult Domiciliary Care - Spot Contribution,Income,REVENUE
http://statistics.data.gov.uk/id/local-authority/00HY,Wiltshire Council,25/11/2015,5106790779,589.94,Alabare Christian Care Centre ,100837,SP2 ,Community Services,CTPLD Place CIC U65,Adult Domiciliary Care - Spot Contribution,Income,REVENUE
http://statistics.data.gov.uk/id/local-authority/00HY,Wiltshire Council,25/11/2015,5106790816,2038.84,Alabare Christian Care Centre ,100837,SP2 ,Community Services,CTPLD Place CIC U65,Supported Living - Without SP payments,Third Party Payments,REVENUE
http://statistics.data.gov.uk/id/local-authority/00HY,Wiltshire Council,19/11/2015,1901613801,5479.00,Albino Builders Ltd ,141742,BA4 ,Wiltshire Council,Wiltshire Council,Payments to Contractors - Other,Third Party Payments,CAPITAL
http://statistics.data.gov.uk/id/local-authority/00HY,Wiltshire Council,25/11/2015,1901622995,10898.99,Alchemy Promotions Limited ,139713,CF24,Neighbourhood & Planning,City Hall,City Hall Shows,Balance Sheet Accounts,REVENUE
http://statistics.data.gov.uk/id/local-authority/00HY,Wiltshire Council,18/11/2015,5106783880,815.76,Aldbourne Nursing Home ,110090,SN8 ,Community Services,East Locality OP,Adult Care Nursing Placements- Spot Purchase,Third Party Payments,REVENUE
http://statistics.data.gov.uk/id/local-authority/00HY,Wiltshire Council,18/11/2015,5106785777,2040.84,Aldbourne Nursing Home ,110090,SN8 ,Community Services,East Locality OP,Adult Care Nursing Placements- Spot Purchase,Third Party Payments,REVENUE
http://statistics.data.gov.uk/id/local-authority/00HY,Wiltshire Council,18/11/2015,5106785778,448.00,Aldbourne Nursing Home ,110090,SN8 ,Community Services,OP East FNC,Adult Care Funded Nursing Care - Loal Auth Clients,Third Party Payments,REVENUE
http://statistics.data.gov.uk/id/local-authority/00HY,Wiltshire Council,18/11/2015,5106786357,2076.36,Aldbourne Nursing Home ,110090,SN8 ,Community Services,North Locality OP,Adult Care Nursing Placements- Spot Purchase,Third Party Payments,REVENUE
http://statistics.data.gov.uk/id/local-authority/00HY,Wiltshire Council,18/11/2015,5106786358,448.00,Aldbourne Nursing Home ,110090,SN8 ,Community Services,OP North FNC,Adult Care Funded Nursing Care - Loal Auth Clients,Third Party Payments,REVENUE
http://statistics.data.gov.uk/id/local-authority/00HY,Wiltshire Council,18/11/2015,5106786474,2524.36,Aldbourne Nursing Home ,110090,SN8 ,Community Services,MH OP North Locality,Adult Care Nursing Placements- Spot Purchase,Third Party Payments,REVENUE
http://statistics.data.gov.uk/id/local-authority/00HY,Wiltshire Council,18/11/2015,5106786756,3400.00,Aldbourne Nursing Home ,110090,SN8 ,Community Services,Home Loans,Adult Care Loans,Capital charges and Expenditure,REVENUE
http://statistics.data.gov.uk/id/local-authority/00HY,Wiltshire Council,18/11/2015,5106787066,3052.00,Aldbourne Nursing Home ,110090,SN8 ,Community Services,Home Loans,Adult Care Loans,Capital charges and Expenditure,REVENUE
http://statistics.data.gov.uk/id/local-authority/00HY,Wiltshire Council,18/11/2015,5106787126,2952.00,Aldbourne Nursing Home ,110090,SN8 ,Community Services,Home Loans,Adult Care Loans,Capital charges and Expenditure,REVENUE
http://statistics.data.gov.uk/id/local-authority/00HY,Wiltshire Council,20/11/2015,5106789878,570.09,Aldbourne Nursing Home ,110090,SN8 ,Community Services,East Locality OP,Adult Care Nursing Placements- Spot Purchase,Third Party Payments,REVENUE
http://statistics.data.gov.uk/id/local-authority/00HY,Wiltshire Council,20/11/2015,5106789881,2280.36,Aldbourne Nursing Home ,110090,SN8 ,Community Services,East Locality OP,Adult Care Nursing Placements- Spot Purchase,Third Party Payments,REVENUE
http://statistics.data.gov.uk/id/local-authority/00HY,Wiltshire Council,20/11/2015,5106789882,448.00,Aldbourne Nursing Home ,110090,SN8 ,Community Services,OP East FNC,Adult Care Funded Nursing Care - Loal Auth Clients,Third Party Payments,REVENUE
http://statistics.data.gov.uk/id/local-authority/00HY,Wiltshire Council,04/11/2015,1901607399,550.00,Alder King ,100899,BS8 ,Resources,Other Offices,Other Professional Fees,Supplies and Services,REVENUE
http://statistics.data.gov.uk/id/local-authority/00HY,Wiltshire Council,04/11/2015,5106778724,2592.00,Alder King ,100899,BS8 ,Wiltshire Council,Wiltshire Council,Consultants� Fees,Supplies and Services,CAPITAL
http://statistics.data.gov.uk/id/local-authority/00HY,Wiltshire Council,23/11/2015,5106790360,5175.00,Alec French Architects ,125769,BS1 ,Wiltshire Council,Wiltshire Council,Consultants� Fees,Supplies and Services,CAPITAL
http://statistics.data.gov.uk/id/local-authority/00HY,Wiltshire Council,18/11/2015,5106787045,5764.60,Alexandra Homes (Bristol) Ltd ,131787,BS15,Community Services,MH AOWA North Locali,Adult Residential Placements - Spot Purchase,Third Party Payments,REVENUE
http://statistics.data.gov.uk/id/local-authority/00HY,Wiltshire Council,18/11/2015,5106787295,6180.00,Alexandra Homes (Bristol) Ltd ,131787,BS15,Community Services,OVA West Locality,Adult Residential Placements - Spot Purchase,Third Party Payments,REVENUE
http://statistics.data.gov.uk/id/local-authority/00HY,Wiltshire Council,18/11/2015,5106787016,1470.00,Alison Holmes ,122891,SN12,Community Services,OVA North Locality,Adult Placement,Third Party Payments,REVENUE
http://statistics.data.gov.uk/id/local-authority/00HY,Wiltshire Council,18/11/2015,5106785668,3991.80,Alliance Home Care ,110986,SN15,Community Services,MH AOWA North Locali,Adult Residential Placements - Spot Purchase,Third Party Payments,REVENUE
http://statistics.data.gov.uk/id/local-authority/00HY,Wiltshire Council,18/11/2015,5106785871,3749.52,Alliance Home Care ,110986,SN15,Community Services,MH OP North Locality,Adult Residential Placements - Spot Purchase,Third Party Payments,REVENUE
http://statistics.data.gov.uk/id/local-authority/00HY,Wiltshire Council,18/11/2015,5106785950,3548.76,Alliance Home Care ,110986,SN15,Community Services,CTPLD Place CIC U65,Adult Residential Placements - Spot Purchase,Third Party Payments,REVENUE
http://statistics.data.gov.uk/id/local-authority/00HY,Wiltshire Council,18/11/2015,5106786212,3651.12,Alliance Home Care ,110986,SN15,Community Services,MH AOWA North Locali,Adult Residential Placements - Spot Purchase,Third Party Payments,REVENUE
http://statistics.data.gov.uk/id/local-authority/00HY,Wiltshire Council,18/11/2015,5106786652,914.32,Alliance Home Care ,110986,SN15,Community Services,MH AOWA North Locali,Adult Residential Placements - Spot Purchase,Third Party Payments,REVENUE
http://statistics.data.gov.uk/id/local-authority/00HY,Wiltshire Council,18/11/2015,5106787068,2108.92,Alliance Home Care ,110986,SN15,Community Services,MH OP North Locality,Adult Residential Placements - Spot Purchase,Third Party Payments,REVENUE
http://statistics.data.gov.uk/id/local-authority/00HY,Wiltshire Council,27/11/2015,5106792518,1754.30,Alliance Home Care ,110986,SN15,Community Services,CTPLD Place CIC U65,Adult Residential Placements - Spot Purchase,Third Party Payments,REVENUE
http://statistics.data.gov.uk/id/local-authority/00HY,Wiltshire Council,27/11/2015,5106792520,4912.00,Alliance Home Care ,110986,SN15,Community Services,CTPLD Place CIC U65,Adult Residential Placements - Spot Purchase,Third Party Payments,REVENUE
http://statistics.data.gov.uk/id/local-authority/00HY,Wiltshire Council,27/11/2015,5106792522,2806.88,Alliance Home Care ,110986,SN15,Community Services,CTPLD Place CIC U65,Adult Residential Placements - Spot Purchase,Third Party Payments,REVENUE
http://statistics.data.gov.uk/id/local-authority/00HY,Wiltshire Council,27/11/2015,5106792524,2105.16,Alliance Home Care ,110986,SN15,Community Services,CTPLD Place CIC U65,Adult Residential Placements - Spot Purchase,Third Party Payments,REVENUE
http://statistics.data.gov.uk/id/local-authority/00HY,Wiltshire Council,27/11/2015,5106792527,4912.00,Alliance Home Care ,110986,SN15,Community Services,CTPLD Place CIC U65,Adult Residential Placements - Spot Purchase,Third Party Payments,REVENUE
http://statistics.data.gov.uk/id/local-authority/00HY,Wiltshire Council,27/11/2015,5106792529,4912.00,Alliance Home Care ,110986,SN15,Community Services,CTPLD Place CIC U65,Adult Residential Placements - Spot Purchase,Third Party Payments,REVENUE
http://statistics.data.gov.uk/id/local-authority/00HY,Wiltshire Council,27/11/2015,5106792531,4912.00,Alliance Home Care ,110986,SN15,Community Services,CTPLD Place CIC U65,Adult Residential Placements - Spot Purchase,Third Party Payments,REVENUE
http://statistics.data.gov.uk/id/local-authority/00HY,Wiltshire Council,27/11/2015,5106792533,4912.00,Alliance Home Care ,110986,SN15,Community Services,CTPLD Place CIC U65,Adult Residential Placements - Spot Purchase,Third Party Payments,REVENUE
http://statistics.data.gov.uk/id/local-authority/00HY,Wiltshire Council,27/11/2015,5106792535,4912.00,Alliance Home Care ,110986,SN15,Community Services,CTPLD Place CIC U65,Adult Residential Placements - Spot Purchase,Third Party Payments,REVENUE
http://statistics.data.gov.uk/id/local-authority/00HY,Wiltshire Council,27/11/2015,5106792537,4912.00,Alliance Home Care ,110986,SN15,Community Services,CTPLD Place CIC U65,Adult Residential Placements - Spot Purchase,Third Party Payments,REVENUE
http://statistics.data.gov.uk/id/local-authority/00HY,Wiltshire Council,27/11/2015,5106792539,4912.00,Alliance Home Care ,110986,SN15,Community Services,CTPLD Place CIC U65,Adult Residential Placements - Spot Purchase,Third Party Payments,REVENUE
http://statistics.data.gov.uk/id/local-authority/00HY,Wiltshire Council,27/11/2015,5106792541,4912.00,Alliance Home Care ,110986,SN15,Community Services,CTPLD Place CIC U65,Adult Residential Placements - Spot Purchase,Third Party Payments,REVENUE
http://statistics.data.gov.uk/id/local-authority/00HY,Wiltshire Council,27/11/2015,5106792543,4912.00,Alliance Home Care ,110986,SN15,Community Services,CTPLD Place CIC U65,Adult Residential Placements - Spot Purchase,Third Party Payments,REVENUE
http://statistics.data.gov.uk/id/local-authority/00HY,Wiltshire Council,09/11/2015,5106779910,2261.97,Allied Healthcare  UK  Ltd Allied Healthcare  UK  Ltd,110113,ST18,Community Services,East Locality OP,Adult Domiciliary Care - Spot,Third Party Payments,REVENUE
http://statistics.data.gov.uk/id/local-authority/00HY,Wiltshire Council,09/11/2015,5106779954,304.24,Allied Healthcare  UK  Ltd Allied Healthcare  UK  Ltd,110113,ST18,Community Services,CTPLD Place CIC U65,Adult Domiciliary Care - Spot,Third Party Payments,REVENUE
http://statistics.data.gov.uk/id/local-authority/00HY,Wiltshire Council,06/11/2015,5106774853,303.66,Allied Healthcare Group Allied Healthcare Group,113066,SP2 ,Community Services,OVA South Locality,Supported Living - Without SP payments,Third Party Payments,REVENUE
http://statistics.data.gov.uk/id/local-authority/00HY,Wiltshire Council,06/11/2015,5106779724,9596.70,Allied Healthcare Group Allied Healthcare Group,113066,SP2 ,Community Services,East Locality OP,Adult Domiciliary Care - Spot Contribution,Income,REVENUE
http://statistics.data.gov.uk/id/local-authority/00HY,Wiltshire Council,02/11/2015,5106778345,480.00,ALLSPARES  AUTO  LTD ,110116,CF33,Neighbourhood & Planning,Fleet Operations,Vehicle Parts,Transport Related,REVENUE
http://statistics.data.gov.uk/id/local-authority/00HY,Wiltshire Council,02/11/2015,5106778346,900.00,ALLSPARES  AUTO  LTD ,110116,CF33,Neighbourhood & Planning,Fleet Operations,Vehicle Parts,Transport Related,REVENUE
http://statistics.data.gov.uk/id/local-authority/00HY,Wiltshire Council,16/11/2015,5106776060,311.00,Alpha Chemicals ,138904,SO31,Neighbourhood & Planning,Five Rivers,Building Fixtures and Fittings,Premises Related,REVENUE
http://statistics.data.gov.uk/id/local-authority/00HY,Wiltshire Council,06/11/2015,5106776062,361.00,Alpha Chemicals ,138904,SO31,Neighbourhood & Planning,Five Rivers,Building Fixtures and Fittings,Premises Related,REVENUE
http://statistics.data.gov.uk/id/local-authority/00HY,Wiltshire Council,06/11/2015,1901606604,272.95,Alpha Plus Training  and  Translati Ltd,110120,TA4 ,Children & Education,Safeguarding Ass Sth,Other Professional Fees,Supplies and Services,REVENUE
http://statistics.data.gov.uk/id/local-authority/00HY,Wiltshire Council,26/11/2015,1901623481,286.15,Alpha Plus Training  and  Translati Ltd,110120,TA4 ,Children & Education,Safeguarding Ass Sth,Other Professional Fees,Supplies and Services,REVENUE
http://statistics.data.gov.uk/id/local-authority/00HY,Wiltshire Council,13/11/2015,5106775705,456.60,Alpha Plus Training  and  Translati Ltd,110120,TA4 ,Children & Education,HQ Social Care,Other Professional Fees,Supplies and Services,REVENUE
http://statistics.data.gov.uk/id/local-authority/00HY,Wiltshire Council,06/11/2015,5106779397,327.35,Alpha Plus Training  and  Translati Ltd,110120,TA4 ,Children & Education,HQ Social Care,Publications / periodicals,Supplies and Services,REVENUE
http://statistics.data.gov.uk/id/local-authority/00HY,Wiltshire Council,04/11/2015,5106779398,570.35,Alpha Plus Training  and  Translati Ltd,110120,TA4 ,Children & Education,HQ Social Care,Publications / periodicals,Supplies and Services,REVENUE
http://statistics.data.gov.uk/id/local-authority/00HY,Wiltshire Council,24/11/2015,5106790396,257.10,Alpha Plus Training  and  Translati Ltd,110120,TA4 ,Children & Education,HQ Social Care,Other Professional Fees,Supplies and Services,REVENUE
http://statistics.data.gov.uk/id/local-authority/00HY,Wiltshire Council,24/11/2015,5106790414,474.10,Alpha Plus Training  and  Translati Ltd,110120,TA4 ,Children & Education,HQ Social Care,Other Professional Fees,Supplies and Services,REVENUE
http://statistics.data.gov.uk/id/local-authority/00HY,Wiltshire Council,04/11/2015,1901607680,292.70,Alpha Taxis ,100124,BA14,Community Services,CTPLD Place CIC U65,Transport Contracts,Third Party Payments,REVENUE
http://statistics.data.gov.uk/id/local-authority/00HY,Wiltshire Council,04/11/2015,1901607680,321.60,Alpha Taxis ,100124,BA14,Neighbourhood & Planning,SEN Non Contract Exp,Transport Contracts,Third Party Payments,REVENUE
http://statistics.data.gov.uk/id/local-authority/00HY,Wiltshire Council,04/11/2015,1901607680,436.60,Alpha Taxis ,100124,BA14,Neighbourhood & Planning,SEN Rechargable Exp,Transport Contracts,Third Party Payments,REVENUE
http://statistics.data.gov.uk/id/local-authority/00HY,Wiltshire Council,04/11/2015,1901607680,512.40,Alpha Taxis ,100124,BA14,Neighbourhood & Planning,SEN 16+ FE Colleges,Transport Contracts,Third Party Payments,REVENUE
http://statistics.data.gov.uk/id/local-authority/00HY,Wiltshire Council,04/11/2015,1901607680,593.40,Alpha Taxis ,100124,BA14,Neighbourhood & Planning,Mainstream 16+ FE,Transport Contracts,Third Party Payments,REVENUE
http://statistics.data.gov.uk/id/local-authority/00HY,Wiltshire Council,04/11/2015,1901607680,722.40,Alpha Taxis ,100124,BA14,Neighbourhood & Planning,SEN 16+ Secondary,Transport Contracts,Third Party Payments,REVENUE
http://statistics.data.gov.uk/id/local-authority/00HY,Wiltshire Council,04/11/2015,1901607680,732.00,Alpha Taxis ,100124,BA14,Neighbourhood & Planning,SEN Primary,Transport Contracts,Third Party Payments,REVENUE
http://statistics.data.gov.uk/id/local-authority/00HY,Wiltshire Council,05/11/2015,1901608297,555.00,Alpha Taxis ,100124,BA14,Neighbourhood & Planning,SEN Secondary,Transport Contracts,Third Party Payments,REVENUE
http://statistics.data.gov.uk/id/local-authority/00HY,Wiltshire Council,05/11/2015,1901608299,500.00,Alpha Taxis ,100124,BA14,Children & Education,LAC & 16+ North,Transport Contracts,Third Party Payments,REVENUE
http://statistics.data.gov.uk/id/local-authority/00HY,Wiltshire Council,05/11/2015,1901608302,287.10,Alpha Taxis ,100124,BA14,Neighbourhood & Planning,Mainstream Primary,Transport Contracts,Third Party Payments,REVENUE
http://statistics.data.gov.uk/id/local-authority/00HY,Wiltshire Council,05/11/2015,1901608304,396.00,Alpha Taxis ,100124,BA14,Neighbourhood & Planning,Mainstream Primary,Transport Contracts,Third Party Payments,REVENUE
http://statistics.data.gov.uk/id/local-authority/00HY,Wiltshire Council,05/11/2015,1901608305,285.60,Alpha Taxis ,100124,BA14,Neighbourhood & Planning,Mainstream Secondary,Transport Contracts,Third Party Payments,REVENUE
http://statistics.data.gov.uk/id/local-authority/00HY,Wiltshire Council,05/11/2015,1901608306,313.74,Alpha Taxis ,100124,BA14,Neighbourhood & Planning,Mainstream Primary,Transport Contracts,Third Party Payments,REVENUE
http://statistics.data.gov.uk/id/local-authority/00HY,Wiltshire Council,05/11/2015,1901608307,733.70,Alpha Taxis ,100124,BA14,Neighbourhood & Planning,SEN Primary,Transport Contracts,Third Party Payments,REVENUE
http://statistics.data.gov.uk/id/local-authority/00HY,Wiltshire Council,05/11/2015,1901608311,824.15,Alpha Taxis ,100124,BA14,Neighbourhood & Planning,Mainstream Secondary,Transport Contracts,Third Party Payments,REVENUE
http://statistics.data.gov.uk/id/local-authority/00HY,Wiltshire Council,05/11/2015,1901608312,252.00,Alpha Taxis ,100124,BA14,Neighbourhood & Planning,Mainstream Secondary,Transport Contracts,Third Party Payments,REVENUE
http://statistics.data.gov.uk/id/local-authority/00HY,Wiltshire Council,10/11/2015,1901609586,306.61,Alpha Taxis ,100124,BA14,Community Services,CTPLD Place CIC U65,Transport Contracts,Third Party Payments,REVENUE
http://statistics.data.gov.uk/id/local-authority/00HY,Wiltshire Council,17/11/2015,1901612034,251.60,Alpha Taxis ,100124,BA14,Neighbourhood & Planning,SEN Non Contract Exp,Transport Contracts,Third Party Payments,REVENUE
http://statistics.data.gov.uk/id/local-authority/00HY,Wiltshire Council,17/11/2015,1901612034,484.00,Alpha Taxis ,100124,BA14,Neighbourhood & Planning,SEN Primary,Transport Contracts,Third Party Payments,REVENUE
http://statistics.data.gov.uk/id/local-authority/00HY,Wiltshire Council,17/11/2015,1901612034,624.60,Alpha Taxis ,100124,BA14,Neighbourhood & Planning,SEN 16+ Secondary,Transport Contracts,Third Party Payments,REVENUE
http://statistics.data.gov.uk/id/local-authority/00HY,Wiltshire Council,17/11/2015,1901612034,691.60,Alpha Taxis ,100124,BA14,Neighbourhood & Planning,SEN 16+ FE Colleges,Transport Contracts,Third Party Payments,REVENUE
http://statistics.data.gov.uk/id/local-authority/00HY,Wiltshire Council,17/11/2015,1901612034,976.00,Alpha Taxis ,100124,BA14,Neighbourhood & Planning,SEN Rechargable Exp,Transport Contracts,Third Party Payments,REVENUE
http://statistics.data.gov.uk/id/local-authority/00HY,Wiltshire Council,17/11/2015,1901612035,645.15,Alpha Taxis ,100124,BA14,Neighbourhood & Planning,Mainstream Secondary,Transport Contracts,Third Party Payments,REVENUE
http://statistics.data.gov.uk/id/local-authority/00HY,Wiltshire Council,17/11/2015,1901612036,893.00,Alpha Taxis ,100124,BA14,Neighbourhood & Planning,SEN Secondary,Transport Contracts,Third Party Payments,REVENUE
http://statistics.data.gov.uk/id/local-authority/00HY,Wiltshire Council,17/11/2015,1901612037,1033.80,Alpha Taxis ,100124,BA14,Neighbourhood & Planning,SEN Primary,Transport Contracts,Third Party Payments,REVENUE
http://statistics.data.gov.uk/id/local-authority/00HY,Wiltshire Council,17/11/2015,1901612038,320.55,Alpha Taxis ,100124,BA14,Neighbourhood & Planning,Mainstream 16+ FE,Transport Contracts,Third Party Payments,REVENUE
http://statistics.data.gov.uk/id/local-authority/00HY,Wiltshire Council,04/11/2015,5106778689,22000.00,ALPS Alkemygold Ltd ,138695,HD3 ,Neighbourhood & Planning,A4W-Wilts Skil4Succs,Grants Paid to individuals for Tangible Benefits,Supplies and Services,REVENUE
http://statistics.data.gov.uk/id/local-authority/00HY,Wiltshire Council,12/11/2015,5106781643,280.17,Alzheimers Support ,113451,BA14,Community Services,East Locality OP,Adult Domiciliary Care - Mileage,Third Party Payments,REVENUE
http://statistics.data.gov.uk/id/local-authority/00HY,Wiltshire Council,13/11/2015,5106782452,302.40,Alzheimers Support ,113451,BA14,Community Services,MH OP North Locality,Adult Domiciliary Care - Spot,Third Party Payments,REVENUE
http://statistics.data.gov.uk/id/local-authority/00HY,Wiltshire Council,27/11/2015,1901607888,808.50,AMAS Ltd Main Clients Account ,125036,BS8 ,Resources,M'boro Highways Depo,Premises Management Costs,Premises Related,REVENUE
http://statistics.data.gov.uk/id/local-authority/00HY,Wiltshire Council,27/11/2015,1901607889,1077.90,AMAS Ltd Main Clients Account ,125036,BS8 ,Resources,M'boro Highways Depo,Premises Management Costs,Premises Related,REVENUE
http://statistics.data.gov.uk/id/local-authority/00HY,Wiltshire Council,18/11/2015,5106782742,3600.00,Amber Residential Care Homes Ltd ,141558,OX4 ,Community Services,MH AOWA North Locali,Supported Living - Without SP payments,Third Party Payments,REVENUE
http://statistics.data.gov.uk/id/local-authority/00HY,Wiltshire Council,13/11/2015,5106782251,6346.20,Amberwood Cambian Group ,138521,BH14,Community Services,CTPLD Place CIC U65,Adult Residential Placements - Spot Purchase,Third Party Payments,REVENUE
http://statistics.data.gov.uk/id/local-authority/00HY,Wiltshire Council,13/11/2015,5106782253,12692.32,Amberwood Cambian Group ,138521,BH14,Community Services,CTPLD Place CIC U65,Adult Residential Placements - Spot Purchase,Third Party Payments,REVENUE
http://statistics.data.gov.uk/id/local-authority/00HY,Wiltshire Council,13/11/2015,5106782255,12692.32,Amberwood Cambian Group ,138521,BH14,Community Services,CTPLD Place CIC U65,Adult Residential Placements - Spot Purchase,Third Party Payments,REVENUE
http://statistics.data.gov.uk/id/local-authority/00HY,Wiltshire Council,13/11/2015,5106782257,12692.32,Amberwood Cambian Group ,138521,BH14,Community Services,CTPLD Place CIC U65,Adult Residential Placements - Spot Purchase,Third Party Payments,REVENUE
http://statistics.data.gov.uk/id/local-authority/00HY,Wiltshire Council,13/11/2015,5106782259,12692.32,Amberwood Cambian Group ,138521,BH14,Community Services,CTPLD Place CIC U65,Adult Residential Placements - Spot Purchase,Third Party Payments,REVENUE
http://statistics.data.gov.uk/id/local-authority/00HY,Wiltshire Council,13/11/2015,5106782261,12692.32,Amberwood Cambian Group ,138521,BH14,Community Services,CTPLD Place CIC U65,Adult Residential Placements - Spot Purchase,Third Party Payments,REVENUE
http://statistics.data.gov.uk/id/local-authority/00HY,Wiltshire Council,13/11/2015,5106782263,12692.32,Amberwood Cambian Group ,138521,BH14,Community Services,CTPLD Place CIC U65,Adult Residential Placements - Spot Purchase,Third Party Payments,REVENUE
http://statistics.data.gov.uk/id/local-authority/00HY,Wiltshire Council,18/11/2015,5106783647,11153.84,Amberwood Cambian Group ,138521,BH14,Community Services,CTPLD Place CIC U65,Adult Residential Placements - Spot Purchase,Third Party Payments,REVENUE
http://statistics.data.gov.uk/id/local-authority/00HY,Wiltshire Council,18/11/2015,5106784655,12692.32,Amberwood Cambian Group ,138521,BH14,Community Services,CTPLD Place CIC U65,Adult Residential Placements - Spot Purchase,Third Party Payments,REVENUE
http://statistics.data.gov.uk/id/local-authority/00HY,Wiltshire Council,16/11/2015,5106782691,3543.00,Amicus Foster Care Limited ,126050,BS2 ,Children & Education,Ext Placement & IFA,Adult / Child Care Agency Placement,Third Party Payments,REVENUE
http://statistics.data.gov.uk/id/local-authority/00HY,Wiltshire Council,16/11/2015,5106782711,3045.00,Amicus Foster Care Limited ,126050,BS2 ,Children & Education,Ext Placement & IFA,Adult / Child Care Agency Placement,Third Party Payments,REVENUE
http://statistics.data.gov.uk/id/local-authority/00HY,Wiltshire Council,16/11/2015,5106782713,3045.00,Amicus Foster Care Limited ,126050,BS2 ,Children & Education,Ext Placement & IFA,Adult / Child Care Agency Placement,Third Party Payments,REVENUE
http://statistics.data.gov.uk/id/local-authority/00HY,Wiltshire Council,16/11/2015,5106782719,348.56,Amicus Foster Care Limited ,126050,BS2 ,Children & Education,PCT in/out,Adult / Child Care Agency Placement,Third Party Payments,REVENUE
http://statistics.data.gov.uk/id/local-authority/00HY,Wiltshire Council,16/11/2015,5106782721,3542.70,Amicus Foster Care Limited ,126050,BS2 ,Children & Education,Ext Placement & IFA,Adult / Child Care Agency Placement,Third Party Payments,REVENUE
http://statistics.data.gov.uk/id/local-authority/00HY,Wiltshire Council,16/11/2015,5106782726,3267.00,Amicus Foster Care Limited ,126050,BS2 ,Children & Education,Ext Placement & IFA,Adult / Child Care Agency Placement,Third Party Payments,REVENUE
http://statistics.data.gov.uk/id/local-authority/00HY,Wiltshire Council,24/11/2015,5106790518,1525.77,Amicus Foster Care Limited ,126050,BS2 ,Children & Education,Ext Placement & IFA,Adult / Child Care Agency Placement,Third Party Payments,REVENUE
http://statistics.data.gov.uk/id/local-authority/00HY,Wiltshire Council,27/11/2015,5106791577,2233.00,Amicus Foster Care Limited ,126050,BS2 ,Children & Education,Ext Placement & IFA,Adult / Child Care Agency Placement,Third Party Payments,REVENUE
http://statistics.data.gov.uk/id/local-authority/00HY,Wiltshire Council,27/11/2015,5106791578,1073.61,Amicus Foster Care Limited ,126050,BS2 ,Children & Education,Ext Placement & IFA,Adult / Child Care Agency Placement,Third Party Payments,REVENUE
http://statistics.data.gov.uk/id/local-authority/00HY,Wiltshire Council,13/11/2015,5106782172,1274.84,AMS Care Wiltshire ,130764,SN4 ,Community Services,North Locality OP,Adult Care Nursing Placements- Block Contract,Third Party Payments,REVENUE
http://statistics.data.gov.uk/id/local-authority/00HY,Wiltshire Council,13/11/2015,5106782175,2549.60,AMS Care Wiltshire ,130764,SN4 ,Community Services,North Locality OP,Adult Care Nursing Placements- Block Contract,Third Party Payments,REVENUE
http://statistics.data.gov.uk/id/local-authority/00HY,Wiltshire Council,13/11/2015,5106782176,448.00,AMS Care Wiltshire ,130764,SN4 ,Community Services,OP North FNC,Adult Care Funded Nursing Care - Loal Auth Clients,Third Party Payments,REVENUE
http://statistics.data.gov.uk/id/local-authority/00HY,Wiltshire Council,13/11/2015,5106782178,728.48,AMS Care Wiltshire ,130764,SN4 ,Community Services,North Locality OP,Adult Care Nursing Placements- Block Contract,Third Party Payments,REVENUE
http://statistics.data.gov.uk/id/local-authority/00HY,Wiltshire Council,18/11/2015,5106783494,2344.08,AMS Care Wiltshire ,130764,SN4 ,Community Services,North Locality OP,Adult Care Nursing Placements- Block Contract,Third Party Payments,REVENUE
http://statistics.data.gov.uk/id/local-authority/00HY,Wiltshire Council,18/11/2015,5106783495,448.00,AMS Care Wiltshire ,130764,SN4 ,Community Services,OP North FNC,Adult Care Funded Nursing Care - Loal Auth Clients,Third Party Payments,REVENUE
http://statistics.data.gov.uk/id/local-authority/00HY,Wiltshire Council,18/11/2015,5106783604,2344.08,AMS Care Wiltshire ,130764,SN4 ,Community Services,North Locality OP,Adult Care Nursing Placements- Block Contract,Third Party Payments,REVENUE
http://statistics.data.gov.uk/id/local-authority/00HY,Wiltshire Council,18/11/2015,5106783605,448.00,AMS Care Wiltshire ,130764,SN4 ,Community Services,OP North FNC,Adult Care Funded Nursing Care - Loal Auth Clients,Third Party Payments,REVENUE
http://statistics.data.gov.uk/id/local-authority/00HY,Wiltshire Council,18/11/2015,5106783661,2344.08,AMS Care Wiltshire ,130764,SN4 ,Community Services,North Locality OP,Adult Care Nursing Placements- Block Contract,Third Party Payments,REVENUE
http://statistics.data.gov.uk/id/local-authority/00HY,Wiltshire Council,18/11/2015,5106783662,448.00,AMS Care Wiltshire ,130764,SN4 ,Community Services,OP North FNC,Adult Care Funded Nursing Care - Loal Auth Clients,Third Party Payments,REVENUE
http://statistics.data.gov.uk/id/local-authority/00HY,Wiltshire Council,18/11/2015,5106783679,2549.60,AMS Care Wiltshire ,130764,SN4 ,Community Services,North Locality OP,Adult Care Nursing Placements- Block Contract,Third Party Payments,REVENUE
http://statistics.data.gov.uk/id/local-authority/00HY,Wiltshire Council,18/11/2015,5106783680,448.00,AMS Care Wiltshire ,130764,SN4 ,Community Services,OP North FNC,Adult Care Funded Nursing Care - Loal Auth Clients,Third Party Payments,REVENUE
http://statistics.data.gov.uk/id/local-authority/00HY,Wiltshire Council,18/11/2015,5106783765,2344.08,AMS Care Wiltshire ,130764,SN4 ,Community Services,East Locality OP,Adult Care Nursing Placements- Block Contract,Third Party Payments,REVENUE
http://statistics.data.gov.uk/id/local-authority/00HY,Wiltshire Council,18/11/2015,5106783766,448.00,AMS Care Wiltshire ,130764,SN4 ,Community Services,OP East FNC,Adult Care Funded Nursing Care - Loal Auth Clients,Third Party Payments,REVENUE
http://statistics.data.gov.uk/id/local-authority/00HY,Wiltshire Council,18/11/2015,5106783773,2344.08,AMS Care Wiltshire ,130764,SN4 ,Community Services,North Locality OP,Adult Care Nursing Placements- Block Contract,Third Party Payments,REVENUE
http://statistics.data.gov.uk/id/local-authority/00HY,Wiltshire Council,18/11/2015,5106783774,448.00,AMS Care Wiltshire ,130764,SN4 ,Community Services,OP North FNC,Adult Care Funded Nursing Care - Loal Auth Clients,Third Party Payments,REVENUE
http://statistics.data.gov.uk/id/local-authority/00HY,Wiltshire Council,18/11/2015,5106783776,2344.08,AMS Care Wiltshire ,130764,SN4 ,Community Services,MH OP North Locality,Adult Care Nursing Placements- Block Contract,Third Party Payments,REVENUE
http://statistics.data.gov.uk/id/local-authority/00HY,Wiltshire Council,18/11/2015,5106783777,448.00,AMS Care Wiltshire ,130764,SN4 ,Community Services,MH OA North FNC,Adult Care Funded Nursing Care - Loal Auth Clients,Third Party Payments,REVENUE
http://statistics.data.gov.uk/id/local-authority/00HY,Wiltshire Council,18/11/2015,5106783797,2344.08,AMS Care Wiltshire ,130764,SN4 ,Community Services,North Locality OP,Adult Care Nursing Placements- Block Contract,Third Party Payments,REVENUE
http://statistics.data.gov.uk/id/local-authority/00HY,Wiltshire Council,18/11/2015,5106783798,448.00,AMS Care Wiltshire ,130764,SN4 ,Community Services,OP North FNC,Adult Care Funded Nursing Care - Loal Auth Clients,Third Party Payments,REVENUE
http://statistics.data.gov.uk/id/local-authority/00HY,Wiltshire Council,18/11/2015,5106783828,2344.08,AMS Care Wiltshire ,130764,SN4 ,Community Services,North Locality OP,Adult Care Nursing Placements- Block Contract,Third Party Payments,REVENUE
http://statistics.data.gov.uk/id/local-authority/00HY,Wiltshire Council,18/11/2015,5106783829,448.00,AMS Care Wiltshire ,130764,SN4 ,Community Services,OP North FNC,Adult Care Funded Nursing Care - Loal Auth Clients,Third Party Payments,REVENUE
http://statistics.data.gov.uk/id/local-authority/00HY,Wiltshire Council,18/11/2015,5106783847,2344.08,AMS Care Wiltshire ,130764,SN4 ,Community Services,North Locality OP,Adult Care Nursing Placements- Block Contract,Third Party Payments,REVENUE
http://statistics.data.gov.uk/id/local-authority/00HY,Wiltshire Council,18/11/2015,5106783848,448.00,AMS Care Wiltshire ,130764,SN4 ,Community Services,OP North FNC,Adult Care Funded Nursing Care - Loal Auth Clients,Third Party Payments,REVENUE
http://statistics.data.gov.uk/id/local-authority/00HY,Wiltshire Council,18/11/2015,5106783855,2344.08,AMS Care Wiltshire ,130764,SN4 ,Community Services,North Locality OP,Adult Care Nursing Placements- Block Contract,Third Party Payments,REVENUE
http://statistics.data.gov.uk/id/local-authority/00HY,Wiltshire Council,18/11/2015,5106783856,448.00,AMS Care Wiltshire ,130764,SN4 ,Community Services,OP North FNC,Adult Care Funded Nursing Care - Loal Auth Clients,Third Party Payments,REVENUE
http://statistics.data.gov.uk/id/local-authority/00HY,Wiltshire Council,18/11/2015,5106783902,2344.08,AMS Care Wiltshire ,130764,SN4 ,Community Services,North Locality OP,Adult Care Nursing Placements- Block Contract,Third Party Payments,REVENUE
http://statistics.data.gov.uk/id/local-authority/00HY,Wiltshire Council,18/11/2015,5106783903,448.00,AMS Care Wiltshire ,130764,SN4 ,Community Services,OP North FNC,Adult Care Funded Nursing Care - Loal Auth Clients,Third Party Payments,REVENUE
http://statistics.data.gov.uk/id/local-authority/00HY,Wiltshire Council,18/11/2015,5106783957,2549.60,AMS Care Wiltshire ,130764,SN4 ,Community Services,North Locality OP,Adult Care Nursing Placements- Block Contract,Third Party Payments,REVENUE
http://statistics.data.gov.uk/id/local-authority/00HY,Wiltshire Council,18/11/2015,5106783958,448.00,AMS Care Wiltshire ,130764,SN4 ,Community Services,OP North FNC,Adult Care Funded Nursing Care - Loal Auth Clients,Third Party Payments,REVENUE
http://statistics.data.gov.uk/id/local-authority/00HY,Wiltshire Council,18/11/2015,5106783960,2549.60,AMS Care Wiltshire ,130764,SN4 ,Community Services,North Locality OP,Adult Care Nursing Placements- Block Contract,Third Party Payments,REVENUE
http://statistics.data.gov.uk/id/local-authority/00HY,Wiltshire Council,18/11/2015,5106783961,448.00,AMS Care Wiltshire ,130764,SN4 ,Community Services,OP North FNC,Adult Care Funded Nursing Care - Loal Auth Clients,Third Party Payments,REVENUE
http://statistics.data.gov.uk/id/local-authority/00HY,Wiltshire Council,18/11/2015,5106784431,2344.08,AMS Care Wiltshire ,130764,SN4 ,Community Services,North Locality OP,Adult Care Nursing Placements- Block Contract,Third Party Payments,REVENUE
http://statistics.data.gov.uk/id/local-authority/00HY,Wiltshire Council,18/11/2015,5106784432,448.00,AMS Care Wiltshire ,130764,SN4 ,Community Services,OP North FNC,Adult Care Funded Nursing Care - Loal Auth Clients,Third Party Payments,REVENUE
http://statistics.data.gov.uk/id/local-authority/00HY,Wiltshire Council,18/11/2015,5106784434,2344.08,AMS Care Wiltshire ,130764,SN4 ,Community Services,North Locality OP,Adult Care Nursing Placements- Block Contract,Third Party Payments,REVENUE
http://statistics.data.gov.uk/id/local-authority/00HY,Wiltshire Council,18/11/2015,5106784435,448.00,AMS Care Wiltshire ,130764,SN4 ,Community Services,OP North FNC,Adult Care Funded Nursing Care - Loal Auth Clients,Third Party Payments,REVENUE
http://statistics.data.gov.uk/id/local-authority/00HY,Wiltshire Council,17/11/2015,5106784642,2034.14,AMS Care Wiltshire ,130764,SN4 ,Community Services,BCF-Intermediate Cr,Adult Nursing Respite - Spot,Third Party Payments,REVENUE
http://statistics.data.gov.uk/id/local-authority/00HY,Wiltshire Council,18/11/2015,5106784643,2034.14,AMS Care Wiltshire ,130764,SN4 ,Community Services,BCF-Intermediate Cr,Adult Nursing Respite - Spot,Third Party Payments,REVENUE
http://statistics.data.gov.uk/id/local-authority/00HY,Wiltshire Council,18/11/2015,5106784644,2034.14,AMS Care Wiltshire ,130764,SN4 ,Community Services,BCF-Intermediate Cr,Adult Nursing Respite - Spot,Third Party Payments,REVENUE
http://statistics.data.gov.uk/id/local-authority/00HY,Wiltshire Council,18/11/2015,5106784688,1001.66,AMS Care Wiltshire ,130764,SN4 ,Community Services,North Locality OP,Adult Care Nursing Placements- Spot Purchase,Third Party Payments,REVENUE
http://statistics.data.gov.uk/id/local-authority/00HY,Wiltshire Council,18/11/2015,5106784691,2549.60,AMS Care Wiltshire ,130764,SN4 ,Community Services,North Locality OP,Adult Care Nursing Placements- Spot Purchase,Third Party Payments,REVENUE
http://statistics.data.gov.uk/id/local-authority/00HY,Wiltshire Council,18/11/2015,5106784692,448.00,AMS Care Wiltshire ,130764,SN4 ,Community Services,OP North FNC,Adult Care Funded Nursing Care - Loal Auth Clients,Third Party Payments,REVENUE
http://statistics.data.gov.uk/id/local-authority/00HY,Wiltshire Council,18/11/2015,5106784694,2549.60,AMS Care Wiltshire ,130764,SN4 ,Community Services,North Locality OP,Adult Care Nursing Placements- Spot Purchase,Third Party Payments,REVENUE
http://statistics.data.gov.uk/id/local-authority/00HY,Wiltshire Council,18/11/2015,5106784695,448.00,AMS Care Wiltshire ,130764,SN4 ,Community Services,OP North FNC,Adult Care Funded Nursing Care - Loal Auth Clients,Third Party Payments,REVENUE
http://statistics.data.gov.uk/id/local-authority/00HY,Wiltshire Council,18/11/2015,5106784701,910.60,AMS Care Wiltshire ,130764,SN4 ,Community Services,North Locality OP,Adult Care Nursing Placements- Block Contract,Third Party Payments,REVENUE
http://statistics.data.gov.uk/id/local-authority/00HY,Wiltshire Council,18/11/2015,5106784704,2549.60,AMS Care Wiltshire ,130764,SN4 ,Community Services,North Locality OP,Adult Care Nursing Placements- Block Contract,Third Party Payments,REVENUE
http://statistics.data.gov.uk/id/local-authority/00HY,Wiltshire Council,18/11/2015,5106784705,448.00,AMS Care Wiltshire ,130764,SN4 ,Community Services,OP North FNC,Adult Care Funded Nursing Care - Loal Auth Clients,Third Party Payments,REVENUE
http://statistics.data.gov.uk/id/local-authority/00HY,Wiltshire Council,18/11/2015,5106784707,2549.60,AMS Care Wiltshire ,130764,SN4 ,Community Services,North Locality OP,Adult Care Nursing Placements- Block Contract,Third Party Payments,REVENUE
http://statistics.data.gov.uk/id/local-authority/00HY,Wiltshire Council,18/11/2015,5106784708,448.00,AMS Care Wiltshire ,130764,SN4 ,Community Services,OP North FNC,Adult Care Funded Nursing Care - Loal Auth Clients,Third Party Payments,REVENUE
http://statistics.data.gov.uk/id/local-authority/00HY,Wiltshire Council,18/11/2015,5106786111,2549.60,AMS Care Wiltshire ,130764,SN4 ,Community Services,North Locality OP,Adult Care Nursing Placements- Block Contract,Third Party Payments,REVENUE
http://statistics.data.gov.uk/id/local-authority/00HY,Wiltshire Council,18/11/2015,5106786112,448.00,AMS Care Wiltshire ,130764,SN4 ,Community Services,OP North FNC,Adult Care Funded Nursing Care - Loal Auth Clients,Third Party Payments,REVENUE
http://statistics.data.gov.uk/id/local-authority/00HY,Wiltshire Council,18/11/2015,5106786349,2549.60,AMS Care Wiltshire ,130764,SN4 ,Community Services,North Locality OP,Adult Care Nursing Placements- Block Contract,Third Party Payments,REVENUE
http://statistics.data.gov.uk/id/local-authority/00HY,Wiltshire Council,18/11/2015,5106786350,448.00,AMS Care Wiltshire ,130764,SN4 ,Community Services,OP North FNC,Adult Care Funded Nursing Care - Loal Auth Clients,Third Party Payments,REVENUE
http://statistics.data.gov.uk/id/local-authority/00HY,Wiltshire Council,18/11/2015,5106786409,2549.60,AMS Care Wiltshire ,130764,SN4 ,Community Services,North Locality OP,Adult Care Nursing Placements- Block Contract,Third Party Payments,REVENUE
http://statistics.data.gov.uk/id/local-authority/00HY,Wiltshire Council,18/11/2015,5106786410,448.00,AMS Care Wiltshire ,130764,SN4 ,Community Services,OP North FNC,Adult Care Funded Nursing Care - Loal Auth Clients,Third Party Payments,REVENUE
http://statistics.data.gov.uk/id/local-authority/00HY,Wiltshire Council,18/11/2015,5106786412,2549.60,AMS Care Wiltshire ,130764,SN4 ,Community Services,MH OP North Locality,Adult Care Nursing Placements- Block Contract,Third Party Payments,REVENUE
http://statistics.data.gov.uk/id/local-authority/00HY,Wiltshire Council,18/11/2015,5106786413,448.00,AMS Care Wiltshire ,130764,SN4 ,Community Services,Section 117-PCT Clnt,Adult Care Nursing Placements- Block Contract,Third Party Payments,REVENUE
http://statistics.data.gov.uk/id/local-authority/00HY,Wiltshire Council,18/11/2015,5106786604,2549.60,AMS Care Wiltshire ,130764,SN4 ,Community Services,North Locality OP,Adult Care Nursing Placements- Block Contract,Third Party Payments,REVENUE
http://statistics.data.gov.uk/id/local-authority/00HY,Wiltshire Council,18/11/2015,5106786605,448.00,AMS Care Wiltshire ,130764,SN4 ,Community Services,OP North FNC,Adult Care Funded Nursing Care - Loal Auth Clients,Third Party Payments,REVENUE
http://statistics.data.gov.uk/id/local-authority/00HY,Wiltshire Council,18/11/2015,5106786607,2549.60,AMS Care Wiltshire ,130764,SN4 ,Community Services,North Locality OP,Adult Care Nursing Placements- Block Contract,Third Party Payments,REVENUE
http://statistics.data.gov.uk/id/local-authority/00HY,Wiltshire Council,18/11/2015,5106786608,448.00,AMS Care Wiltshire ,130764,SN4 ,Community Services,OP North FNC,Adult Care Funded Nursing Care - Loal Auth Clients,Third Party Payments,REVENUE
http://statistics.data.gov.uk/id/local-authority/00HY,Wiltshire Council,18/11/2015,5106786610,4046.00,AMS Care Wiltshire ,130764,SN4 ,Community Services,Adult Care Gross Loa,Adult Care Loans,Capital charges and Expenditure,REVENUE
http://statistics.data.gov.uk/id/local-authority/00HY,Wiltshire Council,18/11/2015,5106786636,2344.08,AMS Care Wiltshire ,130764,SN4 ,Community Services,North Locality OP,Adult Care Nursing Placements- Block Contract,Third Party Payments,REVENUE
http://statistics.data.gov.uk/id/local-authority/00HY,Wiltshire Council,18/11/2015,5106786637,448.00,AMS Care Wiltshire ,130764,SN4 ,Community Services,OP North FNC,Adult Care Funded Nursing Care - Loal Auth Clients,Third Party Payments,REVENUE
http://statistics.data.gov.uk/id/local-authority/00HY,Wiltshire Council,18/11/2015,5106786708,2549.60,AMS Care Wiltshire ,130764,SN4 ,Community Services,East Locality OP,Adult Care Nursing Placements- Block Contract,Third Party Payments,REVENUE
http://statistics.data.gov.uk/id/local-authority/00HY,Wiltshire Council,18/11/2015,5106786709,448.00,AMS Care Wiltshire ,130764,SN4 ,Community Services,OP East FNC,Adult Care Funded Nursing Care - Loal Auth Clients,Third Party Payments,REVENUE
http://statistics.data.gov.uk/id/local-authority/00HY,Wiltshire Council,18/11/2015,5106786732,2344.08,AMS Care Wiltshire ,130764,SN4 ,Community Services,West Locality OP,Adult Care Nursing Placements- Block Contract,Third Party Payments,REVENUE
http://statistics.data.gov.uk/id/local-authority/00HY,Wiltshire Council,18/11/2015,5106786733,448.00,AMS Care Wiltshire ,130764,SN4 ,Community Services,OP West FNC,Adult Care Funded Nursing Care - Loal Auth Clients,Third Party Payments,REVENUE
http://statistics.data.gov.uk/id/local-authority/00HY,Wiltshire Council,18/11/2015,5106787142,2549.60,AMS Care Wiltshire ,130764,SN4 ,Community Services,North Locality OP,Adult Care Nursing Placements- Spot Purchase,Third Party Payments,REVENUE
http://statistics.data.gov.uk/id/local-authority/00HY,Wiltshire Council,18/11/2015,5106787143,448.00,AMS Care Wiltshire ,130764,SN4 ,Community Services,OP North FNC,Adult Care Funded Nursing Care - Loal Auth Clients,Third Party Payments,REVENUE
http://statistics.data.gov.uk/id/local-authority/00HY,Wiltshire Council,18/11/2015,5106787178,2344.08,AMS Care Wiltshire ,130764,SN4 ,Community Services,North Locality OP,Adult Care Nursing Placements- Block Contract,Third Party Payments,REVENUE
http://statistics.data.gov.uk/id/local-authority/00HY,Wiltshire Council,18/11/2015,5106787179,448.00,AMS Care Wiltshire ,130764,SN4 ,Community Services,OP North FNC,Adult Care Funded Nursing Care - Loal Auth Clients,Third Party Payments,REVENUE
http://statistics.data.gov.uk/id/local-authority/00HY,Wiltshire Council,18/11/2015,5106787242,2344.08,AMS Care Wiltshire ,130764,SN4 ,Community Services,West Locality OP,Adult Care Nursing Placements- Block Contract,Third Party Payments,REVENUE
http://statistics.data.gov.uk/id/local-authority/00HY,Wiltshire Council,18/11/2015,5106787243,448.00,AMS Care Wiltshire ,130764,SN4 ,Community Services,OP West FNC,Adult Care Funded Nursing Care - Loal Auth Clients,Third Party Payments,REVENUE
http://statistics.data.gov.uk/id/local-authority/00HY,Wiltshire Council,18/11/2015,5106787261,2549.60,AMS Care Wiltshire ,130764,SN4 ,Community Services,MH OP North Locality,Adult Care Nursing Placements- Block Contract,Third Party Payments,REVENUE
http://statistics.data.gov.uk/id/local-authority/00HY,Wiltshire Council,18/11/2015,5106787262,448.00,AMS Care Wiltshire ,130764,SN4 ,Community Services,MH OA North FNC,Adult Care Funded Nursing Care - Loal Auth Clients,Third Party Payments,REVENUE
http://statistics.data.gov.uk/id/local-authority/00HY,Wiltshire Council,18/11/2015,5106787352,2549.60,AMS Care Wiltshire ,130764,SN4 ,Community Services,MH OP North Locality,Adult Care Nursing Placements- Spot Purchase,Third Party Payments,REVENUE
http://statistics.data.gov.uk/id/local-authority/00HY,Wiltshire Council,18/11/2015,5106787353,448.00,AMS Care Wiltshire ,130764,SN4 ,Community Services,MH OA North FNC,Adult Care Funded Nursing Care - Loal Auth Clients,Third Party Payments,REVENUE
http://statistics.data.gov.uk/id/local-authority/00HY,Wiltshire Council,20/11/2015,5106789901,2367.56,AMS Care Wiltshire ,130764,SN4 ,Community Services,North Locality OP,Adult Care Nursing Placements- Spot Purchase,Third Party Payments,REVENUE
http://statistics.data.gov.uk/id/local-authority/00HY,Wiltshire Council,20/11/2015,5106789902,416.00,AMS Care Wiltshire ,130764,SN4 ,Community Services,OP North FNC,Adult Care Funded Nursing Care - Loal Auth Clients,Third Party Payments,REVENUE
http://statistics.data.gov.uk/id/local-authority/00HY,Wiltshire Council,27/11/2015,5106792457,1284.72,AMS Care Wiltshire ,130764,SN4 ,Community Services,BCF-Intermediate Cr,Adult Nursing Respite - Spot,Third Party Payments,REVENUE
http://statistics.data.gov.uk/id/local-authority/00HY,Wiltshire Council,27/11/2015,5106792600,932.58,AMS Care Wiltshire ,130764,SN4 ,Community Services,Adult Care Gross Loa,Adult Care Loans,Capital charges and Expenditure,REVENUE
http://statistics.data.gov.uk/id/local-authority/00HY,Wiltshire Council,27/11/2015,5106792601,3264.03,AMS Care Wiltshire ,130764,SN4 ,Community Services,Adult Care Gross Loa,Adult Care Loans,Capital charges and Expenditure,REVENUE
http://statistics.data.gov.uk/id/local-authority/00HY,Wiltshire Council,18/11/2015,5106787288,4000.00,Anchor Greenacres ,142571,SM7 ,Community Services,Adult Care Gross Loa,Adult Care Loans,Capital charges and Expenditure,REVENUE
http://statistics.data.gov.uk/id/local-authority/00HY,Wiltshire Council,18/11/2015,5106783399,3269.32,Andover Nursing Home ,110142,SP10,Community Services,East Locality OP,Adult Care Nursing Placements- Spot Purchase,Third Party Payments,REVENUE
http://statistics.data.gov.uk/id/local-authority/00HY,Wiltshire Council,05/11/2015,1901608268,501.45,Andy Taxis Limited ,100874,SP4 ,Neighbourhood & Planning,Mainstream Primary,Transport Contracts,Third Party Payments,REVENUE
http://statistics.data.gov.uk/id/local-authority/00HY,Wiltshire Council,05/11/2015,1901608268,1002.90,Andy Taxis Limited ,100874,SP4 ,Neighbourhood & Planning,Mainstream Secondary,Transport Contracts,Third Party Payments,REVENUE
http://statistics.data.gov.uk/id/local-authority/00HY,Wiltshire Council,06/11/2015,1901608720,1111.11,Andybus  and  Coach Ltd ,100132,SN16,Neighbourhood & Planning,Mainstream Primary,Transport Contracts,Third Party Payments,REVENUE
http://statistics.data.gov.uk/id/local-authority/00HY,Wiltshire Council,06/11/2015,1901608720,17253.34,Andybus  and  Coach Ltd ,100132,SN16,Neighbourhood & Planning,Mainstream Secondary,Transport Contracts,Third Party Payments,REVENUE
http://statistics.data.gov.uk/id/local-authority/00HY,Wiltshire Council,06/11/2015,1901608721,3001.58,Andybus  and  Coach Ltd ,100132,SN16,Neighbourhood & Planning,Mainstream Secondary,Transport Contracts,Third Party Payments,REVENUE
http://statistics.data.gov.uk/id/local-authority/00HY,Wiltshire Council,06/11/2015,1901608722,2962.51,Andybus  and  Coach Ltd ,100132,SN16,Neighbourhood & Planning,Mainstream Secondary,Transport Contracts,Third Party Payments,REVENUE
http://statistics.data.gov.uk/id/local-authority/00HY,Wiltshire Council,06/11/2015,1901608723,445.55,Andybus  and  Coach Ltd ,100132,SN16,Neighbourhood & Planning,Mainstream 16+ Sec,Transport Contracts,Third Party Payments,REVENUE
http://statistics.data.gov.uk/id/local-authority/00HY,Wiltshire Council,06/11/2015,1901608723,2800.70,Andybus  and  Coach Ltd ,100132,SN16,Neighbourhood & Planning,Mainstream Secondary,Transport Contracts,Third Party Payments,REVENUE
http://statistics.data.gov.uk/id/local-authority/00HY,Wiltshire Council,06/11/2015,1901608726,287.94,Andybus  and  Coach Ltd ,100132,SN16,Neighbourhood & Planning,Mainstream 16+ Sec,Transport Contracts,Third Party Payments,REVENUE
http://statistics.data.gov.uk/id/local-authority/00HY,Wiltshire Council,06/11/2015,1901608726,2998.74,Andybus  and  Coach Ltd ,100132,SN16,Neighbourhood & Planning,Mainstream Secondary,Transport Contracts,Third Party Payments,REVENUE
http://statistics.data.gov.uk/id/local-authority/00HY,Wiltshire Council,12/11/2015,5106781690,263.54,ANGEL HOTEL CHIPPENHAM ,110150,SN15,Children & Education,GovernorSupport,Premises Rental / Hire Charges,Premises Related,REVENUE
http://statistics.data.gov.uk/id/local-authority/00HY,Wiltshire Council,13/11/2015,5106782033,257.92,ANGEL HOTEL CHIPPENHAM ,110150,SN15,Children & Education,GovernorSupport,Premises Rental / Hire Charges,Premises Related,REVENUE
http://statistics.data.gov.uk/id/local-authority/00HY,Wiltshire Council,02/11/2015,5106777901,875.00,Angelbeck Training Services ,113518,BS9 ,Community Services,DCS Orgnl Dev,Consultants� Fees,Supplies and Services,REVENUE
http://statistics.data.gov.uk/id/local-authority/00HY,Wiltshire Council,18/11/2015,5106785733,1978.40,Angus Council ,135802,DD8 ,Community Services,CTPLD Place CIC U65,Adult Residential Placements - Spot Purchase,Third Party Payments,REVENUE
http://statistics.data.gov.uk/id/local-authority/00HY,Wiltshire Council,13/11/2015,5106781719,4110.00,Any Body can Cook ,125066,BA12,Health & Wellbeing,FoodSafetyN&W,Consultants� Fees,Supplies and Services,REVENUE
http://statistics.data.gov.uk/id/local-authority/00HY,Wiltshire Council,13/11/2015,5106780196,2775.00,APA Consultants Ltd ,113361,SN10,Neighbourhood & Planning,DevConCent,Other Professional Fees,Supplies and Services,REVENUE
http://statistics.data.gov.uk/id/local-authority/00HY,Wiltshire Council,20/11/2015,5106789635,3510.00,APA Consultants Ltd ,113361,SN10,Neighbourhood & Planning,DevControlNorth,Consultants� Fees,Supplies and Services,REVENUE
http://statistics.data.gov.uk/id/local-authority/00HY,Wiltshire Council,04/11/2015,1901607672,1296.15,APL Travel Limited ,100596,SN4 ,Neighbourhood & Planning,Mainstream 16+ FE,Transport Contract -  Bus Season Tickets,Third Party Payments,REVENUE
http://statistics.data.gov.uk/id/local-authority/00HY,Wiltshire Council,04/11/2015,1901607672,2178.97,APL Travel Limited ,100596,SN4 ,Neighbourhood & Planning,Mainstream Secondary,Transport Contract -  Bus Season Tickets,Third Party Payments,REVENUE
http://statistics.data.gov.uk/id/local-authority/00HY,Wiltshire Council,10/11/2015,1901609574,384.57,APL Travel Limited ,100596,SN4 ,Neighbourhood & Planning,Public Transport,Transport Contracts,Third Party Payments,REVENUE
http://statistics.data.gov.uk/id/local-authority/00HY,Wiltshire Council,10/11/2015,1901609575,478.56,APL Travel Limited ,100596,SN4 ,Neighbourhood & Planning,Public Transport,Transport Contracts,Third Party Payments,REVENUE
http://statistics.data.gov.uk/id/local-authority/00HY,Wiltshire Council,10/11/2015,1901609576,3736.67,APL Travel Limited ,100596,SN4 ,Neighbourhood & Planning,Mainstream Secondary,Transport Contracts,Third Party Payments,REVENUE
http://statistics.data.gov.uk/id/local-authority/00HY,Wiltshire Council,10/11/2015,1901609577,3900.00,APL Travel Limited ,100596,SN4 ,Neighbourhood & Planning,Public Transport,Transport Contracts,Third Party Payments,REVENUE
http://statistics.data.gov.uk/id/local-authority/00HY,Wiltshire Council,10/11/2015,1901609581,1837.16,APL Travel Limited ,100596,SN4 ,Neighbourhood & Planning,Mainstream Secondary,Transport Contracts,Third Party Payments,REVENUE
http://statistics.data.gov.uk/id/local-authority/00HY,Wiltshire Council,10/11/2015,1901609581,20396.84,APL Travel Limited ,100596,SN4 ,Neighbourhood & Planning,Public Transport,Transport Contracts,Third Party Payments,REVENUE
http://statistics.data.gov.uk/id/local-authority/00HY,Wiltshire Council,10/11/2015,1901609582,660.00,APL Travel Limited ,100596,SN4 ,Neighbourhood & Planning,Mainstream Primary,Transport Contracts,Third Party Payments,REVENUE
http://statistics.data.gov.uk/id/local-authority/00HY,Wiltshire Council,10/11/2015,1901609585,830.03,APL Travel Limited ,100596,SN4 ,Neighbourhood & Planning,Mainstream Primary,Transport Contracts,Third Party Payments,REVENUE
http://statistics.data.gov.uk/id/local-authority/00HY,Wiltshire Council,10/11/2015,1901609585,943.61,APL Travel Limited ,100596,SN4 ,Neighbourhood & Planning,Mainstream 16+ FE,Transport Contracts,Third Party Payments,REVENUE
http://statistics.data.gov.uk/id/local-authority/00HY,Wiltshire Council,10/11/2015,1901609585,5312.17,APL Travel Limited ,100596,SN4 ,Neighbourhood & Planning,Mainstream Secondary,Transport Contracts,Third Party Payments,REVENUE
http://statistics.data.gov.uk/id/local-authority/00HY,Wiltshire Council,10/11/2015,1901609585,10434.27,APL Travel Limited ,100596,SN4 ,Neighbourhood & Planning,Connect 2 Wiltshire,Transport Contracts,Third Party Payments,REVENUE
http://statistics.data.gov.uk/id/local-authority/00HY,Wiltshire Council,27/11/2015,1901623910,880.00,APL Travel Limited ,100596,SN4 ,Neighbourhood & Planning,Mainstream Primary,Transport Contracts,Third Party Payments,REVENUE
http://statistics.data.gov.uk/id/local-authority/00HY,Wiltshire Council,27/11/2015,1901623930,5865.00,APL Travel Limited ,100596,SN4 ,Neighbourhood & Planning,Concessionary Fares,Compensation for Concessionary fares,Third Party Payments,REVENUE
http://statistics.data.gov.uk/id/local-authority/00HY,Wiltshire Council,10/11/2015,1901609572,1666.10,APPLEFORD SCHOOL ,137180,SP3 ,Neighbourhood & Planning,SEN Secondary,Transport Contracts,Third Party Payments,REVENUE
http://statistics.data.gov.uk/id/local-authority/00HY,Wiltshire Council,10/11/2015,1901609573,1051.97,APPLEFORD SCHOOL ,137180,SP3 ,Neighbourhood & Planning,SEN Secondary,Transport Contracts,Third Party Payments,REVENUE
http://statistics.data.gov.uk/id/local-authority/00HY,Wiltshire Council,16/11/2015,5106782549,5700.00,Aquatech Drainage Mr Chris Uden,135011,DT1 ,Wiltshire Council,Wiltshire Council,Premises Related Other Maintenance Costs,Premises Related,CAPITAL
http://statistics.data.gov.uk/id/local-authority/00HY,Wiltshire Council,18/11/2015,5106784114,3400.00,Arbory Residential Home ,113587,SP11,Community Services,MH AOWA South Locali,Adult Residential Placements - Spot Purchase,Third Party Payments,REVENUE
http://statistics.data.gov.uk/id/local-authority/00HY,Wiltshire Council,18/11/2015,5106785921,2626.00,Arbory Residential Home ,113587,SP11,Community Services,MH OP North Locality,Adult Residential Placements - Spot Purchase,Third Party Payments,REVENUE
http://statistics.data.gov.uk/id/local-authority/00HY,Wiltshire Council,18/11/2015,5106787130,3600.00,Arbory Residential Home ,113587,SP11,Community Services,MH OP South Locality,Adult Residential Placements - Spot Purchase,Third Party Payments,REVENUE
http://statistics.data.gov.uk/id/local-authority/00HY,Wiltshire Council,18/11/2015,5106786005,2094.92,Arch Care Services Ltd ,110169,BS21,Community Services,MH AOWA North Locali,Adult Residential Placements - Spot Purchase,Third Party Payments,REVENUE
http://statistics.data.gov.uk/id/local-authority/00HY,Wiltshire Council,13/11/2015,5106781868,9918.72,Arch Consulting Ltd t/a Arch ,138595,W4 1,Resources,Applications SuppLOB,ICT - Support arrangements,Supplies and Services,REVENUE
http://statistics.data.gov.uk/id/local-authority/00HY,Wiltshire Council,03/11/2015,1901607252,397.30,Arrow Private Hire ,100574,SN8 ,Neighbourhood & Planning,Mainstream Secondary,Transport Contracts,Third Party Payments,REVENUE
http://statistics.data.gov.uk/id/local-authority/00HY,Wiltshire Council,30/11/2015,5106792712,20235.00,Artlift ,140282,GL11,Neighbourhood & Planning,Mental Health and We,Public Health Commissioning,Supplies and Services,REVENUE
http://statistics.data.gov.uk/id/local-authority/00HY,Wiltshire Council,19/11/2015,1901613953,308.45,Asda Pharmacy ,137247,SN12,Neighbourhood & Planning,Smoking-Mgt & Commss,Public Health Commissioning,Supplies and Services,REVENUE
http://statistics.data.gov.uk/id/local-authority/00HY,Wiltshire Council,18/11/2015,5106784193,2252.04,Ashbourne Court Care Home ,133906,SP10,Community Services,East Locality OP,Adult Care Nursing Placements- Spot Purchase,Third Party Payments,REVENUE
http://statistics.data.gov.uk/id/local-authority/00HY,Wiltshire Council,18/11/2015,5106785718,2065.64,Ashbourne Court Care Home ,133906,SP10,Community Services,East Locality OP,Adult Care Nursing Placements- Spot Purchase,Third Party Payments,REVENUE
http://statistics.data.gov.uk/id/local-authority/00HY,Wiltshire Council,18/11/2015,5106786617,2170.64,Ashbury Lodge ,113635,SN3 ,Community Services,MH OP North Locality,Adult Residential Placements - Spot Purchase,Third Party Payments,REVENUE
http://statistics.data.gov.uk/id/local-authority/00HY,Wiltshire Council,13/11/2015,1901611086,1560.00,Ashton Cabs ,101384,BA14,Neighbourhood & Planning,SEN Secondary,Transport Contracts,Third Party Payments,REVENUE
http://statistics.data.gov.uk/id/local-authority/00HY,Wiltshire Council,18/11/2015,5106787192,1520.00,Ashton Lodge Care Home ,142543,ME16,Community Services,North Locality OP,Adult Residential Placements - Spot Purchase,Third Party Payments,REVENUE
http://statistics.data.gov.uk/id/local-authority/00HY,Wiltshire Council,18/11/2015,5106783760,1841.76,Ashton Manor Nursing Home ,139060,GU10,Community Services,West Locality OP,Adult Care Nursing Placements- Spot Purchase,Third Party Payments,REVENUE
http://statistics.data.gov.uk/id/local-authority/00HY,Wiltshire Council,20/11/2015,5106780057,13263.57,Aspirations Care Ltd ,137205,L20 ,Children & Education,Ext Placement & IFA,Adult / Child Care Agency Placement,Third Party Payments,REVENUE
http://statistics.data.gov.uk/id/local-authority/00HY,Wiltshire Council,12/11/2015,5106781674,3020.29,Aspirations Care Ltd ,137205,L20 ,Children & Education,Ext Placement & IFA,Adult / Child Care Agency Placement,Third Party Payments,REVENUE
http://statistics.data.gov.uk/id/local-authority/00HY,Wiltshire Council,12/11/2015,5106781732,13263.66,Aspirations Care Ltd ,137205,L20 ,Community Services,OVA North Locality,Supported Living - Without SP payments,Third Party Payments,REVENUE
http://statistics.data.gov.uk/id/local-authority/00HY,Wiltshire Council,18/11/2015,5106784923,2561.29,Aspirations Care Ltd ,137205,L20 ,Children & Education,Ext Placement & IFA,Adult / Child Care Agency Placement,Third Party Payments,REVENUE
http://statistics.data.gov.uk/id/local-authority/00HY,Wiltshire Council,18/11/2015,5106784976,573.75,Aspirations Care Ltd ,137205,L20 ,Children & Education,Ext Placement & IFA,Adult / Child Care Agency Placement,Third Party Payments,REVENUE
http://statistics.data.gov.uk/id/local-authority/00HY,Wiltshire Council,06/11/2015,1901608700,1110.00,Aspire Taxis ,101274,SP2 ,Neighbourhood & Planning,SEN Secondary,Transport Contracts,Third Party Payments,REVENUE
http://statistics.data.gov.uk/id/local-authority/00HY,Wiltshire Council,06/11/2015,1901608701,561.68,Aspire Taxis ,101274,SP2 ,Neighbourhood & Planning,Mainstream Primary,Transport Contracts,Third Party Payments,REVENUE
http://statistics.data.gov.uk/id/local-authority/00HY,Wiltshire Council,06/11/2015,1901608702,298.50,Aspire Taxis ,101274,SP2 ,Neighbourhood & Planning,Mainstream Primary,Transport Contracts,Third Party Payments,REVENUE
http://statistics.data.gov.uk/id/local-authority/00HY,Wiltshire Council,06/11/2015,1901608705,618.93,Aspire Taxis ,101274,SP2 ,Neighbourhood & Planning,SEN Primary,Transport Contracts,Third Party Payments,REVENUE
http://statistics.data.gov.uk/id/local-authority/00HY,Wiltshire Council,06/11/2015,1901608705,2321.07,Aspire Taxis ,101274,SP2 ,Neighbourhood & Planning,SEN Secondary,Transport Contracts,Third Party Payments,REVENUE
http://statistics.data.gov.uk/id/local-authority/00HY,Wiltshire Council,06/11/2015,1901608708,465.00,Aspire Taxis ,101274,SP2 ,Neighbourhood & Planning,Mainstream Primary,Transport Contracts,Third Party Payments,REVENUE
http://statistics.data.gov.uk/id/local-authority/00HY,Wiltshire Council,06/11/2015,1901608708,465.00,Aspire Taxis ,101274,SP2 ,Neighbourhood & Planning,SEN Primary,Transport Contracts,Third Party Payments,REVENUE
http://statistics.data.gov.uk/id/local-authority/00HY,Wiltshire Council,06/11/2015,1901608711,337.50,Aspire Taxis ,101274,SP2 ,Neighbourhood & Planning,Mainstream Primary,Transport Contracts,Third Party Payments,REVENUE
http://statistics.data.gov.uk/id/local-authority/00HY,Wiltshire Council,06/11/2015,1901608711,337.50,Aspire Taxis ,101274,SP2 ,Neighbourhood & Planning,SEN Primary,Transport Contracts,Third Party Payments,REVENUE
http://statistics.data.gov.uk/id/local-authority/00HY,Wiltshire Council,13/11/2015,1901611077,1210.00,Aspire Taxis ,101274,SP2 ,Community Services,CTPLD Place CIC U65,Transport Contracts,Third Party Payments,REVENUE
http://statistics.data.gov.uk/id/local-authority/00HY,Wiltshire Council,19/11/2015,1901613889,1280.00,Aspire Taxis ,101274,SP2 ,Neighbourhood & Planning,SEN 16+ FE Colleges,Transport Contracts,Third Party Payments,REVENUE
http://statistics.data.gov.uk/id/local-authority/00HY,Wiltshire Council,19/11/2015,1901613895,2363.00,Aspire Taxis ,101274,SP2 ,Neighbourhood & Planning,Mainstream Secondary,Transport Contracts,Third Party Payments,REVENUE
http://statistics.data.gov.uk/id/local-authority/00HY,Wiltshire Council,20/11/2015,1901614249,672.00,Aspire Taxis ,101274,SP2 ,Neighbourhood & Planning,Mainstream Primary,Transport Contracts,Third Party Payments,REVENUE
http://statistics.data.gov.uk/id/local-authority/00HY,Wiltshire Council,20/11/2015,1901614261,435.00,Aspire Taxis ,101274,SP2 ,Neighbourhood & Planning,Mainstream Primary,Transport Contracts,Third Party Payments,REVENUE
http://statistics.data.gov.uk/id/local-authority/00HY,Wiltshire Council,20/11/2015,1901614262,502.00,Aspire Taxis ,101274,SP2 ,Neighbourhood & Planning,Mainstream Primary,Transport Contracts,Third Party Payments,REVENUE
http://statistics.data.gov.uk/id/local-authority/00HY,Wiltshire Council,20/11/2015,1901614263,759.00,Aspire Taxis ,101274,SP2 ,Children & Education,EOTAS Service,Transport Contracts,Third Party Payments,REVENUE
http://statistics.data.gov.uk/id/local-authority/00HY,Wiltshire Council,23/11/2015,1901614872,1539.35,Aspire Taxis ,101274,SP2 ,Neighbourhood & Planning,SEN Secondary,Transport Contracts,Third Party Payments,REVENUE
http://statistics.data.gov.uk/id/local-authority/00HY,Wiltshire Council,23/11/2015,1901614873,602.00,Aspire Taxis ,101274,SP2 ,Community Services,CTPLD Place CIC U65,Transport Contracts,Third Party Payments,REVENUE
http://statistics.data.gov.uk/id/local-authority/00HY,Wiltshire Council,30/11/2015,1901624090,490.00,Aspire Taxis ,101274,SP2 ,Neighbourhood & Planning,Mainstream Primary,Transport Contracts,Third Party Payments,REVENUE
http://statistics.data.gov.uk/id/local-authority/00HY,Wiltshire Council,23/11/2015,5106778733,475.00,Assoc Of Electoral Administrators ,113675,SR2 ,Resources,RegistrationofElectr,Printing External,Supplies and Services,REVENUE
http://statistics.data.gov.uk/id/local-authority/00HY,Wiltshire Council,09/11/2015,1901606485,650.00,Aster Living ,112275,SN10,Wiltshire Council,Wiltshire Council,Other Professional Fees,Supplies and Services,CAPITAL
http://statistics.data.gov.uk/id/local-authority/00HY,Wiltshire Council,09/11/2015,1901606486,500.00,Aster Living ,112275,SN10,Wiltshire Council,Wiltshire Council,Other Professional Fees,Supplies and Services,CAPITAL
http://statistics.data.gov.uk/id/local-authority/00HY,Wiltshire Council,09/11/2015,1901606513,500.00,Aster Living ,112275,SN10,Wiltshire Council,Wiltshire Council,Other Professional Fees,Supplies and Services,CAPITAL
http://statistics.data.gov.uk/id/local-authority/00HY,Wiltshire Council,09/11/2015,1901606581,500.00,Aster Living ,112275,SN10,Wiltshire Council,Wiltshire Council,Other Professional Fees,Supplies and Services,CAPITAL
http://statistics.data.gov.uk/id/local-authority/00HY,Wiltshire Council,09/11/2015,1901607035,500.00,Aster Living ,112275,SN10,Wiltshire Council,Wiltshire Council,Other Professional Fees,Supplies and Services,CAPITAL
http://statistics.data.gov.uk/id/local-authority/00HY,Wiltshire Council,09/11/2015,1901607036,500.00,Aster Living ,112275,SN10,Wiltshire Council,Wiltshire Council,Other Professional Fees,Supplies and Services,CAPITAL
http://statistics.data.gov.uk/id/local-authority/00HY,Wiltshire Council,09/11/2015,1901607040,500.00,Aster Living ,112275,SN10,Wiltshire Council,Wiltshire Council,Other Professional Fees,Supplies and Services,CAPITAL
http://statistics.data.gov.uk/id/local-authority/00HY,Wiltshire Council,20/11/2015,1901608913,500.00,Aster Living ,112275,SN10,Wiltshire Council,Wiltshire Council,Other Professional Fees,Supplies and Services,CAPITAL
http://statistics.data.gov.uk/id/local-authority/00HY,Wiltshire Council,20/11/2015,1901608914,1542.00,Aster Living ,112275,SN10,Wiltshire Council,Wiltshire Council,Other Professional Fees,Supplies and Services,CAPITAL
http://statistics.data.gov.uk/id/local-authority/00HY,Wiltshire Council,20/11/2015,1901608915,445.00,Aster Living ,112275,SN10,Wiltshire Council,Wiltshire Council,Other Professional Fees,Supplies and Services,CAPITAL
http://statistics.data.gov.uk/id/local-authority/00HY,Wiltshire Council,20/11/2015,1901608916,500.00,Aster Living ,112275,SN10,Wiltshire Council,Wiltshire Council,Other Professional Fees,Supplies and Services,CAPITAL
http://statistics.data.gov.uk/id/local-authority/00HY,Wiltshire Council,20/11/2015,1901608917,472.50,Aster Living ,112275,SN10,Wiltshire Council,Wiltshire Council,Other Professional Fees,Supplies and Services,CAPITAL
http://statistics.data.gov.uk/id/local-authority/00HY,Wiltshire Council,20/11/2015,1901609101,500.00,Aster Living ,112275,SN10,Wiltshire Council,Wiltshire Council,Other Professional Fees,Supplies and Services,CAPITAL
http://statistics.data.gov.uk/id/local-authority/00HY,Wiltshire Council,20/11/2015,1901609643,500.00,Aster Living ,112275,SN10,Wiltshire Council,Wiltshire Council,Other Professional Fees,Supplies and Services,CAPITAL
http://statistics.data.gov.uk/id/local-authority/00HY,Wiltshire Council,20/11/2015,1901610187,1095.10,Aster Living ,112275,SN10,Wiltshire Council,Wiltshire Council,Other Professional Fees,Supplies and Services,CAPITAL
http://statistics.data.gov.uk/id/local-authority/00HY,Wiltshire Council,20/11/2015,1901611340,319.00,Aster Living ,112275,SN10,Wiltshire Council,Wiltshire Council,Other Professional Fees,Supplies and Services,CAPITAL
http://statistics.data.gov.uk/id/local-authority/00HY,Wiltshire Council,17/11/2015,1901611343,548.40,Aster Living ,112275,SN10,Wiltshire Council,Wiltshire Council,Payments to Contractors - Other,Third Party Payments,CAPITAL
http://statistics.data.gov.uk/id/local-authority/00HY,Wiltshire Council,20/11/2015,1901611355,1031.00,Aster Living ,112275,SN10,Wiltshire Council,Wiltshire Council,Other Professional Fees,Supplies and Services,CAPITAL
http://statistics.data.gov.uk/id/local-authority/00HY,Wiltshire Council,20/11/2015,1901612048,882.00,Aster Living ,112275,SN10,Wiltshire Council,Wiltshire Council,Other Professional Fees,Supplies and Services,CAPITAL
http://statistics.data.gov.uk/id/local-authority/00HY,Wiltshire Council,20/11/2015,1901612049,349.72,Aster Living ,112275,SN10,Wiltshire Council,Wiltshire Council,Other Professional Fees,Supplies and Services,CAPITAL
http://statistics.data.gov.uk/id/local-authority/00HY,Wiltshire Council,20/11/2015,1901613991,650.00,Aster Living ,112275,SN10,Wiltshire Council,Wiltshire Council,Other Professional Fees,Supplies and Services,CAPITAL
http://statistics.data.gov.uk/id/local-authority/00HY,Wiltshire Council,24/11/2015,1901615076,2500.00,Aster Living ,112275,SN10,Wiltshire Council,Wiltshire Council,Other Professional Fees,Supplies and Services,CAPITAL
http://statistics.data.gov.uk/id/local-authority/00HY,Wiltshire Council,26/11/2015,1901623228,1004.80,Aster Living ,112275,SN10,Wiltshire Council,Wiltshire Council,Other Professional Fees,Supplies and Services,CAPITAL
http://statistics.data.gov.uk/id/local-authority/00HY,Wiltshire Council,20/11/2015,5106789690,41144.51,Atamis Limited ,139765,CF10,Resources,CorporateProcurement,Software Purchases,Supplies and Services,REVENUE
http://statistics.data.gov.uk/id/local-authority/00HY,Wiltshire Council,10/11/2015,1901609353,482028.91,Atkins Ltd ,110197,KT18,Neighbourhood & Planning,Mouchel Contract,Highways Term - Consultant,Third Party Payments,REVENUE
http://statistics.data.gov.uk/id/local-authority/00HY,Wiltshire Council,03/11/2015,5106778551,21570.40,ATS Euromaster Limited ,110201,DN4 ,Neighbourhood & Planning,Fleet Operations,Vehicle Parts,Transport Related,REVENUE
http://statistics.data.gov.uk/id/local-authority/00HY,Wiltshire Council,24/11/2015,5106790486,18689.17,ATS Euromaster Limited ,110201,DN4 ,Neighbourhood & Planning,Fleet Operations,Vehicle Parts,Transport Related,REVENUE
http://statistics.data.gov.uk/id/local-authority/00HY,Wiltshire Council,05/11/2015,1901608349,1899.98,Audley Care White Horse ,121958,SN8 ,Community Services,HTLAH - Neighbourhoo,Interim Support Plan - HTLAH,Third Party Payments,REVENUE
http://statistics.data.gov.uk/id/local-authority/00HY,Wiltshire Council,20/11/2015,1901611908,468.15,Audley Care White Horse ,121958,SN8 ,Community Services,HTLAH - Neighbourhoo,Interim Support Plan - HTLAH,Third Party Payments,REVENUE
http://statistics.data.gov.uk/id/local-authority/00HY,Wiltshire Council,10/11/2015,5106780127,457.82,Audley Care White Horse ,121958,SN8 ,Community Services,North Locality OP,Adult Domiciliary Care - Spot,Third Party Payments,REVENUE
http://statistics.data.gov.uk/id/local-authority/00HY,Wiltshire Council,13/11/2015,5106782380,426.90,Audley Care White Horse ,121958,SN8 ,Community Services,East Locality OP,Adult Domiciliary Care - Spot,Third Party Payments,REVENUE
http://statistics.data.gov.uk/id/local-authority/00HY,Wiltshire Council,13/11/2015,5106782383,629.53,Audley Care White Horse ,121958,SN8 ,Community Services,North Locality OP,Adult Domiciliary Care - Spot,Third Party Payments,REVENUE
http://statistics.data.gov.uk/id/local-authority/00HY,Wiltshire Council,13/11/2015,5106782384,460.90,Audley Care White Horse ,121958,SN8 ,Community Services,East Locality OP,Adult Domiciliary Care - Spot,Third Party Payments,REVENUE
http://statistics.data.gov.uk/id/local-authority/00HY,Wiltshire Council,13/11/2015,5106782385,528.30,Audley Care White Horse ,121958,SN8 ,Community Services,North Locality OP,Adult Domiciliary Care - Spot,Third Party Payments,REVENUE
http://statistics.data.gov.uk/id/local-authority/00HY,Wiltshire Council,18/11/2015,5106784398,6660.00,Autism Care Wiltshire ,136507,SN25,Community Services,CTPLD Place CIC U65,Adult Residential Placements - Spot Purchase,Third Party Payments,REVENUE
http://statistics.data.gov.uk/id/local-authority/00HY,Wiltshire Council,18/11/2015,5106786039,6086.08,Autism Wessex ,112911,BH23,Community Services,CTPLD Place CIC U65,Adult Residential Placements - Spot Purchase,Third Party Payments,REVENUE
http://statistics.data.gov.uk/id/local-authority/00HY,Wiltshire Council,18/11/2015,5106786461,7180.12,Autism West Midlands ,110206,WR9 ,Community Services,CTPLD Place CIC U65,Adult Residential Placements - Spot Purchase,Third Party Payments,REVENUE
http://statistics.data.gov.uk/id/local-authority/00HY,Wiltshire Council,06/11/2015,5106778332,300.08,Automotive Leasing Ltd ,113729,SL1 ,Neighbourhood & Planning,Fleet Operations,Commercial Leased Vehicles,Transport Related,REVENUE
http://statistics.data.gov.uk/id/local-authority/00HY,Wiltshire Council,06/11/2015,5106778335,307.58,Automotive Leasing Ltd ,113729,SL1 ,Neighbourhood & Planning,Fleet Operations,Commercial Leased Vehicles,Transport Related,REVENUE
http://statistics.data.gov.uk/id/local-authority/00HY,Wiltshire Council,06/11/2015,5106778337,300.08,Automotive Leasing Ltd ,113729,SL1 ,Neighbourhood & Planning,Fleet Operations,Commercial Leased Vehicles,Transport Related,REVENUE
http://statistics.data.gov.uk/id/local-authority/00HY,Wiltshire Council,06/11/2015,5106778338,321.21,Automotive Leasing Ltd ,113729,SL1 ,Neighbourhood & Planning,Fleet Operations,Commercial Leased Vehicles,Transport Related,REVENUE
http://statistics.data.gov.uk/id/local-authority/00HY,Wiltshire Council,06/11/2015,5106778339,316.75,Automotive Leasing Ltd ,113729,SL1 ,Neighbourhood & Planning,Fleet Operations,Commercial Leased Vehicles,Transport Related,REVENUE
http://statistics.data.gov.uk/id/local-authority/00HY,Wiltshire Council,16/11/2015,5106782529,514.65,Autonomy Care Limited ,126128,SN10,Community Services,CTPLD Place CIC U65,Adult Domiciliary Care - Spot Contribution,Income,REVENUE
http://statistics.data.gov.uk/id/local-authority/00HY,Wiltshire Council,12/11/2015,5106781600,953.00,AVA Recreation Limited ,139928,SO21,Neighbourhood & Planning,Park Inspection & Ma,Grounds Maintenance,Premises Related,REVENUE
http://statistics.data.gov.uk/id/local-authority/00HY,Wiltshire Council,04/11/2015,1901607834,8927.17,Avalon Promotions Ltd ,126693,W10 ,Neighbourhood & Planning,City Hall,City Hall Shows,Balance Sheet Accounts,REVENUE
http://statistics.data.gov.uk/id/local-authority/00HY,Wiltshire Council,10/11/2015,1901609364,680.00,Avenue Surgery ,110214,BA12,Neighbourhood & Planning,Smoking-Mgt & Commss,Public Health Commissioning,Supplies and Services,REVENUE
http://statistics.data.gov.uk/id/local-authority/00HY,Wiltshire Council,20/11/2015,1901614024,550.00,Avenue Surgery ,110214,BA12,Neighbourhood & Planning,Smoking-Mgt & Commss,Public Health Commissioning,Supplies and Services,REVENUE
http://statistics.data.gov.uk/id/local-authority/00HY,Wiltshire Council,13/11/2015,5106782171,329.55,Avery Healthcare Cepen Lodge ,126733,DL1 ,Community Services,MH OP North Locality,Adult Residential Placements - Spot Purchase,Third Party Payments,REVENUE
http://statistics.data.gov.uk/id/local-authority/00HY,Wiltshire Council,13/11/2015,5106782181,604.73,Avery Healthcare Cepen Lodge ,126733,DL1 ,Community Services,North Locality OP,Adult Residential Respite - Spot,Third Party Payments,REVENUE
http://statistics.data.gov.uk/id/local-authority/00HY,Wiltshire Council,18/11/2015,5106783687,2360.36,Avery Healthcare Cepen Lodge ,126733,DL1 ,Community Services,North Locality OP,Adult Residential Placements - Spot Purchase,Third Party Payments,REVENUE
http://statistics.data.gov.uk/id/local-authority/00HY,Wiltshire Council,18/11/2015,5106784285,2800.00,Avery Healthcare Cepen Lodge ,126733,DL1 ,Community Services,MH OP North Locality,Adult Residential Placements - Spot Purchase,Third Party Payments,REVENUE
http://statistics.data.gov.uk/id/local-authority/00HY,Wiltshire Council,18/11/2015,5106784442,2320.00,Avery Healthcare Cepen Lodge ,126733,DL1 ,Community Services,North Locality OP,Adult Residential Placements - Spot Purchase,Third Party Payments,REVENUE
http://statistics.data.gov.uk/id/local-authority/00HY,Wiltshire Council,18/11/2015,5106784466,2089.16,Avery Healthcare Cepen Lodge ,126733,DL1 ,Community Services,West Locality OP,Adult Residential Placements - Spot Purchase,Third Party Payments,REVENUE
http://statistics.data.gov.uk/id/local-authority/00HY,Wiltshire Council,18/11/2015,5106785647,2187.08,Avery Healthcare Cepen Lodge ,126733,DL1 ,Community Services,North Locality OP,Adult Residential Placements - Spot Purchase,Third Party Payments,REVENUE
http://statistics.data.gov.uk/id/local-authority/00HY,Wiltshire Council,18/11/2015,5106785687,2187.08,Avery Healthcare Cepen Lodge ,126733,DL1 ,Community Services,North Locality OP,Adult Residential Placements - Spot Purchase,Third Party Payments,REVENUE
http://statistics.data.gov.uk/id/local-authority/00HY,Wiltshire Council,18/11/2015,5106785835,2173.48,Avery Healthcare Cepen Lodge ,126733,DL1 ,Community Services,MH OP North Locality,Adult Residential Placements - Spot Purchase,Third Party Payments,REVENUE
http://statistics.data.gov.uk/id/local-authority/00HY,Wiltshire Council,18/11/2015,5106785992,2187.08,Avery Healthcare Cepen Lodge ,126733,DL1 ,Community Services,North Locality OP,Adult Residential Placements - Spot Purchase,Third Party Payments,REVENUE
http://statistics.data.gov.uk/id/local-authority/00HY,Wiltshire Council,18/11/2015,5106786056,1928.68,Avery Healthcare Cepen Lodge ,126733,DL1 ,Community Services,North Locality OP,Adult Residential Placements - Spot Purchase,Third Party Payments,REVENUE
http://statistics.data.gov.uk/id/local-authority/00HY,Wiltshire Council,18/11/2015,5106786236,2360.36,Avery Healthcare Cepen Lodge ,126733,DL1 ,Community Services,MH AOWA North Locali,Adult Residential Placements - Spot Purchase,Third Party Payments,REVENUE
http://statistics.data.gov.uk/id/local-authority/00HY,Wiltshire Council,18/11/2015,5106786344,2360.36,Avery Healthcare Cepen Lodge ,126733,DL1 ,Community Services,North Locality OP,Adult Residential Placements - Spot Purchase,Third Party Payments,REVENUE
http://statistics.data.gov.uk/id/local-authority/00HY,Wiltshire Council,18/11/2015,5106786667,2340.00,Avery Healthcare Cepen Lodge ,126733,DL1 ,Community Services,MH OP North Locality,Adult Residential Placements - Spot Purchase,Third Party Payments,REVENUE
http://statistics.data.gov.uk/id/local-authority/00HY,Wiltshire Council,18/11/2015,5106786677,2360.36,Avery Healthcare Cepen Lodge ,126733,DL1 ,Community Services,MH OP North Locality,Adult Residential Placements - Spot Purchase,Third Party Payments,REVENUE
http://statistics.data.gov.uk/id/local-authority/00HY,Wiltshire Council,18/11/2015,5106786690,2360.36,Avery Healthcare Cepen Lodge ,126733,DL1 ,Community Services,North Locality OP,Adult Residential Placements - Spot Purchase,Third Party Payments,REVENUE
http://statistics.data.gov.uk/id/local-authority/00HY,Wiltshire Council,18/11/2015,5106786770,2360.36,Avery Healthcare Cepen Lodge ,126733,DL1 ,Community Services,Adult Care Gross Loa,Adult Care Loans,Capital charges and Expenditure,REVENUE
http://statistics.data.gov.uk/id/local-authority/00HY,Wiltshire Council,18/11/2015,5106786825,2360.36,Avery Healthcare Cepen Lodge ,126733,DL1 ,Community Services,North Locality OP,Adult Residential Placements - Spot Purchase,Third Party Payments,REVENUE
http://statistics.data.gov.uk/id/local-authority/00HY,Wiltshire Council,18/11/2015,5106787429,2360.36,Avery Healthcare Cepen Lodge ,126733,DL1 ,Community Services,MH OP North Locality,Adult Residential Placements - Spot Purchase,Third Party Payments,REVENUE
http://statistics.data.gov.uk/id/local-authority/00HY,Wiltshire Council,20/11/2015,5106789794,2360.36,Avery Healthcare Cepen Lodge ,126733,DL1 ,Community Services,MH OP North Locality,Adult Residential Placements - Spot Purchase,Third Party Payments,REVENUE
http://statistics.data.gov.uk/id/local-authority/00HY,Wiltshire Council,20/11/2015,5106789829,2276.10,Avery Healthcare Cepen Lodge ,126733,DL1 ,Community Services,North Locality OP,Adult Residential Placements - Spot Purchase,Third Party Payments,REVENUE
http://statistics.data.gov.uk/id/local-authority/00HY,Wiltshire Council,20/11/2015,5106789831,2360.36,Avery Healthcare Cepen Lodge ,126733,DL1 ,Community Services,North Locality OP,Adult Residential Placements - Spot Purchase,Third Party Payments,REVENUE
http://statistics.data.gov.uk/id/local-authority/00HY,Wiltshire Council,20/11/2015,5106789833,2360.36,Avery Healthcare Cepen Lodge ,126733,DL1 ,Community Services,North Locality OP,Adult Residential Placements - Spot Purchase,Third Party Payments,REVENUE
http://statistics.data.gov.uk/id/local-authority/00HY,Wiltshire Council,27/11/2015,5106792641,3278.61,Avery Healthcare Cepen Lodge ,126733,DL1 ,Community Services,Adult Care Gross Loa,Adult Care Loans,Capital charges and Expenditure,REVENUE
http://statistics.data.gov.uk/id/local-authority/00HY,Wiltshire Council,18/11/2015,5106782053,665.28,Avery Healthcare Ltd- Langford Sali ,112676,NN4 ,Community Services,OP South FNC,Adult Care Funded Nursing Care - Loal Auth Clients,Third Party Payments,REVENUE
http://statistics.data.gov.uk/id/local-authority/00HY,Wiltshire Council,18/11/2015,5106782227,1774.12,Avery Healthcare Ltd- Langford Sali ,112676,NN4 ,Community Services,BCF-Intermediate Cr,Adult Nursing Respite - Spot,Third Party Payments,REVENUE
http://statistics.data.gov.uk/id/local-authority/00HY,Wiltshire Council,18/11/2015,5106783153,2590.84,Avery Healthcare Ltd- Langford Sali ,112676,NN4 ,Community Services,South Locality OP,Adult Care Nursing Placements- Spot Purchase,Third Party Payments,REVENUE
http://statistics.data.gov.uk/id/local-authority/00HY,Wiltshire Council,18/11/2015,5106783154,448.00,Avery Healthcare Ltd- Langford Sali ,112676,NN4 ,Community Services,OP South FNC,Adult Care Funded Nursing Care - Loal Auth Clients,Third Party Payments,REVENUE
http://statistics.data.gov.uk/id/local-authority/00HY,Wiltshire Council,18/11/2015,5106783456,2315.20,Avery Healthcare Ltd- Langford Sali ,112676,NN4 ,Community Services,South Locality OP,Adult Care Nursing Placements- Spot Purchase,Third Party Payments,REVENUE
http://statistics.data.gov.uk/id/local-authority/00HY,Wiltshire Council,18/11/2015,5106783457,448.00,Avery Healthcare Ltd- Langford Sali ,112676,NN4 ,Community Services,OP South FNC,Adult Care Funded Nursing Care - Loal Auth Clients,Third Party Payments,REVENUE
http://statistics.data.gov.uk/id/local-authority/00HY,Wiltshire Council,18/11/2015,5106783521,2100.80,Avery Healthcare Ltd- Langford Sali ,112676,NN4 ,Community Services,South Locality OP,Adult Residential Placements - Spot Purchase,Third Party Payments,REVENUE
http://statistics.data.gov.uk/id/local-authority/00HY,Wiltshire Council,18/11/2015,5106785641,3319.44,Avery Healthcare Ltd- Langford Sali ,112676,NN4 ,Community Services,South Locality OP,Adult Residential Placements - Spot Purchase,Third Party Payments,REVENUE
http://statistics.data.gov.uk/id/local-authority/00HY,Wiltshire Council,18/11/2015,5106785882,2621.16,Avery Healthcare Ltd- Langford Sali ,112676,NN4 ,Community Services,South Locality OP,Adult Care Nursing Placements- Spot Purchase,Third Party Payments,REVENUE
http://statistics.data.gov.uk/id/local-authority/00HY,Wiltshire Council,18/11/2015,5106785883,448.00,Avery Healthcare Ltd- Langford Sali ,112676,NN4 ,Community Services,OP South FNC,Adult Care Funded Nursing Care - Loal Auth Clients,Third Party Payments,REVENUE
http://statistics.data.gov.uk/id/local-authority/00HY,Wiltshire Council,18/11/2015,5106786395,2800.00,Avery Healthcare Ltd- Langford Sali ,112676,NN4 ,Community Services,South Locality OP,Adult Residential Placements - Spot Purchase,Third Party Payments,REVENUE
http://statistics.data.gov.uk/id/local-authority/00HY,Wiltshire Council,18/11/2015,5106786649,2503.68,Avery Healthcare Ltd- Langford Sali ,112676,NN4 ,Community Services,South Locality OP,Adult Care Nursing Placements- Spot Purchase,Third Party Payments,REVENUE
http://statistics.data.gov.uk/id/local-authority/00HY,Wiltshire Council,18/11/2015,5106786650,448.00,Avery Healthcare Ltd- Langford Sali ,112676,NN4 ,Community Services,OP South FNC,Adult Care Funded Nursing Care - Loal Auth Clients,Third Party Payments,REVENUE
http://statistics.data.gov.uk/id/local-authority/00HY,Wiltshire Council,18/11/2015,5106786776,2503.68,Avery Healthcare Ltd- Langford Sali ,112676,NN4 ,Community Services,South Locality OP,Adult Care Nursing Placements- Spot Purchase,Third Party Payments,REVENUE
http://statistics.data.gov.uk/id/local-authority/00HY,Wiltshire Council,18/11/2015,5106786777,448.00,Avery Healthcare Ltd- Langford Sali ,112676,NN4 ,Community Services,OP South FNC,Adult Care Funded Nursing Care - Loal Auth Clients,Third Party Payments,REVENUE
http://statistics.data.gov.uk/id/local-authority/00HY,Wiltshire Council,23/11/2015,5106790225,478.84,Avery Healthcare Ltd- Langford Sali ,112676,NN4 ,Community Services,Home Loans,Adult Care Loans,Capital charges and Expenditure,REVENUE
http://statistics.data.gov.uk/id/local-authority/00HY,Wiltshire Council,23/11/2015,5106790227,3352.00,Avery Healthcare Ltd- Langford Sali ,112676,NN4 ,Community Services,Home Loans,Adult Care Loans,Capital charges and Expenditure,REVENUE
http://statistics.data.gov.uk/id/local-authority/00HY,Wiltshire Council,23/11/2015,5106790229,3352.00,Avery Healthcare Ltd- Langford Sali ,112676,NN4 ,Community Services,Home Loans,Adult Care Loans,Capital charges and Expenditure,REVENUE
http://statistics.data.gov.uk/id/local-authority/00HY,Wiltshire Council,23/11/2015,5106790231,3352.00,Avery Healthcare Ltd- Langford Sali ,112676,NN4 ,Community Services,Home Loans,Adult Care Loans,Capital charges and Expenditure,REVENUE
http://statistics.data.gov.uk/id/local-authority/00HY,Wiltshire Council,23/11/2015,5106790233,3352.00,Avery Healthcare Ltd- Langford Sali ,112676,NN4 ,Community Services,Home Loans,Adult Care Loans,Capital charges and Expenditure,REVENUE
http://statistics.data.gov.uk/id/local-authority/00HY,Wiltshire Council,23/11/2015,5106790235,3352.00,Avery Healthcare Ltd- Langford Sali ,112676,NN4 ,Community Services,Home Loans,Adult Care Loans,Capital charges and Expenditure,REVENUE
http://statistics.data.gov.uk/id/local-authority/00HY,Wiltshire Council,23/11/2015,5106790237,3352.00,Avery Healthcare Ltd- Langford Sali ,112676,NN4 ,Community Services,Home Loans,Adult Care Loans,Capital charges and Expenditure,REVENUE
http://statistics.data.gov.uk/id/local-authority/00HY,Wiltshire Council,23/11/2015,5106790239,3352.00,Avery Healthcare Ltd- Langford Sali ,112676,NN4 ,Community Services,Home Loans,Adult Care Loans,Capital charges and Expenditure,REVENUE
http://statistics.data.gov.uk/id/local-authority/00HY,Wiltshire Council,26/11/2015,5106781882,8000.00,Avon & Wilts Mental Health Partnership NHS Trust,131123,SN15,Neighbourhood & Planning,Mental Health and We,Public Health Commissioning,Supplies and Services,REVENUE
http://statistics.data.gov.uk/id/local-authority/00HY,Wiltshire Council,17/11/2015,1901611361,6461.16,Avon and W Wilts MHC NHS Trust ,110216,BA1 ,Community Services,MH Management Fee,Contribution to Approved Social Workers,Supplies and Services,REVENUE
http://statistics.data.gov.uk/id/local-authority/00HY,Wiltshire Council,10/11/2015,1901609421,14367.87,Avon Care Homes Ltd - Sutton Veny H ,112612,BA5 ,Community Services,BCF-Intermediate Cr,Adult Care Nursing Placements - Void Payments,Third Party Payments,REVENUE
http://statistics.data.gov.uk/id/local-authority/00HY,Wiltshire Council,10/11/2015,1901609423,28060.71,Avon Care Homes Ltd - Sutton Veny H ,112612,BA5 ,Community Services,BCF-Intermediate Cr,Adult Care Nursing Placements - Void Payments,Third Party Payments,REVENUE
http://statistics.data.gov.uk/id/local-authority/00HY,Wiltshire Council,10/11/2015,5106779832,444.96,Avon Care Homes Ltd - Sutton Veny H ,112612,BA5 ,Community Services,West Locality OP,Adult Care Nursing Placements- Spot Purchase,Third Party Payments,REVENUE
http://statistics.data.gov.uk/id/local-authority/00HY,Wiltshire Council,13/11/2015,5106782206,270.48,Avon Care Homes Ltd - Sutton Veny H ,112612,BA5 ,Community Services,BCF-Intermediate Cr,Adult Nursing Respite - Spot,Third Party Payments,REVENUE
http://statistics.data.gov.uk/id/local-authority/00HY,Wiltshire Council,13/11/2015,5106782207,2524.36,Avon Care Homes Ltd - Sutton Veny H ,112612,BA5 ,Community Services,BCF-Intermediate Cr,Adult Nursing Respite - Spot,Third Party Payments,REVENUE
http://statistics.data.gov.uk/id/local-authority/00HY,Wiltshire Council,13/11/2015,5106782208,2524.36,Avon Care Homes Ltd - Sutton Veny H ,112612,BA5 ,Community Services,BCF-Intermediate Cr,Adult Nursing Respite - Spot,Third Party Payments,REVENUE
http://statistics.data.gov.uk/id/local-authority/00HY,Wiltshire Council,13/11/2015,5106782209,1983.52,Avon Care Homes Ltd - Sutton Veny H ,112612,BA5 ,Community Services,BCF-Intermediate Cr,Adult Nursing Respite - Spot,Third Party Payments,REVENUE
http://statistics.data.gov.uk/id/local-authority/00HY,Wiltshire Council,18/11/2015,5106783361,1624.56,Avon Care Homes Ltd - Sutton Veny H ,112612,BA5 ,Community Services,West Locality OP,Adult Care Nursing Placements- Spot Purchase,Third Party Payments,REVENUE
http://statistics.data.gov.uk/id/local-authority/00HY,Wiltshire Council,18/11/2015,5106783362,448.00,Avon Care Homes Ltd - Sutton Veny H ,112612,BA5 ,Community Services,OP West FNC,Adult Care Funded Nursing Care - Loal Auth Clients,Third Party Payments,REVENUE
http://statistics.data.gov.uk/id/local-authority/00HY,Wiltshire Council,18/11/2015,5106783943,2076.36,Avon Care Homes Ltd - Sutton Veny H ,112612,BA5 ,Community Services,West Locality OP,Adult Care Nursing Placements- Spot Purchase,Third Party Payments,REVENUE
http://statistics.data.gov.uk/id/local-authority/00HY,Wiltshire Council,18/11/2015,5106783944,448.00,Avon Care Homes Ltd - Sutton Veny H ,112612,BA5 ,Community Services,OP West FNC,Adult Care Funded Nursing Care - Loal Auth Clients,Third Party Payments,REVENUE
http://statistics.data.gov.uk/id/local-authority/00HY,Wiltshire Council,18/11/2015,5106783948,2076.36,Avon Care Homes Ltd - Sutton Veny H ,112612,BA5 ,Community Services,West Locality OP,Adult Care Nursing Placements- Spot Purchase,Third Party Payments,REVENUE
http://statistics.data.gov.uk/id/local-authority/00HY,Wiltshire Council,18/11/2015,5106783949,448.00,Avon Care Homes Ltd - Sutton Veny H ,112612,BA5 ,Community Services,OP West FNC,Adult Care Funded Nursing Care - Loal Auth Clients,Third Party Payments,REVENUE
http://statistics.data.gov.uk/id/local-authority/00HY,Wiltshire Council,18/11/2015,5106786335,2076.36,Avon Care Homes Ltd - Sutton Veny H ,112612,BA5 ,Community Services,MH OP North Locality,Adult Care Nursing Placements- Spot Purchase,Third Party Payments,REVENUE
http://statistics.data.gov.uk/id/local-authority/00HY,Wiltshire Council,18/11/2015,5106786336,448.00,Avon Care Homes Ltd - Sutton Veny H ,112612,BA5 ,Community Services,MH OA North FNC,Adult Care Funded Nursing Care - Loal Auth Clients,Third Party Payments,REVENUE
http://statistics.data.gov.uk/id/local-authority/00HY,Wiltshire Council,18/11/2015,5106786506,2076.36,Avon Care Homes Ltd - Sutton Veny H ,112612,BA5 ,Community Services,West Locality OP,Adult Care Nursing Placements- Spot Purchase,Third Party Payments,REVENUE
http://statistics.data.gov.uk/id/local-authority/00HY,Wiltshire Council,18/11/2015,5106786507,448.00,Avon Care Homes Ltd - Sutton Veny H ,112612,BA5 ,Community Services,OP West FNC,Adult Care Funded Nursing Care - Loal Auth Clients,Third Party Payments,REVENUE
http://statistics.data.gov.uk/id/local-authority/00HY,Wiltshire Council,18/11/2015,5106787334,2076.36,Avon Care Homes Ltd - Sutton Veny H ,112612,BA5 ,Community Services,West Locality OP,Adult Care Nursing Placements - 12 Week,Third Party Payments,REVENUE
http://statistics.data.gov.uk/id/local-authority/00HY,Wiltshire Council,18/11/2015,5106787335,448.00,Avon Care Homes Ltd - Sutton Veny H ,112612,BA5 ,Community Services,OP West FNC,Adult Care Funded Nursing Care - Loal Auth Clients,Third Party Payments,REVENUE
http://statistics.data.gov.uk/id/local-authority/00HY,Wiltshire Council,18/11/2015,5106787439,1631.52,Avon Care Homes Ltd - Sutton Veny H ,112612,BA5 ,Community Services,West Locality OP,Adult Care Nursing Placements- Spot Purchase,Third Party Payments,REVENUE
http://statistics.data.gov.uk/id/local-authority/00HY,Wiltshire Council,18/11/2015,5106787440,352.00,Avon Care Homes Ltd - Sutton Veny H ,112612,BA5 ,Community Services,OP West FNC,Adult Care Funded Nursing Care - Loal Auth Clients,Third Party Payments,REVENUE
http://statistics.data.gov.uk/id/local-authority/00HY,Wiltshire Council,17/11/2015,1901612044,16562.86,Avon Court Care Home ,110218,LS16,Community Services,BCF-Intermediate Cr,Adult Care Nursing Placements - Void Payments,Third Party Payments,REVENUE
http://statistics.data.gov.uk/id/local-authority/00HY,Wiltshire Council,17/11/2015,5106779773,753.97,Avon Court Care Home ,110218,LS16,Community Services,North Locality OP,Adult Care Nursing Placements- Spot Purchase,Third Party Payments,REVENUE
http://statistics.data.gov.uk/id/local-authority/00HY,Wiltshire Council,17/11/2015,5106782092,335.53,Avon Court Care Home ,110218,LS16,Community Services,North Locality OP,Adult Care Nursing Placements- Spot Purchase,Third Party Payments,REVENUE
http://statistics.data.gov.uk/id/local-authority/00HY,Wiltshire Council,17/11/2015,5106782355,3254.77,Avon Court Care Home ,110218,LS16,Community Services,North Locality OP,Adult Care Nursing Placements- Spot Purchase,Third Party Payments,REVENUE
http://statistics.data.gov.uk/id/local-authority/00HY,Wiltshire Council,18/11/2015,5106783225,1421.64,Avon Court Care Home ,110218,LS16,Community Services,North Locality OP,Adult Care Nursing Placements- Spot Purchase,Third Party Payments,REVENUE
http://statistics.data.gov.uk/id/local-authority/00HY,Wiltshire Council,18/11/2015,5106783226,448.00,Avon Court Care Home ,110218,LS16,Community Services,OP North FNC,Adult Care Funded Nursing Care - Loal Auth Clients,Third Party Payments,REVENUE
http://statistics.data.gov.uk/id/local-authority/00HY,Wiltshire Council,18/11/2015,5106783542,2081.04,Avon Court Care Home ,110218,LS16,Community Services,West Locality OP,Adult Care Nursing Placements- Block Contract,Third Party Payments,REVENUE
http://statistics.data.gov.uk/id/local-authority/00HY,Wiltshire Council,18/11/2015,5106783543,448.00,Avon Court Care Home ,110218,LS16,Community Services,OP West FNC,Adult Care Funded Nursing Care - Loal Auth Clients,Third Party Payments,REVENUE
http://statistics.data.gov.uk/id/local-authority/00HY,Wiltshire Council,18/11/2015,5106783641,2081.04,Avon Court Care Home ,110218,LS16,Community Services,East Locality OP,Adult Care Nursing Placements- Block Contract,Third Party Payments,REVENUE
http://statistics.data.gov.uk/id/local-authority/00HY,Wiltshire Council,18/11/2015,5106783642,448.00,Avon Court Care Home ,110218,LS16,Community Services,OP East FNC,Adult Care Funded Nursing Care - Loal Auth Clients,Third Party Payments,REVENUE
http://statistics.data.gov.uk/id/local-authority/00HY,Wiltshire Council,18/11/2015,5106783718,2081.04,Avon Court Care Home ,110218,LS16,Community Services,West Locality OP,Adult Care Nursing Placements- Block Contract,Third Party Payments,REVENUE
http://statistics.data.gov.uk/id/local-authority/00HY,Wiltshire Council,18/11/2015,5106783719,448.00,Avon Court Care Home ,110218,LS16,Community Services,OP West FNC,Adult Care Funded Nursing Care - Loal Auth Clients,Third Party Payments,REVENUE
http://statistics.data.gov.uk/id/local-authority/00HY,Wiltshire Council,18/11/2015,5106783889,2081.04,Avon Court Care Home ,110218,LS16,Community Services,North Locality OP,Adult Care Nursing Placements- Block Contract,Third Party Payments,REVENUE
http://statistics.data.gov.uk/id/local-authority/00HY,Wiltshire Council,18/11/2015,5106783890,448.00,Avon Court Care Home ,110218,LS16,Community Services,OP North FNC,Adult Care Funded Nursing Care - Loal Auth Clients,Third Party Payments,REVENUE
http://statistics.data.gov.uk/id/local-authority/00HY,Wiltshire Council,18/11/2015,5106783892,2081.04,Avon Court Care Home ,110218,LS16,Community Services,North Locality OP,Adult Care Nursing Placements- Block Contract,Third Party Payments,REVENUE
http://statistics.data.gov.uk/id/local-authority/00HY,Wiltshire Council,18/11/2015,5106783893,448.00,Avon Court Care Home ,110218,LS16,Community Services,OP North FNC,Adult Care Funded Nursing Care - Loal Auth Clients,Third Party Payments,REVENUE
http://statistics.data.gov.uk/id/local-authority/00HY,Wiltshire Council,18/11/2015,5106783977,2856.44,Avon Court Care Home ,110218,LS16,Community Services,North Locality OP,Adult Care Nursing Placements- Spot Purchase,Third Party Payments,REVENUE
http://statistics.data.gov.uk/id/local-authority/00HY,Wiltshire Council,18/11/2015,5106783978,448.00,Avon Court Care Home ,110218,LS16,Community Services,OP North FNC,Adult Care Funded Nursing Care - Loal Auth Clients,Third Party Payments,REVENUE
http://statistics.data.gov.uk/id/local-authority/00HY,Wiltshire Council,18/11/2015,5106784142,2081.04,Avon Court Care Home ,110218,LS16,Community Services,North Locality OP,Adult Care Nursing Placements- Block Contract,Third Party Payments,REVENUE
http://statistics.data.gov.uk/id/local-authority/00HY,Wiltshire Council,18/11/2015,5106784143,448.00,Avon Court Care Home ,110218,LS16,Community Services,OP North FNC,Adult Care Funded Nursing Care - Loal Auth Clients,Third Party Payments,REVENUE
http://statistics.data.gov.uk/id/local-authority/00HY,Wiltshire Council,18/11/2015,5106784304,2081.04,Avon Court Care Home ,110218,LS16,Community Services,North Locality OP,Adult Care Nursing Placements- Block Contract,Third Party Payments,REVENUE
http://statistics.data.gov.uk/id/local-authority/00HY,Wiltshire Council,18/11/2015,5106784305,448.00,Avon Court Care Home ,110218,LS16,Community Services,OP North FNC,Adult Care Funded Nursing Care - Loal Auth Clients,Third Party Payments,REVENUE
http://statistics.data.gov.uk/id/local-authority/00HY,Wiltshire Council,18/11/2015,5106784734,1040.48,Avon Court Care Home ,110218,LS16,Community Services,North Locality OP,Adult Care Nursing Placements- Spot Purchase,Third Party Payments,REVENUE
http://statistics.data.gov.uk/id/local-authority/00HY,Wiltshire Council,18/11/2015,5106784737,2081.04,Avon Court Care Home ,110218,LS16,Community Services,North Locality OP,Adult Care Nursing Placements- Spot Purchase,Third Party Payments,REVENUE
http://statistics.data.gov.uk/id/local-authority/00HY,Wiltshire Council,18/11/2015,5106784738,448.00,Avon Court Care Home ,110218,LS16,Community Services,OP North FNC,Adult Care Funded Nursing Care - Loal Auth Clients,Third Party Payments,REVENUE
